Workbook

Sheet Strategy
B2: Vocabulary 2013 | G2: Words Learned per Semester
B3: Class | C3: Words | D3: Sessions | E3: Total | F3: Weeks | G3: Sem 1a | H3: Sem 1b | I3: Sem 2a | J3: Sem 2b | K3: Total | N3: Words | O3: PET | P3: SAT | Q3: AWL | R3: TOEFL
B4: M1 | C4: 6 | D4: 3 | E4: 18 | F4: 10 | G4: 180 | H4: 180 | I4: 180 | J4: 180 | K4: 720 | N4: M1 | O4: 563 | P4: 2 | Q4: 18 | R4: 29
B5: M2 | C5: 6 | D5: 3 | E5: 18 | F5: 10 | G5: 180 | H5: 180 | I5: 180 | J5: 180 | K5: 720 | N5: M2 | O5: 579 | P5: 1 | Q5: 38 | R5: 32
B6: M3 | C6: 6 | D6: 3 | E6: 18 | F6: 10 | G6: 180 | H6: 180 | I6: 180 | J6: 180 | K6: 720 | N6: M3 | O6: 439 | P6: 7 | Q6: 67 | R6: 61
B7: M4 | C7: 10 | D7: 2 | E7: 20 | F7: 10 | G7: 200 | H7: 200 | I7: 200 | J7: 200 | K7: 800 | N7: M4 | O7: 19 | P7: 466 | Q7: 41 | R7: 324
B8: M5 | C8: 10 | D8: 2 | E8: 20 | F8: 10 | G8: 200 | H8: 200 | I8: 200 | J8: 200 | K8: 800 | N8: M5 | O8: 9 | P8: 527 | Q8: 38 | R8: 267
B9: M6 | C9: 10 | D9: 2 | E9: 20 | F9: 10 | G9: 200 | H9: 200 | I9: 200 | J9: 200 | K9: 800 | N9: M6 | O9: 54 | P9: 19 | Q9: 481 | R9: 362
B11: Type | D11: M1 | E11: M2 | F11: M3 | G11: M4 | H11: M5 | I11: M6 | J11: Total | N11: M1 | O11: M2 | P11: M3 | Q11: M4 | R11: M5 | S11: M6
B12: Nouns | D12: 423 | E12: 392 | F12: 437 | G12: 353 | H12: 344 | I12: 307 | J12: 2256 | M12: PET | N12: 0.9199346405 | O12: 0.8907692308 | P12: 0.7648083624 | Q12: 0.02235294118 | R12: 0.01070154578 | S12: 0.05895196507
B13: Verbs | D13: 128 | E13: 131 | F13: 139 | G13: 197 | H13: 197 | I13: 262 | J13: 1054 | M13: SAT | N13: 0.003267973856 | O13: 0.001538461538 | P13: 0.01219512195 | Q13: 0.5482352941 | R13: 0.6266349584 | S13: 0.02074235808
B14: Adjectives | D14: 118 | E14: 126 | F14: 116 | G14: 240 | H14: 256 | I14: 206 | J14: 1062 | M14: TOEFL | N14: 0.04738562092 | O14: 0.04923076923 | P14: 0.106271777 | Q14: 0.3811764706 | R14: 0.3174791914 | S14: 0.3951965066
B15: Adverbs | D15: 27 | E15: 33 | F15: 14 | G15: 8 | H15: 2 | I15: 19 | J15: 103 | M15: AWL | N15: 0.02941176471 | O15: 0.05846153846 | P15: 0.1167247387 | Q15: 0.04823529412 | R15: 0.0451843044 | S15: 0.5251091703
B16: Pronouns | D16: 5 | E16: 12 | F16: 5 | G16: 0 | H16: 0 | I16: 0 | J16: 22
B17: Prepositions | D17: 10 | E17: 16 | F17: 4 | G17: 2 | H17: 0 | I17: 4 | J17: 36
B18: Conjunctions | D18: 3 | E18: 6 | F18: 2 | G18: 0 | H18: 0 | I18: 2 | J18: 13
B19: Expressions | D19: 6 | E19: 4 | F19: 3 | G19: 0 | H19: 1 | I19: 0 | J19: 14
D20: 720 | E20: 720 | F20: 720 | G20: 800 | H20: 800 | I20: 800 | J20: 4560

Sheet M Order
A1: Wk | B1: Pt | C1: Eng | D1: Thai | F1: Rows | H1: Sem | I1: Wordlist M | J1: 3 | M1: Semester 1 | N1: 1 | O1: 2 | P1: 3 | Q1: 4 | R1: 5 | S1: 6 | T1: Extra | V1: A:A ref | W1: M1 | X1: M2 | Y1: M3 | Z1: M4 | AA1: M5 | AB1: M6 | AC1: TOEFL | AD1: SAT | AE1: AWL
A2: 1 | B2: 1 | C2: =INDIRECT(CONCATENATE("'2013 WordList'!H",$F2))&", "&INDIRECT(CONCATENATE("'2013 WordList'!H",$F2+1))&", "&INDIRECT(CONCATENATE("'2013 WordList'!H",$F2+2))&", "&INDIRECT(CONCATENATE("'2013 WordList'!H",$F2+3))&", "&INDIRECT(CONCATENATE("'2013 WordList'!H",$F2+4))&", "&INDIRECT(CONCATENATE("'2013 WordList'!H",$F2+5)) -> appearance, aspirin, assess, bald, beard, bushy | D2: =INDIRECT(CONCATENATE("'2013 WordList'!F",$F2))&", "&INDIRECT(CONCATENATE("'2013 WordList'!F",$F2+1))&", "&INDIRECT(CONCATENATE("'2013 WordList'!F",$F2+2))&", "&INDIRECT(CONCATENATE("'2013 WordList'!F",$F2+3))&", "&INDIRECT(CONCATENATE("'2013 WordList'!F",$F2+4))&", "&INDIRECT(CONCATENATE("'2013 WordList'!F",$F2+5)) -> การปรากฏ, แอสไพริน, ประเมินผล, เหม่ง, เครา, เป็นพวง | F2: =J2 -> 1802 | H2: 2 | I2: Xl Row start | J2: =IF(H2=1,HLOOKUP(J1,N1:P3,2),HLOOKUP(J1,N15:P17,2)) -> 1802 | M2: Xl Row start | N2: 2 | O2: 722 | P2: 1442 | Q2: 2162 | R2: 2962 | S2: 3762 | T2: =4562 -> 4562 | V2: A:A Ref Rows | W2: 1 | X2: 2 | Y2: 3 | Z2: 4 | AA2: 5 | AB2: 6 | AC2: 7 | AD2: 8 | AE2: 9
A3: 1 | B3: 2 | C3: contagious, cough, curly, liquid, disappoint, drug | D3: ติดต่อกันได้, ไอ, หยิก, ของเหลว, ทำให้ผิดหวัง, ยาเสพติด | F3: =F2+$H$4 -> 1808 | H3: Sets | I3: Xl Row end | J3: =IF(H2=1,HLOOKUP(J1,N1:P3,3),HLOOKUP(J1,N15:P17,3)) -> 2161 | M3: Xl Row end | N3: 361 | O3: 1081 | P3: 1801 | Q3: 2561 | R3: 3361 | S3: 4161 | T3: =7542 -> 7542 | U3: Sent. | V3: Sem 1 | W3: 1 | X3: 721 | Y3: 1441 | Z3: 2161 | AA3: 2961 | AB3: 3761 | AC3: 2 | AD3: 2 | AE3: 2
A4: 1 | B4: 3 | C4: earache, exaggerate, expand, eyebrow, flu, fairy | D4: อาการปวดหู, พูดเกินจริง, ขยายความ, คิ้ว, ไข้หวัดใหญ่, นางฟ้า | F4: 1814 | H4: 6 | I4: Total | J4: =SUM(J5:J12) -> 360 | M4: Total | N4: 360 | O4: 360 | P4: 360 | Q4: 400 | R4: 400 | S4: 400 | T4: =SUM(T5:T12) -> 2940 | U4: =COUNTBLANK('2013 WordList'!G2:G9326) -> 969 | V4: Sem 1 end | W4: 360 | X4: 1080 | Y4: 1800 | Z4: 2560 | AA4: 3360 | AB4: 4160 | AC4: 401 | AD4: 401 | AE4: 401
A5: 2 | B5: 1 | C5: kidnap, fuss, medium, height, moustache, muscular | D5: ลักพาตัว, เอะอะ, กลาง, ความสูง, หนวด, ล่ำสัน | F5: 1820 | I5: Nouns | J5: =COUNTIF(INDIRECT(CONCATENATE("'2013 WordList'!G"&$J$2&":G"&$J$3)),"noun") -> 228 | M5: Nouns | N5: 211 | O5: 204 | P5: 209 | Q5: 181 | R5: 175 | S5: 169 | T5: =COUNTIF(INDIRECT(CONCATENATE("'2013 WordList'!G"&$T$2&":G"&$T$3)),"noun") -> 1067 | U5: left | V5: Sem 2 | W5: 361 | X5: 1081 | Y5: 1801 | Z5: 2561 | AA5: 3361 | AB5: 4161 | AC5: 402 | AD5: 402 | AE5: 402
A6: 2 | B6: 2 | C6: pickpocket, concentrate, ponytail, ransom, rash, reward | D6: นักล้วงกระเป๋า, ตั้งสมาธิ, ผมหางม้า, ค่าไถ่, ผื่น, รางวัล | F6: 1826 | I6: Verbs | J6: =COUNTIF(INDIRECT(CONCATENATE("'2013 WordList'!G"&$J$2&":G"&$J$3)),"verb") -> 59 | M6: Verbs | N6: 52 | O6: 61 | P6: 80 | Q6: 101 | R6: 92 | S6: 123 | T6: =COUNTIF(INDIRECT(CONCATENATE("'2013 WordList'!G"&$T$2&":G"&$T$3)),"verb") -> 480 | U6: Ant. | V6: Sem 2 end | W6: 720 | X6: 1440 | Y6: 2160 | Z6: 2960 | AA6: 3760 | AB6: 4560 | AC6: 801 | AD6: 801 | AE6: 801
A7: 2 | B7: 3 | C7: depth, shift, judge, skinny, insurance, throat | D7: ความลึก, เปลี่ยน, ผู้พิพากษา, ผอม, ประกัน, ลำคอ | F7: 1832 | I7: Adjectives | J7: =COUNTIF(INDIRECT(CONCATENATE("'2013 WordList'!G"&$J$2&":G"&$J$3)),"adj") -> 61 | M7: Adjectives | N7: 69 | O7: 58 | P7: 54 | Q7: 115 | R7: 130 | S7: 102 | T7: =COUNTIF(INDIRECT(CONCATENATE("'2013 WordList'!G"&$T$2&":G"&$T$3)),"adj") -> 1043 | U7: =COUNTBLANK('2013 WordList'!Y2:Y9326) -> 196 | AC7: K | AD7: F | AE7: P | AF7: 'WordLists!
A8: 3 | B8: 1 | C8: stir, steal, suspect, fascinate, temperature, announcement | D8: กวน, ขโมย, สงสัย, ตรึงใจ, อุณหภูมิ, การประกาศ | F8: 1838 | I8: Adverbs | J8: =COUNTIF(INDIRECT(CONCATENATE("'2013 WordList'!G"&$J$2&":G"&$J$3)),"adv") -> 7 | M8: Adverbs | N8: 14 | O8: 18 | P8: 8 | Q8: 2 | R8: 2 | S8: 6 | T8: =COUNTIF(INDIRECT(CONCATENATE("'2013 WordList'!G"&$T$2&":G"&$T$3)),"adv") -> 321 | U8: left | V8: Entries | W8: =W6-W3+1 -> 720 | X8: =X6-X3+1 -> 720 | Y8: =Y6-Y3+1 -> 720 | Z8: 800 | AA8: =AA6-AA3+1 -> 800 | AB8: 800 | AC8: 800 | AD8: 800 | AE8: 800
A9: 3 | B9: 2 | C9: toothache, kick, unusual, vital, wavy, witness | D9: อาการปวดฟัน, เตะ, ผิดปกติ, จำเป็น, เป็นลอน, พยาน | F9: 1844 | I9: Pronouns | J9: =COUNTIF(INDIRECT(CONCATENATE("'2013 WordList'!G"&$J$2&":G"&$J$3)),"pron") -> 1 | M9: Pronouns | N9: 3 | O9: 6 | P9: 4 | Q9: 0 | R9: 0 | S9: 0 | T9: =COUNTIF(INDIRECT(CONCATENATE("'2013 WordList'!G"&$T$2&":G"&$T$3)),"pron") -> 6 | V9: per week | W9: 18 | X9: 18 | Y9: 18 | Z9: 20 | AA9: 20 | AB9: 20 | AC9: 20 | AD9: 20 | AE9: 20
A10: 3 | B10: 3 | C10: advice, amount, balanced, double, calorie, swollen | D10: คำแนะนำ, จำนวน, สมดุลย์, สอง, หน่วยพลังงานเป็นแคลอรี, ปูด | F10: 1850 | I10: Prepositions | J10: =COUNTIF(INDIRECT(CONCATENATE("'2013 WordList'!G"&$J$2&":G"&$J$3)),"prep") -> 2 | M10: Prepositions | N10: 7 | O10: 7 | P10: 2 | Q10: 1 | R10: 0 | S10: 0 | T10: =COUNTIF(INDIRECT(CONCATENATE("'2013 WordList'!G"&$T$2&":G"&$T$3)),"prep") -> 10 | V10: weeks | W10: =W8/W9 -> 40 | X10: =X8/X9 -> 40 | Y10: 40 | Z10: 40 | AA10: 40 | AB10: 40 | AC10: 40 | AD10: 40 | AE10: 40
A11: 4 | B11: 1 | C11: trade, obvious, cheers, chilli, clam, colouring | D11: การค้า, ชัดเจน, ไชโย, น้ำพริก, หอย, การระบายสี | F11: 1856 | I11: Conjunctions | J11: =COUNTIF(INDIRECT(CONCATENATE("'2013 WordList'!G"&$J$2&":G"&$J$3)),"conj") -> 1 | M11: Conjunctions | N11: 0 | O11: 3 | P11: 1 | Q11: 0 | R11: 0 | S11: 0 | T11: =COUNTIF(INDIRECT(CONCATENATE("'2013 WordList'!G"&$T$2&":G"&$T$3)),"conj") -> 4 | V11: Total | W11: =W6 -> 720 | X11: =X6 -> 1440 | Y11: 2160 | Z11: 2960 | AA11: 3760 | AB11: 4560 | AC11: =WordLists!N1 -> Line | AD11: =WordLists!I1 -> Line | AE11: =WordLists!S1 -> Line
A12: 4 | B12: 2 | C12: compound, handkerchief, crush, dairy, simply, accommodation | D12: สารประกอบ, ผ้าเช็ดหน้า, บด, โรงรีดนม, เพียงแค่, ที่พัก | F12: 1862 | I12: Expressions | J12: =COUNTIF(INDIRECT(CONCATENATE("'2013 WordList'!G"&$J$2&":G"&$J$3)),"exp") -> 1 | M12: Expressions | N12: 4 | O12: 3 | P12: 2 | Q12: 0 | R12: 1 | S12: 0 | T12: =COUNTIF(INDIRECT(CONCATENATE("'2013 WordList'!G"&$T$2&":G"&$T$3)),"exp") -> 9
A13: 4 | B13: 3 | C13: gap, per, flavour, machine, follow, cushion | D13: ช่องว่าง, ต่อ, รสชาติ, เครื่องจักรกล, ปฏิบัติตาม, เขนย | F13: 1868
A14: 5 | B14: 1 | C14: diet, salary, in spite of, taxi, junk, label | D14: อาหาร, เงินเดือน, แม้, รถแท็กซี่, สำเภา, ฉลาก | F14: 1874 | U14: List below provides row numbers for L_Vocab and U_Vocab, M List, Sent List, Mix_List | AE14: TOEFL, SAT, AWL Wordlists
A15: 5 | B15: 2 | C15: lifestyle, margarine, seldom, trumpet, nerve, ending | D15: วิถีการดำเนินชีวิต, เนยเทียม, ไม่ค่อยจะ, แตรลำโพง, เส้นประสาท, สิ้นสุด | F15: 1880 | I15: Adj.Wk and Adj_List | M15: Semester 2 | N15: 1 | O15: 2 | P15: 3 | Q15: 4 | R15: 5 | S15: 6 | W15: M | X15: Set/Wk | Y15: Sem | Z15: Start | AA15: Add | AB15: Total | AC15: Limit | AE15: Col. | AF15: Row | AG15: Sem 1 Max
A16: 5 | B16: 3 | C16: oyster, collar, swing, shame, pineapple, mate | D16: หอยนางรม, ปก, แกว่ง, ความอัปยศ, สับปะรด, เพื่อน | F16: 1886 | I16: Choice | J16: Set | M16: Xl Row start | N16: 362 | O16: 1082 | P16: 1802 | Q16: 2562 | R16: 3362 | S16: 4162 | U16: 30 | V16: M List (syn) | W16: =Syn.Wksheet!B3 -> 5 | X16: =Syn.Wksheet!I3 -> 18 | Y16: =Syn.Wksheet!K3 -> 1 | Z16: =IF(Y16=1,HLOOKUP(W16,$W$2:$AB$3,2),HLOOKUP(W16,$W$2:$AB$5,4)) -> 2961 | AA16: =(U16*X16)-U16 -> 510 | AB16: =AA16+Z16 -> 3471 | AC16: =AB16+U16 -> 3501 | AE16: =VLOOKUP(W16,$U$23:$W$31,3) -> 0 | AF16: =IF(Y16=2,X16*U16-U16+1+AG16,X16*U16-U16+1) -> 511 | AG16: =U16*Z35-U16+1 -> 361
A17: 6 | B17: 1 | C17: progress, continue, rainbow, raisin, raspberry, recipe | D17: ความคืบหน้า, ต่อ, รุ้ง, ลูกเกด, ราสเบอร์รี่, ตำรับ | F17: 1892 | I17: =Adj.Wksheet!H3 -> 7 | J17: 1 | M17: Xl Row end | N17: 721 | O17: 1441 | P17: 2161 | Q17: 2961 | R17: 3761 | S17: 4561 | U17: 20 | V17: S_List (comp) | W17: =Sent.Wksheet!B3 -> 1 | X17: =Sent.Wksheet!I3 -> 1 | Y17: =Sent.Wksheet!K3 -> 2 | Z17: =IF(Y17=1,HLOOKUP(W17,$W$2:$AB$3,2),HLOOKUP(W17,$W$2:$AB$5,4)) -> 361 | AA17: =(U17*X17)-U17 -> 0 | AB17: =AA17+Z17 -> 361 | AC17: 381 | AE17: =VLOOKUP(W17,$U$23:$W$31,3) -> 0 | AF17: =IF(Y17=2,X17*U17-U17+1+AG17,X17*U17-U17+1) -> 382 | AG17: =U17*AA42-U17+1 -> 381
A18: 6 | B18: 2 | C18: brief, revise, primary, saturated fat, skip, sliced | D18: สั้น, แก้ไข, ประถม, ไขมันอิ่มตัว, โดด, เป็นชิ้นบาง | F18: 1898 | J18: 2 | M18: Total | N18: 360 | O18: 360 | P18: 360 | Q18: 400 | R18: 400 | S18: 400 | U18: 18 | V18: Basic Vocab | W18: =L_Vocab!B3 -> 1 | X18: =L_Vocab!D3 -> 1 | Y18: =L_Vocab!G3 -> 2 | Z18: =IF(Y18=1,HLOOKUP(W18,$W$2:$AB$3,2),HLOOKUP(W18,$W$2:$AB$5,4)) -> 361 | AA18: =(U18*X18)-U18 -> 0 | AB18: =AA18+Z18 -> 361 | AC18: =AB18+U18 -> 379 | AE18: 0 | AF18: 344 | AG18: =U18*AB42-U18+1 -> 343
A19: 6 | B19: 3 | C19: almond, source, spinach, sprinkle, substance, suggest | D19: อัลมอนด์, แหล่ง, ผักขม, โรย, สสาร, แนะนำ | F19: 1904 | I19: Row # | J19: 3 | M19: Nouns | N19: 212 | O19: 188 | P19: 228 | Q19: 172 | R19: 169 | S19: 138 | U19: 20 | V19: Adv. Vocab | W19: =U_Vocab!B3 -> 5 | X19: =U_Vocab!D3 -> 10 | Y19: =U_Vocab!G3 -> 2 | Z19: =IF(Y19=1,HLOOKUP(W19,$W$2:$AB$3,2),HLOOKUP(W19,$W$2:$AB$5,4)) -> 3361 | AA19: 180 | AB19: 3541 | AC19: =AB19+U19 -> 3561 | AE19: 0 | AF19: 562 | AG19: =U19*AC42-U19+1 -> 381
A20: 7 | B20: 1 | C20: syrup, comparison, local, underprivileged, vanilla, curtain | D20: น้ำเชื่อม, การเปรียบเทียบ, ในประเทศ, ผู้ด้อยโอกาส, วานิลลา, ม่าน | F20: 1910 | I20: =VLOOKUP(I17,I41:J56,2) -> 121 | J20: 4 | M20: Verbs | N20: 76 | O20: 70 | P20: 59 | Q20: 96 | R20: 105 | S20: 139 | U20: 20 | V20: M_List (Order) | W20: =Mix_Wksheet!B3 -> 6 | X20: =Mix_Wksheet!D3 -> 4 | Y20: =Mix_Wksheet!G3 -> 2 | Z20: =IF(Y20=1,HLOOKUP(W20,$W$2:$AB$3,2),HLOOKUP(W20,$W$2:$AB$5,4)) -> 4161 | AA20: 60 | AB20: =AA20+Z20 -> 4221 | AC20: =AB20+U20 -> 4241 | AE20: =VLOOKUP(W20,$U$23:$W$31,3) -> 0 | AF20: =IF(Y20=2,X20*U20-U20+1+AG20,X20*U20-U20+1) -> 442 | AG20: =U20*AA42-U20+1 -> 381
A21: 7 | B21: 2 | C21: speed, yeast, aluminium, shake, can, carbon | D21: ความเร็ว, ยีสต์, อลูมิเนียม, เขย่า, สามารถ, คาร์บอน | F21: 1916 | J21: 5 | M21: Adjectives | N21: 49 | O21: 68 | P21: 62 | Q21: 125 | R21: 126 | S21: 104
A22: 7 | B22: 3 | C22: neutral, chunk, claim, cottage, current, detached | D22: เป็นกลาง, ก้อน, อ้าง, กระท่อม, ปัจจุบัน, สันโดษ | F22: 1922 | J22: 6 | M22: Adverbs | N22: 13 | O22: 15 | P22: 6 | Q22: 6 | R22: 0 | S22: 13 | Z22: Syn | AA22: Comp | AB22: L_Voc | AC22: U_Voc
A23: 8 | B23: 1 | C23: disappear, disrupt, fabric, failure, flat, fleece | D23: หายไป, ทำลาย, ผ้า, ความล้มเหลว, แบน, ขนแกะ | F23: 1928 | J23: 7 | M23: Pronouns | N23: 2 | O23: 6 | P23: 1 | Q23: 0 | R23: 0 | S23: 0 | U23: 1 | V23: Matthayom | Y23: Sets | Z23: 1 | AA23: 1 | AB23: 1 | AC23: 1
A24: 8 | B24: 2 | C24: flush, fossil, fuel, flow, global, warming | D24: เปี่ยม, ฟอสซิล, เชื้อเพลิง, ไหล, ทั่วโลก, การร้อนขึ้น | F24: 1934 | J24: 8 | M24: Prepositions | N24: 3 | O24: 9 | P24: 2 | Q24: 1 | R24: 0 | S24: 4 | U24: 2 | Z24: 2 | AA24: 2 | AB24: 2 | AC24: 2
A25: 8 | B25: 3 | C25: gold, lower, publish, ice cap, shelf, leather | D25: ทอง, ลด, ประกาศ, น้ำแข็ง, หิ้ง, หนังสัตว์ | F25: 1940 | J25: 9 | M25: Conjunctions | N25: 3 | O25: 3 | P25: 1 | Q25: 0 | R25: 0 | S25: 2 | U25: 3 | Z25: 3 | AA25: 3 | AB25: 3 | AC25: 3
A26: 9 | B26: 1 | C26: ward, occur, owe, palaeontology, pavement, photovoltaic | D26: ท้องที่, เกิดขึ้น, เป็นหนี้, วิชาที่ว่าด้วยสัตว์และพืชดึกดำบรรพ์, ทางเท้า, แผงเซลล์แสงอาทิตย์ | F26: 1946 | J26: 10 | M26: Expressions | N26: 2 | O26: 1 | P26: 1 | Q26: 0 | R26: 0 | S26: 0 | U26: 4 | Z26: 4 | AA26: 4 | AB26: 4 | AC26: 4
A27: 9 | B27: 2 | C27: cell, plant, advanced, pollute, predict, rate | D27: เซลล์, พืช, สูง, ก่อให้เกิดมลพิษ, ทำนาย, อัตรา | F27: 1952 | J27: 11 | U27: 5 | Z27: 5 | AA27: 5 | AB27: 5 | AC27: 5
A28: 9 | B28: 3 | C28: recycle, renewable, process, semi-detached, flute, skyscraper | D28: รีไซเคิล, ทดแทน, กระบวนการ, บ้านแฝด, ขลุ่ย, ตึกระฟ้า | F28: 1958 | J28: 12 | U28: 6 | Z28: 6 | AA28: 6 | AB28: 6 | AC28: 6
A29: 10 | B29: 1 | C29: solar, panel, sort, steel, sweatshirt, synthetic | D29: โซลา, แผงหน้าปัด, ประเภท, เหล็ก, เสื้อสวมหัว, สังเคราะห์ | F29: 1964 | J29: 13 | M29: TOTAL | N29: M1 | O29: M2 | P29: M3 | Q29: M4 | R29: M5 | S29: M6 | U29: 7 | V29: TOEFL | W29: N | Z29: 7 | AA29: 7 | AB29: 7 | AC29: 7
A30: 10 | B30: 2 | C30: tank, terraced, tonne, useless, warn, wigwam | D30: ถัง, เป็นระเบียง, ตัน, ไร้ประโยชน์, เตือน, กระท่อมชาวอินเดียนแดง | F30: 1970 | J30: 14 | M30: Xl Row start | N30: =W3+1 -> 2 | O30: =X3+1 -> 722 | P30: 1442 | Q30: 2162 | R30: 2962 | S30: 3762 | U30: 8 | V30: SAT | W30: I | Z30: 8 | AA30: 8 | AB30: 8 | AC30: 8
A31: 10 | B31: 3 | C31: multiply, wool, wrapper, due to, spy, motorbike | D31: คูณ, ขน, เสื้อคลุม, เพราะ, สอดแนม, รถมอเตอร์ไซค์ | F31: 1976 | J31: 15 | M31: Xl Row end | N31: =W6+1 -> 721 | O31: =X6+1 -> 1441 | P31: 2161 | Q31: 2961 | R31: 3761 | S31: 4561 | U31: 9 | V31: AWL | W31: S | Z31: 9 | AA31: 9 | AB31: 9 | AC31: 9
A32: 11 | B32: 1 | C32: advert, author, autobiography, fond, keen, mad about | D32: อ้างอิง, ผู้เขียน, อัตชีวประวัติ, รัก, ใฝ่ใจ, บ้าเกี่ยวกับ | F32: 1982 | M32: Total | N32: =SUM(N33:N40) -> 720 | O32: =SUM(O33:O40) -> 720 | P32: 720 | Q32: 800 | R32: 800 | S32: 800 | Z32: 10 | AA32: 10 | AB32: 10 | AC32: 10
A33: 11 | B33: 2 | C33: biography, bookworm, compare, channel, thunderstorm, comic | D33: ชีวประวัติ, หนอนหนังสือ, เปรียบเทียบ, ช่อง, ฝนฟ้าคะนอง, ตลก | F33: 1988 | M33: Nouns | N33: =COUNTIF(INDIRECT(CONCATENATE("'2013 WordList'!G"&N$30&":G"&N$31)),"noun") -> 423 | O33: =COUNTIF(INDIRECT(CONCATENATE("'2013 WordList'!G"&O$30&":G"&O$31)),"noun") -> 392 | P33: 437 | Q33: 353 | R33: 344 | S33: 307 | V33: Sem | W33: 1 | Z33: 11 | AA33: 11 | AB33: 11 | AC33: 11
A34: 11 | B34: 3 | C34: =INDIRECT(CONCATENATE("'2013 WordList'!H",$F34))&", "&INDIRECT(CONCATENATE("'2013 WordList'!H",$F34+1))&", "&INDIRECT(CONCATENATE("'2013 WordList'!H",$F34+2))&", "&INDIRECT(CONCATENATE("'2013 WordList'!H",$F34+3))&", "&INDIRECT(CONCATENATE("'2013 WordList'!H",$F34+4))&", "&INDIRECT(CONCATENATE("'2013 WordList'!H",$F34+5)) -> couple, cute, dictionary, encyclopedia, spontaneously, fireplace | D34: =INDIRECT(CONCATENATE("'2013 WordList'!F",$F34))&", "&INDIRECT(CONCATENATE("'2013 WordList'!F",$F34+1))&", "&INDIRECT(CONCATENATE("'2013 WordList'!F",$F34+2))&", "&INDIRECT(CONCATENATE("'2013 WordList'!F",$F34+3))&", "&INDIRECT(CONCATENATE("'2013 WordList'!F",$F34+4))&", "&INDIRECT(CONCATENATE("'2013 WordList'!F",$F34+5)) -> คู่, น่ารัก, พจนานุกรม, สารานุกรม, เป็นธรรมชาติ, เตาผิง | F34: 1994 | M34: Verbs | N34: =COUNTIF(INDIRECT(CONCATENATE("'2013 WordList'!G"&N$30&":G"&N$31)),"verb") -> 128 | O34: =COUNTIF(INDIRECT(CONCATENATE("'2013 WordList'!G"&O$30&":G"&O$31)),"verb") -> 131 | P34: 139 | Q34: 197 | R34: 197 | S34: 262 | W34: 2 | Z34: 12 | AA34: 12 | AB34: 12 | AC34: 12
A35: 12 | B35: 1 | C35: fissure, girlfriend, grin, historical, novel, imprison | D35: ระแหง, แฟน, การยิ้มกว้าง, ประวัติศาสตร์, นวนิยาย, กักขัง | F35: =F34+$H$4 -> 2000 | M35: Adjectives | N35: =COUNTIF(INDIRECT(CONCATENATE("'2013 WordList'!G"&N$30&":G"&N$31)),"adj") -> 118 | O35: =COUNTIF(INDIRECT(CONCATENATE("'2013 WordList'!G"&O$30&":G"&O$31)),"adj") -> 126 | P35: 115 | Q35: 240 | R35: 256 | S35: 206 | Z35: 13 | AA35: 13 | AB35: 13 | AC35: 13
A36: 12 | B36: 2 | C36: worth, item, it, list, lie, demand | D36: คุ้มค่า, ชิ้น, มัน, รายการ, นอน, ความต้องการ | F36: 2006 | M36: Adverbs | N36: =COUNTIF(INDIRECT(CONCATENATE("'2013 WordList'!G"&N$30&":G"&N$31)),"adv") -> 27 | O36: =COUNTIF(INDIRECT(CONCATENATE("'2013 WordList'!G"&O$30&":G"&O$31)),"adv") -> 33 | P36: 15 | Q36: 8 | R36: 2 | S36: 19 | Z36: 14 | AA36: 14 | AB36: 14 | AC36: 14
A37: 12 | B37: 3 | C37: already, milkshake, carpet, handle, pull in, recommend | D37: แล้ว, นมผสมไอศกรีม, พรม, จัดการ, กระแหม่ว, แนะนำ | F37: 2012 | M37: Pronouns | N37: =COUNTIF(INDIRECT(CONCATENATE("'2013 WordList'!G"&N$30&":G"&N$31)),"pron") -> 5 | O37: =COUNTIF(INDIRECT(CONCATENATE("'2013 WordList'!G"&O$30&":G"&O$31)),"pron") -> 12 | P37: 5 | Q37: 0 | R37: 0 | S37: 0 | U37: Due to Error in Excel: | Z37: 15 | AA37: 15 | AB37: 15 | AC37: 15
A38: 13 | B38: 1 | C38: remote, control, somatic, crossing, economics, customer | D38: ห่างไกล, ควบคุม, เกี่ยวกับโพรงของร่างกาย, ที่ข้าม, เศรษฐศาสตร์, ลูกค้า | F38: 2018 | I38: Noun-Adj-Adv Build | M38: Prepositions | N38: =COUNTIF(INDIRECT(CONCATENATE("'2013 WordList'!G"&N$30&":G"&N$31)),"prep") -> 10 | O38: =COUNTIF(INDIRECT(CONCATENATE("'2013 WordList'!G"&O$30&":G"&O$31)),"prep") -> 16 | P38: 4 | Q38: 2 | R38: 0 | S38: 4 | U38: Data Validation for M - Week - Sem | Z38: 16 | AA38: 16 | AB38: 16 | AC38: 16
A39: 13 | B39: 2 | C39: set, soap, sort out, subscription, suburb, tele | D39: ตั้ง, สบู่, สังคายนา, สมัคร, ชานเมือง, โทรคมนาคม | F39: 2024 | M39: Conjunctions | N39: =COUNTIF(INDIRECT(CONCATENATE("'2013 WordList'!G"&N$30&":G"&N$31)),"conj") -> 3 | O39: =COUNTIF(INDIRECT(CONCATENATE("'2013 WordList'!G"&O$30&":G"&O$31)),"conj") -> 6 | P39: 2 | Q39: 0 | R39: 0 | S39: 2 | U39: is now in U:W on each Wksheet | Z39: 17 | AA39: 17 | AB39: 17 | AC39: 17
A40: 13 | B40: 3 | C40: mark, excellent, unrealistic, ups and downs, statement, forecast | D40: ทำเครื่องหมาย, ยอดเยี่ยม, ไม่สมจริง, อัพและดาวน์, คำแถลง, พยากรณ์ | F40: 2030 | I40: Chk | J40: Row | M40: Expressions | N40: =COUNTIF(INDIRECT(CONCATENATE("'2013 WordList'!G"&N$30&":G"&N$31)),"exp") -> 6 | O40: =COUNTIF(INDIRECT(CONCATENATE("'2013 WordList'!G"&O$30&":G"&O$31)),"exp") -> 4 | P40: 3 | Q40: 0 | R40: 1 | S40: 0 | Z40: 18 | AA40: 18 | AB40: 18 | AC40: 18
A41: 14 | B41: 1 | C41: unit, genetic, modify, belief, boar, butterfly | D41: หน่วย, ทางพันธุกรรม, แก้ไข, ความเชื่อ, หมูป่า, ผีเสื้อ | F41: 2036 | I41: 1 | J41: 2 | M41: PET | N41: =COUNTIF((INDIRECT(CONCATENATE("'2013 WordList'!M",N30,":M",N31))),1) -> 561 | O41: =COUNTIF((INDIRECT(CONCATENATE("'2013 WordList'!M",O30,":M",O31))),1) -> 579 | P41: 439 | Q41: 19 | R41: 9 | S41: =COUNTIF((INDIRECT(CONCATENATE("'2013 WordList'!M",S30,":M",S31))),1) -> 54 | Z41: 19 | AA41: 19 | AB41: 19 | AC41: 19
A42: 14 | B42: 2 | C42: hoax, horse, celtic, legend, terrible, fortunately | D42: หลอกลวง, ม้า, เซลติก, ตำนาน, น่ากลัว, โชคดี | F42: 2042 | I42: 2 | J42: 21 | M42: SAT | N42: =COUNTIF((INDIRECT(CONCATENATE("'2013 WordList'!n",N30,":n",N31))),1) -> 2 | O42: =COUNTIF((INDIRECT(CONCATENATE("'2013 WordList'!n",O30,":n",O31))),1) -> 1 | P42: 7 | Q42: 466 | R42: 527 | S42: =COUNTIF((INDIRECT(CONCATENATE("'2013 WordList'!n",S30,":n",S31))),1) -> 19 | Z42: 20 | AA42: 20 | AB42: 20 | AC42: 20
A43: 14 | B43: 3 | C43: fortune, cookie, four leaf clover, improve, joke, just in case | D43: โชคลาภ, คุกกี้, ไม้จำพวกถั่ว, ปรับปรุง, ตลก, เพียงในกรณีที่ | F43: 2048 | I43: 3 | J43: 41 | M43: AWL | N43: =COUNTIF((INDIRECT(CONCATENATE("'2013 WordList'!O",N30,":O",N31))),1) -> 18 | O43: =COUNTIF((INDIRECT(CONCATENATE("'2013 WordList'!O",O30,":O",O31))),1) -> 38 | P43: 67 | Q43: 41 | R43: 38 | S43: =COUNTIF((INDIRECT(CONCATENATE("'2013 WordList'!O",S30,":O",S31))),1) -> 481
A44: 15 | B44: 1 | C44: arrest, attend, left-handed, shade, charm, midsummer | D44: จับกุม, ดูแล, ด้วยมือซ้าย, สี, เสน่ห์, กลางฤดูร้อน | F44: 2054 | I44: 4 | J44: 61 | M44: TOEFL | N44: =COUNTIF((INDIRECT(CONCATENATE("'2013 WordList'!P",N30,":P",N31))),1) -> 29 | O44: =COUNTIF((INDIRECT(CONCATENATE("'2013 WordList'!P",O30,":P",O31))),1) -> 32 | P44: 61 | Q44: 324 | R44: 267 | S44: =COUNTIF((INDIRECT(CONCATENATE("'2013 WordList'!P",S30,":P",S31))),1) -> 362 | Z44: Items | AA44: Alt. | AB44: Alt. | AD44: TOTAL
A45: 15 | B45: 2 | C45: visa, monkey, note, oak, tree, otherwise | D45: วีซ่า, ลิง, หมายเหตุ, โอ๊ก, ต้นไม้, มิฉะนั้น | F45: 2060 | I45: 5 | J45: 81 | M45: total | N45: =SUM(N41:N44) -> 610 | O45: =SUM(O41:O44) -> 650 | P45: 574 | Q45: 850 | R45: 841 | S45: 916 | V45: Worksheets | W45: Weeks | X45: Levels | Y45: Sheets | Z45: p/sht | AA45: p/item | AB45: Sum | AD45: Exercises
A46: 15 | B46: 3 | C46: ox, nightclub, lift, rat, ribbon, width | D46: วัว, ไนท์คลับ, ยก, หนู, ริบบิ้น, ความกว้าง | F46: 2066 | I46: 6 | J46: 101 | M46: TOTAL | N46: M1 | O46: M2 | P46: M3 | Q46: M4 | R46: M5 | S46: M6 | V46: LV (Word def) | W46: 20 | X46: 3 | Y46: =W46*X46 -> 60 | Z46: 18 | AA46: 1 | AB46: =Z46*AA46 -> 18 | AD46: =Y46*AB46 -> 1080
A47: 16 | B47: 1 | C47: rural, stiff, doubt, sheep, thief, story | D47: ชนบท, แข็ง, สงสัย, แกะ, ขโมย, เรื่องราว | F47: 2072 | I47: 7 | J47: 121 | M47: PET % | N47: =N41/N45 -> 0.9196721311 | O47: =O41/O45 -> 0.8907692308 | P47: 0.7648083624 | Q47: 0.02235294118 | R47: 0.01070154578 | S47: 0.05895196507 | V47: LV (Scramble) | W47: 20 | X47: 3 | Y47: 60 | Z47: 18 | AA47: 1 | AB47: 18 | AD47: 1080
A48: 16 | B48: 2 | C48: shortly, cruise, laundry, spill, action, tiger | D48: ในไม่ช้า, ล่องเรือ, ซักรีด, หก, การกระทำ, เสือ | F48: 2078 | I48: 8 | J48: 141 | M48: SAT % | N48: =N42/N45 -> 0.003278688525 | O48: =O42/O45 -> 0.001538461538 | P48: 0.01219512195 | Q48: 0.5482352941 | R48: 0.6266349584 | S48: 0.02074235808 | V48: UV (Word def) | W48: 20 | X48: 6 | Y48: 120 | Z48: 20 | AA48: 1 | AB48: 20 | AD48: 2400
A49: 16 | B49: 3 | C49: mend, regular, region, unravel, video, wishbone | D49: ซ่อม, ปกติ, ภูมิภาค, คลี่คลาย, วีดีโอ, ง่าม | F49: 2084 | I49: 9 | J49: 161 | M49: AWL % | N49: =N43/N45 -> 0.02950819672 | O49: =O43/O45 -> 0.05846153846 | P49: 0.1167247387 | Q49: 0.04823529412 | R49: 0.0451843044 | S49: 0.5251091703 | V49: UV (Scramble) | W49: 20 | X49: 6 | Y49: 120 | Z49: 20 | AA49: 1 | AB49: 20 | AD49: 2400
A50: 17 | B50: 1 | C50: restaurant, yawn, zodiac, approach, at least, atom | D50: ร้านอาหาร, หาว, ราศี, เข้าใกล้, อย่างน้อยที่สุด, อะตอม | F50: 2090 | I50: 10 | J50: 181 | M50: TOEFL % | N50: =N44/N45 -> 0.04754098361 | O50: =O44/O45 -> 0.04923076923 | P50: 0.106271777 | Q50: 0.3811764706 | R50: 0.3174791914 | S50: 0.3951965066 | V50: Sentences | W50: 20 | X50: 9 | Y50: 180 | Z50: 20 | AA50: 2 | AB50: 40 | AD50: 7200
A51: 17 | B51: 2 | C51: booklet, caddy, career, picnic, cleaner, declension | D51: หนังสือเล่มเล็ก ๆ, นวมกาน้ำร้อน, อาชีพ, ปิกนิก, ทำความสะอาด, วิภัตติ | F51: 2096 | I51: 11 | J51: 201 | V51: Synonyms | W51: 20 | X51: 9 | Y51: 180 | Z51: 30 | AA51: 2 | AB51: 60 | AD51: 10800
A52: 17 | B52: 3 | C52: zebra, student, fail, designer, excuse, picker | D52: ม้าลาย, นักเรียน, ล้มเหลว, นักออกแบบ, แก้ตัว, ขโมย | F52: 2102 | I52: 12 | J52: 221 | V52: NounAdjAdv | W52: 15 | X52: 1 | Y52: 15 | Z52: 20 | AA52: 3 | AB52: 60 | AD52: 900
A53: 18 | B53: 1 | C53: gender, hairdresser, hydrogen, jeweller, optional, full | D53: เพศ, ช่างทำผม, ไฮโดรเจน, พ่อค้าซื้อทำหรือซ่อมเพชรพลอย, ไม่จำเป็น, เต็ม | F53: 2108 | I53: 13 | J53: 241 | V53: Mix Sentence | W53: 20 | X53: 9 | Y53: 180 | Z53: 15 | AA53: 1 | AB53: 15 | AD53: 2700
A54: 18 | B54: 2 | C54: oxygen, paperboy, pass, petrol, magic, secretary | D54: ออกซิเจน, เด็กขายหนังสือพิมพ์, ส่ง, เบนซิน, มายากล, เลขานุการ | F54: 2114 | I54: 14 | J54: 261 | V54: TOTAL | Y54: =SUM(Y46:Y53) -> 915 | Z54: =AVERAGE(Z46:Z53) -> 20.125 | AA54: Average | AB54: =AVERAGE(AB46:AB53) -> 31.375 | AC54: =SUM(AD46:AD53) -> 28560 | AE54: TOTAL
A55: 18 | B55: 3 | C55: bridge, sense, shadow, assistant, sociable, sometime | D55: สะพาน, ความรู้สึก, เงา, ผู้ช่วย, เป็นกันเอง, บางครั้ง | F55: 2120 | I55: 15 | J55: 281 | Z55: Items/sheet | AB55: Alternatives / sheet
A56: 19 | B56: 1 | C56: unsettled, repair, anatomy, zero, ring, specialisation | D56: ยังไม่เรียบร้อย, ซ่อมแซม, กายวิภาคศาสตร์, ศูนย์, แหวน, ความเชี่ยวชาญ | F56: 2126 | I56: 16 | J56: 301
A57: 19 | B57: 2 | C57: surgeon, vaccination, ancestor, epidemic, heritage, hunter | D57: ศัลยแพทย์, การฉีดวัคซีน, บรรพบุรุษ, ที่ระบาด, มรดก, ผู้ล่า | F57: 2132
A58: 19 | B58: 3 | C58: landscape, migration, relocation, reserve, unbreakable, weapon | D58: ภูมิประเทศ, การย้ายถิ่น, การย้ายถิ่นฐาน, สำรอง, ไม่รู้จักแตก, อาวุธ | F58: 2138
A59: 20 | B59: 1 | C59: staff, employment, foreign, affair, run, adequate | D59: บุคลากร, การจ้าง, ต่างประเทศ, เรื่อง, ประกอบธุรกิจ, เพียงพอ | F59: 2144
A60: 20 | B60: 2 | C60: agriculture, at the risk of, exploitation, fishery, forestry, fund | D60: การเกษตร, ที่เสี่ยงต่อการ, การแสวงหาผลประโยชน์, ประมง, การป่าไม้, กองทุน | F60: 2150
A61: 20 | B61: 3 | C61: shelter, throughout, authoritative, broadcaster, latest, mogul | D61: ที่กำบัง, ตลอด, เผด็จการ, โฆษก, ล่าสุด, เจ้าพ่อ | F61: 2156
A63: Wk | B63: Pt | C63: Eng | D63: Thai | F63: Rows | H63: Sem | I63: Wordlist M | J63: 5
A64: 1 | B64: 1 | C64: =INDIRECT(CONCATENATE("'2013 WordList'!H",$F64))&", "&INDIRECT(CONCATENATE("'2013 WordList'!H",$F64+1))&", "&INDIRECT(CONCATENATE("'2013 WordList'!H",$F64+2))&", "&INDIRECT(CONCATENATE("'2013 WordList'!H",$F64+3))&", "&INDIRECT(CONCATENATE("'2013 WordList'!H",$F64+4))&", "&INDIRECT(CONCATENATE("'2013 WordList'!H",$F64+5))&", "&INDIRECT(CONCATENATE("'2013 WordList'!H",$F64+6))&", "&INDIRECT(CONCATENATE("'2013 WordList'!H",$F64+7))&", "&INDIRECT(CONCATENATE("'2013 WordList'!H",$F64+8))&", "&INDIRECT(CONCATENATE("'2013 WordList'!H",$F64+9)) -> byzantine, inscrutable, automaton, baleful, berserk, miscellany, bastion, congenial, astronomical, agility | D64: =INDIRECT(CONCATENATE("'2013 WordList'!F",$F64))&", "&INDIRECT(CONCATENATE("'2013 WordList'!F",$F64+1))&", "&INDIRECT(CONCATENATE("'2013 WordList'!F",$F64+2))&", "&INDIRECT(CONCATENATE("'2013 WordList'!F",$F64+3))&", "&INDIRECT(CONCATENATE("'2013 WordList'!F",$F64+4))&", "&INDIRECT(CONCATENATE("'2013 WordList'!F",$F64+5))&", "&INDIRECT(CONCATENATE("'2013 WordList'!F",$F64+6))&", "&INDIRECT(CONCATENATE("'2013 WordList'!F",$F64+7))&", "&INDIRECT(CONCATENATE("'2013 WordList'!F",$F64+8))&", "&INDIRECT(CONCATENATE("'2013 WordList'!F",$F64+9)) -> ไบเซนไทน์, ลึกลับ, หุ่นยนต์, ร้ายกาจ, บ้าดีเดือด, เรื่องจิปาถะ, ป้อมปราการ, ถูกใจ, มหึมา, ความว่องไว | F64: =J64 -> 3362 | H64: 2 | I64: Xl Row start | J64: =IF(H64=1,HLOOKUP(J63,Q1:S3,2),HLOOKUP(J63,Q15:S17,2)) -> 3362
A65: 1 | B65: 2 | C65: =INDIRECT(CONCATENATE("'2013 WordList'!H",$F65))&", "&INDIRECT(CONCATENATE("'2013 WordList'!H",$F65+1))&", "&INDIRECT(CONCATENATE("'2013 WordList'!H",$F65+2))&", "&INDIRECT(CONCATENATE("'2013 WordList'!H",$F65+3))&", "&INDIRECT(CONCATENATE("'2013 WordList'!H",$F65+4))&", "&INDIRECT(CONCATENATE("'2013 WordList'!H",$F65+5))&", "&INDIRECT(CONCATENATE("'2013 WordList'!H",$F65+6))&", "&INDIRECT(CONCATENATE("'2013 WordList'!H",$F65+7))&", "&INDIRECT(CONCATENATE("'2013 WordList'!H",$F65+8))&", "&INDIRECT(CONCATENATE("'2013 WordList'!H",$F65+9)) -> emend, judicious, buccaneer, obviate, banal, impasse, ballyhoo, apportion, munificent, attenuate | D65: =INDIRECT(CONCATENATE("'2013 WordList'!F",$F65))&", "&INDIRECT(CONCATENATE("'2013 WordList'!F",$F65+1))&", "&INDIRECT(CONCATENATE("'2013 WordList'!F",$F65+2))&", "&INDIRECT(CONCATENATE("'2013 WordList'!F",$F65+3))&", "&INDIRECT(CONCATENATE("'2013 WordList'!F",$F65+4))&", "&INDIRECT(CONCATENATE("'2013 WordList'!F",$F65+5))&", "&INDIRECT(CONCATENATE("'2013 WordList'!F",$F65+6))&", "&INDIRECT(CONCATENATE("'2013 WordList'!F",$F65+7))&", "&INDIRECT(CONCATENATE("'2013 WordList'!F",$F65+8))&", "&INDIRECT(CONCATENATE("'2013 WordList'!F",$F65+9)) -> ตรวจทาน, สุขุม, โจรสลัด, ดักคอ, ดาษดื่น, ที่อับจน, การป่าวประกาศอย่างโครมคราม, เจียดเงิน, เอื้อเฟื้อเผื่อแผ่, เจือจาง | F65: =F64+$H$66 -> 3372 | H65: Sets | I65: Xl Row end | J65: =IF(H64=1,HLOOKUP(J63,Q1:S3,3),HLOOKUP(J63,Q15:S17,3)) -> 3761
A66: 2 | B66: 1 | C66: consternation, tether, buffet, bulwark, madrigal, avenge, fetter, winsome, transgress, regale | D66: ความตกตะลึง, โยง, บุฟเฟ่ต์, ป้อมปราการ, บทเพลง, ล้างแค้น, ล่ามโซ่, น่ารัก, ละเมิด, ป้อยอ | F66: =F65+$H$66 -> 3382 | H66: 10 | I66: Total | J66: =SUM(J67:J74) -> 400
A67: 2 | B67: 2 | C67: aria, balk, angular, ardent, celibate, unobtrusive, endemic, scourge, homeopathy, chimerical | D67: เพลง, หยุดชะงัก, เชิงมุม, กระตือรือร้น, โสด, สงบเสงี่ยม, เฉพาะถิ่น, ระบาด, เภสัช, ฝันลมๆแล้งๆ | F67: 3392 | I67: Nouns | J67: =COUNTIF(INDIRECT(CONCATENATE("'2013 WordList'!G"&$J$64&":G"&$J$65)),"noun") -> 169
A68: 3 | B68: 1 | C68: preen, bard, appall, arduous, multiform, oblique, nullity, languor, malcontent, bogus | D68: ไซ้, นักประพันธ์เพลง, กลัวหัวหด, ลำบาก, หลายแบบ, เอียง, การเป็นโมฆะ, ความอ่อนเปลี้ยเพลียแรง, ฮึกฮัก, ปลอม | F68: 3402 | I68: Verbs | J68: =COUNTIF(INDIRECT(CONCATENATE("'2013 WordList'!G"&$J$64&":G"&$J$65)),"verb") -> 105
A69: 3 | B69: 2 | C69: mirth, raconteur, relinquish, invigorate, jaded, epigram, manifesto, arsenal, engaging, anachronistic | D69: ความสนุกสนาน, บุคลิกภาพ, สละ, เติมพลัง, น่าเบื่อ, คำคม, การประกาศ, คลังแสง, ต้องตาต้องใจ, ผิดสมัย | F69: 3412 | I69: Adjectives | J69: =COUNTIF(INDIRECT(CONCATENATE("'2013 WordList'!G"&$J$64&":G"&$J$65)),"adj") -> 126
A70: 4 | B70: 1 | C70: gaffe, itinerant, agglomeration, captious, prodigal, advocate, saccharine, commiserate, jubilant, congruent | D70: การเสียมารยาท, ธุดงค์, การรวมตัวกัน, จู้จี้, ฟุ่มเฟือย, สนับสนุน, น้ำตาลเทียม, สังเวช, ปีติยินดี, สอดคล้องกัน | F70: 3422 | I70: Adverbs | J70: =COUNTIF(INDIRECT(CONCATENATE("'2013 WordList'!G"&$J$64&":G"&$J$65)),"adv") -> 0
A71: 4 | B71: 2 | C71: laudable, unscathed, abusive, candor, mercenary, adverse, apprehensive, wizardry, dapper, diffident | D71: น่ายกย่อง, ปราศจากอันตราย, ปากหมา, น้ำใสใจจริง, ทหารรับจ้าง, ตรงข้าม, เกรงกลัว, เวทมนตร์คาถา, กระฉับกระเฉง, ไม่เชื่อมั่นในตนเอง | F71: 3432 | I71: Pronouns | J71: =COUNTIF(INDIRECT(CONCATENATE("'2013 WordList'!G"&$J$64&":G"&$J$65)),"pron") -> 0
A72: 5 | B72: 1 | C72: beeline, besmirch, vestige, lionize, diversion, tutelage, contumely, gloat, laconic, nirvana | D72: เส้นตรง, สาดโคลน, ร่องรอย, ยกย่องเป็นผู้มีชื่อเสียง, ทางเบี่ยง, การปกครอง, ความดูหมิ่น, ย่ามใจ, ห้วน, นิพพาน | F72: 3442 | I72: Prepositions | J72: =COUNTIF(INDIRECT(CONCATENATE("'2013 WordList'!G"&$J$64&":G"&$J$65)),"prep") -> 0
A73: 5 | B73: 2 | C73: bombardment, blare, commodity, bestial, meddlesome, aftermath, barricade, valedictory, apiary, apotheosis | D73: การระดมยิง, ส่งเสียงดัง, สินค้า, โหดร้าย, แจ๋น, ผลพวง, สิ่งกีดขวาง, อำลา, ที่เลี้ยงผึ้ง, ถวายพระเกียรติ | F73: 3452 | I73: Conjunctions | J73: =COUNTIF(INDIRECT(CONCATENATE("'2013 WordList'!G"&$J$64&":G"&$J$65)),"conj") -> 0
A74: 6 | B74: 1 | C74: junta, aggrandize, feign, allay, bacchanalian, worldly, underwrite, invocation, bellicose, fluke | D74: สภา, แผ่อำนาจ, ประดิษฐ์, บรรเทา, เสเพล, ทางโลก, รับประกัน, การภาวนา, ฮึกห้าว, พยาธิ | F74: 3462 | I74: Expressions | J74: =COUNTIF(INDIRECT(CONCATENATE("'2013 WordList'!G"&$J$64&":G"&$J$65)),"exp") -> 0
A75: 6 | B75: 2 | C75: remorse, assonance, buffoonery, arable, alacrity, facilitate, render, allude, buoyant, skeptical | D75: ความสำนึกผิด, สัมผัสสระ, การเล่นตลกอย่างหยาบๆ, ซึ่งเหมาะแก่การเพาะปลูก, ความกระตือรือร้น, อำนวยความสะดวก, ทำให้, พาดพิงถึง, ร่าเริง, ไม่เชื่อ | F75: 3472
A76: 7 | B76: 1 | C76: perplex, pantomime, subdue, transcendent, linchpin, garish, pariah, perquisite, steadfast, adhere | D76: ฉุกละหุก, โขน, เผด็จ, พ้น, สลัก, หรูหรา, คนนอกคอก, ปิ๋ว, มั่นคง, ยึดมั่น | F76: 3482
A77: 7 | B77: 2 | C77: pander, malapropism, audit, improvident, apropos, aviation, marine, discipline, prosperity, blossom | D77: บำเรอ, คำที่ใช้ผิด ๆ, การตรวจสอบบัญชี, สะเพร่า, ในเรื่อง, การบิน, เรือเดินทะเล, วินัย, ความมั่งคั่ง, ดอก | F77: 3492
A78: 8 | B78: 1 | C78: sanctuary, degradation, complacency, urban, lore, hypersensitive, inactive, coexist, insistence, congestion | D78: วิหาร, การปลด, ความพึงพอใจ, ในเมือง, ตำนาน, ซึ่งมีความรู้สึกไวเกินไป, เฉื่อยชา, อยู่ร่วมกัน, การเรียกร้อง, ความแออัด | F78: 3502
A79: 8 | B79: 2 | C79: exhale, enact, sloth, crooked, insulin, refreshment, prosper, oval, diver, torque | D79: หายใจออก, ออกพระราชบัญญัติ, ความเฉื่อยชา, ทุจริต, อินซูลิน, เครื่องดื่ม, รุ่งเรือง, รูปไข่, ประดาน้ำ, แรงบิด | F79: 3512
A80: 9 | B80: 1 | C80: faucet, strained, sediment, converge, peripheral, consortium, conductivity, dorsal, luminosity, implication | D80: ก๊อกน้ำ, ที่ทำให้เครียดแล้ว, ตะกอน, มาบรรจบกัน, อุปกรณ์ต่อพ่วง, สมาคม, การนำ, ที่หลัง, ความสว่างไสว, ความหมาย | F80: 3522
A81: 9 | B81: 2 | C81: stake, bust, abode, solitary, excavate, weld, automatic, corral, epoch, milestone | D81: เสี่ยง, หน้าอก, เวสน์, โดดเดี่ยว, ขุดค้น, เชื่อม, อัตโนมัติ, จับกุม, ยุค, ขั้น | F81: 3532
A82: 10 | B82: 1 | C82: enzyme, confront, pane, dominant, consecutive, common law, spacecraft, ledge, make clear, crust | D82: เอนไซม์, เผชิญหน้า, บานหน้าต่าง, เด่น, ติดต่อกัน, ระเบียบสังคม, ยานอวกาศ, หิ้ง, แจง, เปลือก | F82: 3542
A83: 10 | B83: 2 | C83: constrict, factor, legacy, timber, substantive, ship, serene, plumber, starvation, exponential | D83: รัด, ปัจจัย, มรดก, ขอนไม้, สำคัญ, เรือ, สงบเงียบ, ช่างประปา, ความอดอยาก, ที่ชี้แจง | F83: 3552
A84: 11 | B84: 1 | C84: bawdy, rapt, arrears, remission, intractable, reproach, regimen, drawl, refractory, lugubrious | D84: ความชั่ว, ใจจดใจจ่อ, งานที่ค้าง, การให้อภัย, ว่ายาก, ต่อว่าต่อขาน, ระบบการปกครอง, ลากเสียง, อาละวาด, โศกสลด | F84: 3562
A85: 11 | B85: 2 | C85: abysmal, affable, aquatic, turpitude, knoll, brouhaha, quirk, limerick, correlation, lassitude | D85: สุดซึ้ง, อ่อนโยน, น้ำ, เลวทรามต่ำช้า, โขด, ความสับสนอลหม่าน, มุมแหลม, โคลงตลก, ความสัมพันธ์, ความเมื่อยล้า | F85: 3572
A86: 12 | B86: 1 | C86: bicker, whim, tendentious, don, withhold, esprit, parochial, motif, hierarchy, affinity | D86: การทะเลาะวิวาท, ราชประสงค์, มีนัย, สวม, ระงับ, ปฏิภาณ, แคบ, แม่ลาย, ลำดับชั้น, ความเป็นพี่น้องกัน | F86: 3582
A87: 12 | B87: 2 | C87: conscript, acquiesce, bereave, baffle, armada, appease, monastic, awe, atrophy, vagary | D87: ที่ถูกเกณฑ์ทหาร, ยอมรับ, ปลิดชีพ, ทำให้ยุ่งเหยิง, กองทัพเรือใหญ่, เอาใจ, สงฆ์, ความกลัว, ฝ่อ, ความไม่แน่นอน | F87: 3592
A88: 13 | B88: 1 | C88: reclaim, mace, marquee, atone, carnal, exhort, euphemism, limpid, bandy, amnesia | D88: เรียกคืน, คทา, ปะรำ, ชดเชย, เต็มไปด้วยตัณหา, ตักเตือน, ศัพท์หรือภาษาที่นุ่มนวล, กระจ่าง, ส่งไปส่งมา, ความจำเสื่อม | F88: 3602
A89: 13 | B89: 2 | C89: bristling, zodiacal, aureole, unkempt, leery, flourish, ameliorate, fulminate, vie, antithesis | D89: ปลาซาร์ดีน, รา, รัศมี, รุงรัง, โกง, อวด, เยียวยา, กริ้ว, แข่งขัน, สิ่งที่ตรงกันข้าม | F89: 3612
A90: 14 | B90: 1 | C90: commensurate, allege, anathema, unremitting, maul, material, dolt, expected, malevolent, pallid | D90: พอสมน้ำสมเนื้อ, กล่าวหา, คำสาปแช่ง, ต่อเนื่อง, ตะครุบ, วัสดุ, คนโง่, ที่คาดหวัง, หิน, ซีด | F90: 3622
A91: 14 | B91: 2 | C91: uncontaminated, rectitude, adjunct, metaphor, trajectory, abet, benevolent, chauvinist, bestow, rout | D91: ที่อยู่ด้านหลัง, ความถูกต้อง, เสริม, คำอุปมา, เส้นโคจร, ยุยง, มีเมตตา, รักชาติ, ประทาน, ปราชัย | F91: 3632
A92: 15 | B92: 1 | C92: edifying, knell, anarchy, skiff, requiem, artifice, simper, diffuse, neologism, palpitate | D92: สั่งสอน, เสียงฆังมรณะ, อนาธิปไตย, เรือกรรเชียงเล็ก ๆ, พิธีมิสชาสำหรับวิญญาณคนตาย, อุบาย, หัวเราะอย่างแหย ๆ, กระจาย, ลัทธิใหม่, ระรัว | F92: 3642
A93: 15 | B93: 2 | C93: paltry, suppress, browbeat, renaissance, amity, antiquated, arraign, misdemeanor, remonstrance, amputate | D93: เล็ก ๆ น้อย ๆ, ปราบปราม, รังแก, ชีวิตใหม่, มิตรภาพ, โบราณ, ออกหมายเรียกตัว, ความผิดทางอาญา, การประท้วง, กุด | F93: 3652
A94: 16 | B94: 1 | C94: deter, gullible, amicable, benign, larceny, acetic, blasphemy, pious, lap, windfall | D94: ยับยั้ง, ใจง่าย, เป็นมิตร, ใจดี, การโจรกรรม, อะซิติก, การดูหมิ่น, เคร่งศาสนา, ตัก, โชคลาภ | F94: 3662
A95: 16 | B95: 2 | C95: burly, ballast, dabble, rationale, labyrinth, quarantine, manumit, ample, appraise, debase | D95: กำยำ, อับเฉา, ทำเล่น ๆ, เหตุผล, เขาวงกต, กักกัน, ปลดปล่อยทาส, เหลือเฟือ, ประเมินค่า, ทำให้เสื่อม | F95: 3672
A96: 17 | B96: 1 | C96: inviolable, grandiose, pluck, brooch, trinket, hoary, verisimilitude, beatific, ovation, efficacious | D96: ขัดขืนไม่ได้, ยิ่งใหญ่, ถอน, เข็มกลัด, สิ่งที่มีค่าเล็ก ๆ น้อย ๆ, ผมหงอก, ผสมผสาน, เป็นสุข, การปรบมือต้อนรับ, ได้ผลชะงัด | F96: 3682
A97: 17 | B97: 2 | C97: mottled, chaff, churlish, versatile, dialect, acquaintance, disputant, unfertilized, controversial, contribution | D97: กระดำกระด่าง, หยอกล้อ, โฉ่งฉ่าง, อเนกประสงค์, ภาษาถิ่น, คนรู้จัก, คู่กรณี, ไม่ได้รับการปฏิสนธิ, ที่เถียงกัน, คุณูปการ | F97: 3692
A98: 18 | B98: 1 | C98: prey, expedition, substantial, plight, subside, revitalization, patent, mime, ounce, object to | D98: เหยื่อ, เดินทาง, เป็นกอบเป็นกำ, สภาพ, ทรุด, การทำให้มีกำลังใหม่, สิทธิบัตร, ละครใบ้, ออนซ์, คัดค้านการ | F98: 3702
A99: 18 | B99: 2 | C99: conceal, burrow, instinct, scare, postdate, cutting remark, prefabricate, intelligible, improvise, mammoth | D99: ปกปิด, โพรง, สัญชาตญาณ, ทำให้ตกใจ, ลงวันภายหลังวันจริง, สบประมาท, ทำเตรียมไว้ก่อน, เข้าใจได้, ว่ากลอนสด, มหึมา | F99: 3712
A100: 19 | B100: 1 | C100: horizontal, gassy, publicize, stagnant, spark, fanatic, moderate, resemble, curator, sustenance | D100: ตามแนวนอน, มีลักษณะเป็นอากาศธาตุเช่น, เผยแพร่, ซบเซา, จุดประกาย, คลั่ง, ปานกลาง, คล้าย, ผู้ปกครอง, การยังชีพ | F100: 3722
A101: 19 | B101: 2 | C101: glimpse, yolk, elicit, apprentice, census, spoil, strike a chord, documentation, molecule, pasture | D101: เหลือบ, ไข่แดง, ล้วงเอา, ฝึกงาน, การสำรวจสำมะโนประชากร, เสีย, สายเส้นประสาท, เอกสาร, อณู, ทุ่งเลี้ยงสัตว์ | F101: 3732
A102: 20 | B102: 1 | C102: reign, distinction, puncture, elite, arthritis, riot, collective, colossus, manoeuvre, influx | D102: ครองราชย์, ความแตกต่างทางสังคม, เจาะ, หัวกะทิ, โรคไขข้อ, จลาจล, โดยรวม, ยักษ์ใหญ่, การซ้อมรบ, การไหลบ่าเข้า | F102: 3742
A103: 20 | B103: 2 | C103: transition, landslide, thrive, majestic, foreshadow, multi-story, fray, matrimonial, recipient, formalize | D103: การเปลี่ยนแปลง, แผ่นดินถล่ม, เจริญเติบโต, คู่บารมี, ส่อให้เห็น, มีหลายชั้น, การต่อสู้, เกี่ยวกับการแต่งงาน, ผู้รับ, ทำพิธี | F103: 3752

Sheet 2013 WordList (hidden)
A1: Line | B1: M | C1: Sem | D1: Week | E1: Part | F1: Thai | G1: Type | H1: Word | I1: Definition | J1: Sentence | K1: Coursebook | L1: PET in Coursebk | M1: PET | N1: SAT | O1: AWL | P1: TOEFL | Q1: Gap sentence | S1: Synonym 1 | T1: Synonym 2 | U1: Synonym 3 | V1: Synonym 4 | X1: Antonym 1 | Y1: Antonym 2 | AA1: ='M Order'!U4 -> 969 | AB1: long def | AC1: long sent | AE1: Antonym 1 | AF1: Antonym 2 | AG1: Word #1 | AH1: Word #2 | AI1: 1 | AJ1: 2 | AK1: 3 | AL1: 4 | AM1: 5 | AN1: 6 | AO1: Total | AP1: http://www.macmillandictionary.com/dictionary/british/vanilla
A2: 1 | B2: 1 | C2: 1 | D2: 1 | E2: 1 | F2: อีกครั้ง | G2: adv | H2: again | I2: once more, or as before | J2: Could you spell your name again, please? | K2: 1 | L2: 1 | M2: =IFERROR(INDEX(WordLists!C:C,MATCH(X2,WordLists!B:B,0)),"") -> 0 | N2: =IFERROR(INDEX(WordLists!H:H,MATCH(X2,WordLists!G:G,0)),"") ->  | O2: =IFERROR(INDEX(WordLists!R:R,MATCH(X2,WordLists!Q:Q,0)),"") ->  | P2: =IFERROR(INDEX(WordLists!M:M,MATCH(X2,WordLists!L:L,0)),"") ->  | Q2: =IFERROR(REPLACE(J2, SEARCH(H2, J2),LEN(H2),"________"),"") -> Could you spell your name ________, please? | S2: repeat | T2: renew | U2: recurrent | V2: cyclical | X2: once | Y2: only | AA2: =LEFT(I2, 5) -> once | AB2: =IF(LEN(I2)>94,CONCATENATE("Long +",LEN(I2)-94),"") ->  | AC2: =IF(LEN(J2)>94,CONCATENATE("Long +",LEN(J2)-94),"") ->  | AD2: =IFERROR(INDEX($A:$A,MATCH(W2,$H:$H,0)),"") ->  | AE2: =IFERROR(INDEX($A:$A,MATCH(X2,$H:$H,0)),"") -> 532 | AF2: =IFERROR(INDEX($A:$A,MATCH(Y2,$H:$H,0)),"") -> 564 | AG2: =IF(AE2="",X2,"") ->  | AI2: =COUNTIF($B:$B,AI1) -> 1211 | AJ2: 1230 | AK2: 1205 | AL2: 1300 | AM2: 1299 | AN2: 1294 | AO2: =SUM(AI2:AN2) -> 7539 | AP2: http://thesaurus.com/browse/dichotomy
A3: 2 | B3: 1 | C3: 1 | D3: 1 | E3: 1 | F3: ประเทศ | G3: noun | H3: country | I3: an area of land that has its own government or army. | J3: Sri Lanka is my native country. | K3: 1 | L3: 1 | M3: 1 | Q3: Sri Lanka is my native ________. | S3: state | T3: nation | U3: realm | V3: kingdom | X3: town | Y3: village | AI3: =AI2/$AO$2 -> 0.1606313835 | AJ3: =AJ2/$AO$2 -> 0.1631516116 | AK3: 0.159835522 | AL3: 0.1724366627 | AM3: 0.1723040191 | AN3: 0.1716408012
A4: 3 | B4: 1 | C4: 1 | D4: 1 | E4: 1 | F4: ทุกคน | G4: pron | H4: everybody | I4: every person | J4: I've received replies from everybody but Jane. | K4: 1 | L4: 1 | M4: 1 | Q4: I've received replies from ________ but Jane. | S4: everyone | T4: all and sundry | U4: one and all | V4: each one | X4: no one | Y4: nobody | AJ4: =IF(AM4="",AO4,AM4) -> exit | AK4: =IF(AN4="",AP4,AN4) -> going away | AM4: =IFERROR(INDEX(S:S,MATCH($H4,$X:$X,0)),"") -> exit | AN4: =IFERROR(INDEX(T:T,MATCH($H4,$X:$X,0)),"") -> going away | AO4: =IFERROR(INDEX(S:S,MATCH($H6705,$Y:$Y,0)),"") ->  | AP4: =IFERROR(INDEX(T:T,MATCH($H6705,$Y:$Y,0)),"") -> 
A5: 4 | B5: 1 | C5: 1 | D5: 1 | E5: 1 | F5: ที่ชื่นชอบ | G5: adj | H5: favourite | I5: best liked or most enjoyed | J5: "What's your favourite colour?" "Green." | K5: 1 | L5: 1 | M5: 1 | Q5: "What's your ________ colour?" "Green." | S5: preferred | T5: wanted | U5: desirable | V5: attractive | X5: dislike | Y5: hated
A6: 5 | B6: 1 | C6: 1 | D6: 1 | E6: 1 | F6: เพื่อน | G6: noun | H6: friend | I6: a person who you know well but who is not a member of your family | J6: She's my best friend. We've known each other since we were five. | K6: 1 | L6: 1 | M6: 1 | Q6: She's my best ________. We've known each other since we were five. | S6: pal | T6: buddy | U6: companion | V6: acquaintance | X6: stranger | Y6: alien
A7: 6 | B7: 1 | C7: 1 | D7: 1 | E7: 1 | F7: ตลก | G7: adj | H7: funny | I7: amusing; causing laughter | J7: Jerome is so funny. | K7: 1 | L7: 1 | M7: 1 | Q7: Jerome is so ________. | S7: humorous | T7: hilarious | U7: amusing | V7: comical | X7: tragic | Y7: serious
A8: 7 | B8: 1 | C8: 1 | D8: 1 | E8: 2 | F8: ดีตอนเช้า | G8: exp | H8: good morning | I8: used for greeting someone in the morning | J8: Good morning, how are you? | K8: 1 | Q8: ________, how are you? | S8: hello | T8: hi | U8: hej | V8: how are you? | X8: goodbye | Y8: farewell
A9: 8 | B9: 1 | C9: 1 | D9: 1 | E9: 2 | F9: ครับ | G9: noun | H9: guy | I9: informal for a man | J9: Which man do you like, the guy with the blonde hair or with the glasses? | K9: 1 | Q9: Which man do you like, the ________ with the blonde hair or with the glasses? | S9: unpleasant | T9: disagreeable | U9: difficult to get on with | V9: not nice | X9: likeable | Y9: pleasant
A10: 9 | B10: 1 | C10: 1 | D10: 1 | E10: 2 | F10: สวัสดี | G10: exp | H10: hello | I10: used when meeting or greeting someone | J10: "Hello, Paul," she said, "I haven’t seen you for months." | K10: 1 | Q10: "________, Paul," she said, "I haven’t seen you for months." | S10: ciao | T10: hi | U10: goodbye | V10: so long | X10: casual | Y10: sloppy
A11: 10 | B11: 1 | C11: 1 | D11: 1 | E11: 2 | F11: ปากกาเพื่อน | G11: noun | H11: pen-friend | I11: someone who you write friendly letters to regularly, but you have never met | J11: I write once a month to my pen-friend in Korea. | M11: 1 | Q11: I write once a month to my ________ in Korea. | S11: writer | T11: author | U11: pen pal | V11: poet | X11: agree | Y11: concur
A12: 11 | B12: 1 | C12: 1 | D12: 1 | E12: 2 | F12: ขอโทษ | G12: adj | H12: sorry | I12: feeling bad because you have caused trouble or difficulty to someone else | J12: I’m really sorry (that) I forgot about our appointment yesterday. | K12: 1 | L12: 1 | M12: 1 | Q12: I’m really ________ (that) I forgot about our appointment yesterday. | S12: apologetic | T12: regretful | U12: remorseful | V12: repentant | X12: unrepentant | Y12: glad
A13: 12 | B13: 1 | C13: 1 | D13: 1 | E13: 2 | F13: เหมือนกัน | G13: adj | H13: identical | I13: exactly the same, or very similar | J13: The test is identical to the one you took last year. | K13: 1 | O13: 1 | P13: 1 | Q13: The test is ________ to the one you took last year. | S13: the same | T13: indistinguishable | U13: equal | V13: matching | X13: divorce | Y13: dissuade
A14: 13 | B14: 1 | C14: 1 | D14: 1 | E14: 3 | F14: เกาะ | G14: noun | H14: island | I14: a piece of land completely surrounded by water | J14: Singapore is an island. | K14: 1 | L14: 1 | M14: 1 | Q14: Singapore is an ________. | S14: isle | T14: islet | U14: atoll | V14: desert island | X14: bring forward | Y14: cheerful
A15: 14 | B15: 1 | C15: 1 | D15: 1 | E15: 3 | F15: คีย์ | G15: noun | H15: key | I15: a piece of metal cut into a special shape, used for opening or closing a lock | J15: I put the key into the ignition. | K15: 1 | L15: 1 | M15: 1 | Q15: I put the ________ into the ignition. | S15: input | T15: enter | U15: key in | V15: type | X15: deliberate | Y15: preserve
A16: 15 | B16: 1 | C16: 1 | D16: 1 | E16: 3 | F16: ต่อมา | G16: adv | H16: later | I16: at a time in the future or after the time you have mentioned | J16: He was successful later in his career. | K16: 1 | L16: 1 | M16: 1 | Q16: He was successful ________ in his career. | S16: afterward | T16: later on | U16: soon | V16: presently | X16: now | Y16: currently
A17: 16 | B17: 1 | C17: 1 | D17: 1 | E17: 3 | F17: นาง | G17: noun | H17: Mrs | I17: a title for a married woman, used before the family name or full name | J17: Hello, Mrs. Taylor, how are you today? | K17: 1 | L17: 1 | M17: 1 | Q17: Hello, ________. Taylor, how are you today? | S17: Miss | T17: Mr | U17: Sir | V17: Dr. | X17: Teacher | Y17: Ajarn
A18: 17 | B18: 1 | C18: 1 | D18: 1 | E18: 3 | F18: ชื่อ | G18: noun | H18: name | I18: the word or words that a person, thing or place is known by | J18: Hello, my name is Beth. | K18: 1 | L18: 1 | M18: 1 | Q18: Hello, my ________ is Beth. | S18: person's name | T18: first name | U18: christian name | V18: forename | X18: nobody | Y18: nobody
A19: 18 | B19: 1 | C19: 1 | D19: 1 | E19: 3 | F19: สัญชาติ | G19: noun | H19: nationality | I19: the state of belonging to a particular country or being a citizen of a particular nation | J19: "What’s your nationality?" "I’m from Brazil." | K19: 1 | L19: 1 | M19: 1 | Q19: "What’s your ________?" "I’m from Brazil." | S19: people | T19: population | U19: race | V19: ethnic group | X19: stroll | Y19: walk
A20: 19 | B20: 1 | C20: 1 | D20: 2 | E20: 1 | F20: ห้อง | G20: noun | H20: room | I20: an area within a building that has its own walls, floor, ceiling, and door | J20: The house has a laundry room. | K20: 1 | L20: 1 | M20: 1 | Q20: The house has a laundry ________. | S20: space | T20: scope | U20: opportunity | V20: area | X20: middle | Y20: hub
A21: 20 | B21: 1 | C21: 1 | D21: 2 | E21: 1 | F21: ประหยัด | G21: verb | H21: save | I21: to stop someone or something from being killed, injured or destroyed | J21: She jumped into the pool and saved the child from drowning. | K21: 1 | L21: 1 | M21: 1 | Q21: She jumped into the pool and ________d the child from drowning. | S21: put aside | T21: put away | U21: keep | V21: hoard | X21: scatter | Y21: become
A22: 21 | B22: 1 | C22: 1 | D22: 2 | E22: 1 | F22: ในไม่ช้า | G22: adv | H22: soon | I22: in or within a short time; before long; quickly | J22: She'll soon be here. | K22: 1 | L22: 1 | M22: 1 | Q22: She'll ________ be here. | S22: almost immediately | T22: rapidly | U22: quickly | V22: shortly | X22: later | Y22: in a while
A23: 22 | B23: 1 | C23: 1 | D23: 2 | E23: 1 | F23: นามสกุล | G23: noun | H23: surname | I23: the name that you share with other members of your family; last name | J23: My name is Bond. James Bond. Bond is my surname. | K23: 1 | L23: 1 | M23: 1 | Q23: My name is Bond. James Bond. Bond is my ________. | S23: last name | T23: family name | U23: main name | V23: titled name | X23: christian name | Y23: given name
A24: 23 | B24: 1 | C24: 1 | D24: 2 | E24: 1 | F24: ถูกต้อง | G24: adv | H24: right | I24: correct, true, or exact | J24: My watch has stopped – do you have the right time? | K24: 1 | L24: 1 | M24: 1 | Q24: My watch has stopped – do you have the ________ time? | S24: correct | T24: true | U24: accurate | V24: exact | X24: wrong | Y24: fake
A25: 24 | B25: 1 | C25: 1 | D25: 2 | E25: 1 | F25: ฝาแฝด | G25: noun | H25: twin | I25: either of two children born to the same mother on the same occasion | J25: My brother is the same age as me. He is my twin brother. | K25: 1 | L25: 1 | M25: 1 | Q25: My brother is the same age as me. He is my ________ brother. | S25: double | T25: lookalike | U25: doppelganger | V25: clone | X25: diminish | Y25: complicated
A26: 25 | B26: 1 | C26: 1 | D26: 2 | E26: 2 | F26: ยินดีต้อนรับ | G26: verb | H26: welcome | I26: expression to show pleasure when meeting someone | J26: Hello and welcome to the party. | K26: 1 | L26: 1 | M26: 1 | Q26: Hello and ________ to the party. | S26: greeting | T26: reception | U26: salutation | V26: greet | X26: disperse | Y26: distribute
A27: 26 | B27: 1 | C27: 1 | D27: 2 | E27: 2 | F27: กลัว | G27: adj | H27: afraid | I27: feeling fear, or feeling anxiety about the possible results | J27: She was afraid, but never thought of quitting. | K27: 1 | L27: 1 | M27: 1 | Q27: She was ________, but never thought of quitting. | S27: frightened | T27: scared | U27: fearful | V27: terrified | X27: quiet | Y27: still
A28: 27 | B28: 1 | C28: 1 | D28: 2 | E28: 2 | F28: อายุ | G28: noun | H28: age | I28: period of time someone has been alive or existed | J28: At age 24 he won a starring role in his first movie. | K28: 1 | L28: 1 | M28: 1 | Q28: At ________ 24 he won a starring role in his first movie. | S28: era | T28: period | U28: time | V28: times | X28: clarify | Y28: straight away
A29: 28 | B29: 1 | C29: 1 | D29: 2 | E29: 2 | F29: โกรธ | G29: adj | H29: angry | I29: the feeling people get when something is unfair or bad happens | J29: He was upset and angry that he didn't pass the test. | K29: 1 | L29: 1 | M29: 1 | Q29: He was upset and ________ that he didn't pass the test. | S29: annoyed | T29: irritated | U29: fuming | V29: mad | X29: pleased | Y29: sensible
A30: 29 | B30: 1 | C30: 1 | D30: 2 | E30: 2 | F30: ป้า | G30: noun | H30: aunt | I30: the sister of someone’s mother or father, or the wife of someone’s uncle | J30: My father's sister is my aunt. | K30: 1 | L30: 1 | M30: 1 | Q30: My father's sister is my ________. | S30: uncle | T30: grandma | U30: cousin | V30: sister | X30: friend | Y30: neighbour
A31: 30 | B31: 1 | C31: 1 | D31: 2 | E31: 2 | F31: เบื่อ | G31: adj | H31: bored | I31: feeling tired and unhappy because something is not interesting | J31: He was getting bored doing the same thing every day. | K31: 1 | L31: 1 | M31: 1 | P31: 1 | Q31: He was getting ________ doing the same thing every day. | S31: uninterested | T31: fed up | U31: tired of something | V31: bored rigid | X31: even-tempered | Y31: standoffish
A32: 31 | B32: 1 | C32: 1 | D32: 2 | E32: 3 | F32: พี่ชาย | G32: noun | H32: brother | I32: a male who has the same parents as another person | J32: I have a younger brother and an older sister in my family. | K32: 1 | L32: 1 | M32: 1 | Q32: I have a younger ________ and an older sister in my family. | S32: uncle | T32: grandma | U32: cousin | V32: sister | X32: friend | Y32: neighbour
A33: 32 | B33: 1 | C33: 1 | D33: 2 | E33: 3 | F33: เด็ก | G33: noun | H33: child | I33: a person from the time of birth until he or she is an adult | J33: Jan has a three-year-old child and two school-age children. | K33: 1 | L33: 1 | M33: 1 | Q33: Jan has a three-year-old ________ and two school-age children. | S33: youngster | T33: kid | U33: young person | V33: teenager | X33: mature | Y33: grown
A34: 33 | B34: 1 | C34: 1 | D34: 2 | E34: 3 | F34: เด็ก ๆ | G34: noun | H34: children | I34: plural of child | J34: Tom has 3 children; two daughters and a son. | K34: 1 | Q34: Tom has 3 ________; two daughters and a son. | S34: brood | T34: kids | U34: family | V34: offspring | X34: clumsiness | Y34: ineptness
A35: 34 | B35: 1 | C35: 1 | D35: 2 | E35: 3 | F35: เย็น | G35: adj | H35: cold | I35: having a low temperature, not hot or warm | J35: I forgot my gloves and my hands are getting cold. | K35: 1 | L35: 1 | M35: 1 | Q35: I forgot my gloves and my hands are getting ________. | S35: chilly | T35: freezing | U35: icy | V35: frosty | X35: warm | Y35: hot
A36: 35 | B36: 1 | C36: 1 | D36: 2 | E36: 3 | F36: ลูกพี่ลูกน้อง | G36: noun | H36: cousin | I36: a child of a person’s aunt or uncle | J36: Jimmy and Sue are my uncle's children. They are my cousins. | K36: 1 | L36: 1 | M36: 1 | Q36: Jimmy and Sue are my uncle's children. They are my ________s. | S36: uncle | T36: grandpa | U36: nephew | V36: sister | X36: friend | Y36: neighbour
A37: 36 | B37: 1 | C37: 1 | D37: 2 | E37: 3 | F37: ลูกสาว | G37: noun | H37: daughter | I37: a female child in relation to her parents | J37: We have a son and a daughter. | K37: 1 | L37: 1 | M37: 1 | Q37: We have a son and a ________. | S37: offspring | T37: descendant | U37: spawn | V37: son | X37: hatred | Y37: enmity
A38: 37 | B38: 1 | C38: 1 | D38: 3 | E38: 1 | F38: ดวงตา | G38: noun | H38: eye | I38: one of the pair of organs of seeing in the faces of humans and animals | J38: She is looking at me with her green eyes. | K38: 1 | L38: 1 | M38: 1 | Q38: She is looking at me with her green ________s. | S38: look at | T38: stare at | U38: judgment | V38: gaze at | X38: recognize | Y38: admit
A39: 38 | B39: 1 | C39: 1 | D39: 3 | E39: 1 | F39: พ่อ | G39: noun | H39: father | I39: a male parent | J39: My father retired seven years ago. | K39: 1 | L39: 1 | M39: 1 | Q39: My ________ retired seven years ago. | S39: priest | T39: minister | U39: vicar | V39: member of the clergy | X39: neglect | Y39: abandon
A40: 39 | B40: 1 | C40: 1 | D40: 3 | E40: 1 | F40: ฟอร์ม | G40: noun | H40: form | I40: a paper on which answers to questions can be written | J40: Fill out an application form and we will let you know if a job opens up. | K40: 1 | L40: 1 | M40: 1 | Q40: Fill out an application ________ and we will let you know if a job opens up. | S40: shape | T40: appearance | U40: outward appearance | V40: figure | X40: disarray | Y40: disarm
A41: 40 | B41: 1 | C41: 1 | D41: 3 | E41: 1 | F41: ยาย | G41: noun | H41: grandma | I41: the mother of a person’s father or mother | J41: My grandma on my mother's side is 82 years old. | K41: 1 | L41: 1 | M41: 1 | Q41: My ________ on my mother's side is 82 years old. | S41: uncle | T41: grandpa | U41: cousin | V41: sister | X41: friend | Y41: neighbour
A42: 41 | B42: 1 | C42: 1 | D42: 3 | E42: 1 | F42: คุณปู่ | G42: noun | H42: grandpa | I42: the father of a person's mother or father | J42: My grandpa is a retired army colonel. | K42: 1 | L42: 1 | M42: 1 | Q42: My ________ is a retired army colonel. | S42: uncle | T42: grandma | U42: cousin | V42: sister | X42: friend | Y42: neighbour
A43: 42 | B43: 1 | C43: 1 | D43: 3 | E43: 1 | F43: ยินดี | G43: adj | H43: happy | I43: feeling, showing, or causing pleasure or satisfaction | J43: People want movies to have happy endings. | K43: 1 | L43: 1 | M43: 1 | Q43: People want movies to have ________ endings. | S43: content | T43: contented | U43: pleased | V43: glad | X43: unhappy | Y43: sad
A44: 43 | B44: 1 | C44: 1 | D44: 3 | E44: 2 | F44: ที่นี่ | G44: adv | H44: here | I44: in, at, or to this place | J44: I’ve lived here in Phitsanulok all my life. | K44: 1 | L44: 1 | M44: 1 | Q44: I’ve lived ________ in Phitsanulok all my life. | S44: at this time | T44: at this point | U44: now | V44: at this juncture | X44: afterward | Y44: subsequently
A45: 44 | B45: 1 | C45: 1 | D45: 3 | E45: 2 | F45: ร้อน | G45: adj | H45: hot | I45: having a high temperature | J45: It’s hotter in Singapore than it is here. | K45: 1 | L45: 1 | M45: 1 | Q45: It’s ________ter in Singapore than it is here. | S45: burning | T45: scorching | U45: boiling | V45: blistering | X45: routine | Y45: freezing
A46: 45 | B46: 1 | C46: 1 | D46: 3 | E46: 2 | F46: หิว | G46: adj | H46: hungry | I46: feeling the need to eat because you have not eaten yet | J46: I am always hungry and need to eat when I get home from school. | K46: 1 | L46: 1 | M46: 1 | Q46: I am always ________ and need to eat when I get home from school. | S46: starving | T46: famished | U46: ravenous | V46: peckish | X46: generosity | Y46: party
A47: 46 | B47: 1 | C47: 1 | D47: 3 | E47: 2 | F47: ปรับ | G47: adj | H47: fine | I47: very good or very well; satisfactory or satisfactorily | J47: I was sick last night, but I am fine this morning. | K47: 1 | L47: 1 | M47: 1 | Q47: I was sick last night, but I am ________ this morning. | S47: well | T47: very well | U47: in good health | V47: all right | X47: unwell | Y47: worse
A48: 47 | B48: 1 | C48: 1 | D48: 3 | E48: 2 | F48: ชาเย็น | G48: noun | H48: iced tea | I48: a form of cold tea, usually served in a glass with ice | J48: Would you like a cold drink, such as coco cola or iced tea? | K48: 1 | Q48: Would you like a cold drink, such as coco cola or ________? | S48: coke | T48: cider | U48: water | V48: lemonade | X48: coffee | Y48: tea
A49: 48 | B49: 1 | C49: 1 | D49: 3 | E49: 2 | F49: ฟัง | G49: verb | H49: listen | I49: to give attention to something you can hear or to a person who is speaking | J49: Can you really listen to music while you do your homework? | K49: 1 | L49: 1 | M49: 1 | Q49: Can you really ________ to music while you do your homework? | S49: pay attention | T49: take note | U49: eavesdrop | V49: listen in | X49: before | Y49: give up
A50: 49 | B50: 1 | C50: 1 | D50: 3 | E50: 3 | F50: เกินไป | G50: adv | H50: too | I50: more than is needed or wanted; more than is suitable or enough | J50: There were (far) too many people for such a small room. | K50: 1 | L50: 1 | M50: 1 | Q50: There were (far) ________ many people for such a small room. | S50: also | T50: as well | U50: in addition | V50: besides | X50: exit | Y50: departure
A51: 50 | B51: 1 | C51: 1 | D51: 3 | E51: 3 | F51: พบ | G51: verb | H51: meet | I51: to see and speak to someone for the first time | J51: They’re meeting with their advisers to work out a new plan. | K51: 1 | L51: 1 | M51: 1 | Q51: They’re ________ing with their advisers to work out a new plan. | S51: get together | T51: convene | U51: assemble | V51: gather | X51: part | Y51: disband
A52: 51 | B52: 1 | C52: 1 | D52: 3 | E52: 3 | F52: แม่ | G52: noun | H52: mother | I52: a female parent | J52: My mother was 20 when I was born. | K52: 1 | L52: 1 | M52: 1 | Q52: My ________ was 20 when I was born. | S52: look after | T52: care for | U52: protect | V52: nurse | X52: neglect | Y52: abandon
A53: 52 | B53: 1 | C53: 1 | D53: 3 | E53: 3 | F53: อื่น ๆ | G53: pron | H53: other | I53: the second of two things, or the item that is left from a group | J53: Hold the racket in one hand and the ball in the other. | K53: 1 | L53: 1 | M53: 1 | Q53: Hold the racket in one hand and the ball in the ________. | S53: additional | T53: extra | U53: supplementary | V53: added | X53: less | Y53: fewer
A54: 53 | B54: 1 | C54: 1 | D54: 3 | E54: 3 | F54: พ่อแม่ | G54: noun | H54: parent | I54: a person who gives birth to or raises a child | J54: His parents live in Phitsanulok. | K54: 1 | L54: 1 | M54: 1 | Q54: His ________s live in Phitsanulok. | S54: close relative | T54: father | U54: mother | V54: blood relation | X54: alive | Y54: convergence
A55: 54 | B55: 1 | C55: 1 | D55: 3 | E55: 3 | F55: สถานที่ | G55: noun | H55: place | I55: an area, a building, or a city, town, or village | J55: Airports are usually busy places. | K55: 1 | L55: 1 | M55: 1 | Q55: Airports are usually busy ________s. | S55: put | T55: rest | U55: lay | V55: leave | X55: remove | Y55: pick up
A56: 55 | B56: 1 | C56: 1 | D56: 4 | E56: 1 | F56: เสียใจ | G56: adj | H56: sad | I56: showing, feeling, or causing unhappiness or regret | J56: I’ve just heard the saddest news. | K56: 1 | L56: 1 | M56: 1 | Q56: I’ve just heard the ________dest news. | S56: depressing | T56: gloomy | U56: miserable | V56: cheerless | X56: broadminded | Y56: retain
A57: 56 | B57: 1 | C57: 1 | D57: 4 | E57: 1 | F57: น้องสาว | G57: noun | H57: sister | I57: a female who has the same parents as another person | J57: John has a younger sister and an older brother. | K57: 1 | L57: 1 | M57: 1 | Q57: John has a younger ________ and an older brother. | S57: uncle | T57: grandma | U57: cousin | V57: brother | X57: friend | Y57: neighbour
A58: 57 | B58: 1 | C58: 1 | D58: 4 | E58: 1 | F58: ไซออน | G58: noun | H58: radio | I58: a piece of electronic equipment used for listening to radio broadcasts | J58: I listen to the radio in the morning to get the weather report. | M58: 1 | Q58: I listen to the ________ in the morning to get the weather report. | S58: means of communication | T58: broadcasting | U58: telephone system | V58: data lines | X58: accept | Y58: excess
A59: 58 | B59: 1 | C59: 1 | D59: 4 | E59: 1 | F59: คุย | G59: verb | H59: talk | I59: to say words aloud, usually to give or exchange information; to speak | J59: I talked with Carol on the phone yesterday. | K59: 1 | L59: 1 | M59: 1 | Q59: I ________ed with Carol on the phone yesterday. | S59: converse | T59: chat | U59: speak | V59: gossip | X59: quiet | Y59: silence
A60: 59 | B60: 1 | C60: 1 | D60: 4 | E60: 1 | F60: ที่ | G60: adj | H60: that | I60: refer to a person or object separated from the speaker by distance or time | J60: This peach isn’t ripe – can I have that one (= the one farther away) on the table? | K60: 1 | Q60: This peach isn’t ripe – can I have ________one (= the one farther away) on the table? | S60: so as to | T60: to | U60: with the intention of | V60: with the purpose of | X60: bareness | Y60: successor
A61: 60 | B61: 1 | C61: 1 | D61: 4 | E61: 1 | F61: เหล่านั้น | G61: adj | H61: those | I61: plural of 'that' | J61: Those houses are huge. | K61: 1 | L61: 1 | M61: 1 | Q61: ________ houses are huge. | S61: persons | T61: folks | U61: individuals | V61: others | X61: back | Y61: shun
A62: 61 | B62: 1 | C62: 1 | D62: 4 | E62: 2 | F62: เหนื่อย | G62: adj | H62: tired | I62: in need of rest or sleep | J62: I had been up all night with the baby and was really tired. | K62: 1 | L62: 1 | M62: 1 | Q62: I had been up all night with the baby and was really ________. | S62: weary | T62: exhausted | U62: dull | V62: drained | X62: refreshed | Y62: energetic
A63: 62 | B63: 1 | C63: 1 | D63: 4 | E63: 2 | F63: ลุง | G63: noun | H63: uncle | I63: the brother of someone’s mother or father, or the husband of someone’s aunt | J63: My aunt and uncle moved to Arizona when they retired. | K63: 1 | L63: 1 | M63: 1 | Q63: My aunt and ________ moved to Arizona when they retired. | S63: aunt | T63: grandma | U63: cousin | V63: brother | X63: friend | Y63: neighbour
A64: 63 | B64: 1 | C64: 1 | D64: 4 | E64: 2 | F64: น้ำ | G64: noun | H64: water | I64: a clear, colorless liquid that is necessary for life | J64: I’m boiling water to make some more coffee. | K64: 1 | L64: 1 | M64: 1 | P64: 1 | Q64: I’m boiling ________ to make some more coffee. | S64: irrigate | T64: hose | U64: hose down | V64: wet | X64: dull | Y64: blunt
A65: 64 | B65: 1 | C65: 1 | D65: 4 | E65: 2 | F65: กระดูก | G65: noun | H65: bone | I65: hard pieces that form the skeleton of a body | J65: She had broken a bone in her foot. | K65: 1 | L65: 1 | M65: 1 | Q65: She had broken a ________ in her foot. | S65: fillet | T65: clean | U65: prepare | V65: scale | X65: unclean | Y65: filthy
A66: 65 | B66: 1 | C66: 1 | D66: 4 | E66: 2 | F66: ร่างกาย | G66: noun | H66: body | I66: the whole physical structure that forms a person or animal | J66: A good diet and plenty of exercise will help you keep your body healthy. | K66: 1 | L66: 1 | M66: 1 | Q66: A good diet and plenty of exercise will help you keep your ________ healthy. | S66: corpse | T66: dead body | U66: cadaver | V66: remains | X66: smash | Y66: fracture
A67: 66 | B67: 1 | C67: 1 | D67: 4 | E67: 2 | F67: แคลเซียม | G67: noun | H67: calcium | I67: a chemical element which is present in teeth, bones and chalk | J67: The body needs calcium to maintain strong bones. | K67: 1 | Q67: The body needs ________ to maintain strong bones. | S67: cadmium | T67: carbon | U67: cerium | V67: cesium | X67: nitrogen | Y67: oxygen
A68: 67 | B68: 1 | C68: 1 | D68: 4 | E68: 3 | F68: คาร์โบไฮเดรต | G68: noun | H68: carbohydrate | I68: a substance, such as sugar or starch, which provide the body with energy | J68: Breads, cereals, and pastas are all examples of carbohydrates. | K68: 1 | Q68: Breads, cereals, and pastas are all examples of ________s. | S68: protein | T68: mineral | U68: fat | V68: vitamin | X68: milk | Y68: lemonade
A69: 68 | B69: 1 | C69: 1 | D69: 4 | E69: 3 | F69: ไขมัน | G69: adj | H69: fat | I69: having a lot of flesh on the body | J69: She has put on a lot of weight and looks quite fat now. | K69: 1 | L69: 1 | M69: 1 | Q69: She has put on a lot of weight and looks quite ________ now. | S69: overweight | T69: plump | U69: chubby | V69: stout | X69: slim | Y69: thin
A70: 69 | B70: 1 | C70: 1 | D70: 4 | E70: 3 | F70: ไฟเบอร์ | G70: noun | H70: fibre | I70: a piece of clothing that covers the lower part of the body from the waist to the feet | J70: Natural fibres such as cotton tend to be cooler. | K70: 1 | P70: 1 | Q70: Natural ________s such as cotton tend to be cooler. | S70: clothes | T70: material | U70: textile | V70: yarn | X70: metal | Y70: rock
A71: 70 | B71: 1 | C71: 1 | D71: 4 | E71: 3 | F71: แข็งแรง | G71: adj | H71: healthy | I71: strong and well | J71: The walk has given her a healthy appetite. | K71: 1 | Q71: The walk has given her a ________ appetite. | S71: fit | T71: well | U71: strong | V71: vigorous | X71: unfit | Y71: badly
A72: 71 | B72: 1 | C72: 1 | D72: 4 | E72: 3 | F72: สูง | G72: adj | H72: high | I72: a large distance from top to bottom or a long way above the ground | J72: Mount Everest is the highest mountain in the world. | K72: 1 | L72: 1 | M72: 1 | Q72: Mount Everest is the ________est mountain in the world. | S72: far above the ground | T72: elevated | U72: lofty | V72: towering | X72: low | Y72: humble
A73: 72 | B73: 1 | C73: 1 | D73: 4 | E73: 3 | F73: เหล็ก | G73: noun | H73: iron | I73: a silver-colored, metal element used in making steel, and found in blood | J73: Iron rusts easily. | K73: 1 | L73: 1 | M73: 1 | Q73: ________ rusts easily. | S73: flatten | T73: level | U73: layer | V73: band | X73: uneven | Y73: rough
A74: 73 | B74: 1 | C74: 1 | D74: 5 | E74: 1 | F74: ถั่ว | G74: noun | H74: bean | I74: a seed, or the pod containing seeds, of various climbing plants, eaten as a vegetable | J74: String beans grow best upwards. | K74: 1 | L74: 1 | M74: 1 | Q74: String ________s grow best upwards. | S74: potato | T74: onion | U74: carrot | V74: turnip | X74: cherry | Y74: apple
A75: 74 | B75: 1 | C75: 1 | D75: 5 | E75: 1 | F75: นอต | G75: noun | H75: nut | I75: the dry fruit of particular trees which grows in a hard shell and can often be eaten | J75: Squirrels like to eat nuts. | K75: 1 | L75: 1 | M75: 1 | Q75: Squirrels like to eat ________s. | S75: seed | T75: kernel | U75: pip | V75: core | X75: antipathy | Y75: certainty
A76: 75 | B76: 1 | C76: 1 | D76: 5 | E76: 1 | F76: สารอาหาร | G76: noun | H76: nutrient | I76: any substance that plants or animals need in order to live and grow | J76: Oranges contain many nutrients that help our body grow. | K76: 1 | Q76: Oranges contain many ________s that help our body grow. | S76: cooking | T76: nourishment | U76: sustenance | V76: food | X76: poison | Y76: waste
A77: 76 | B77: 1 | C77: 1 | D77: 5 | E77: 1 | F77: แร่ | G77: noun | H77: mineral | I77: a valuable or useful chemical substance which is formed naturally in the ground | J77: A mineral regulates the growth of bones and hormones, keeping us healthy. | K77: 1 | L77: 1 | M77: 1 | Q77: A ________ regulates the growth of bones and hormones, keeping us healthy. | S77: stone | T77: sandstone | U77: limestone | V77: granite | X77: ascent | Y77: negative
A78: 77 | B78: 1 | C78: 1 | D78: 5 | E78: 1 | F78: โปรตีน | G78: noun | H78: protein | I78: any chemical that are a necessary part of the cells of all living things | J78: If you're training in the gym, your body needs extra protein to recover and grow. | K78: 1 | P78: 1 | Q78: If you're training in the gym, your body needs extra ________ to recover and grow. | S78: carbohydrate | T78: mineral | U78: fat | V78: vitamin | X78: milk | Y78: lemonade
A79: 78 | B79: 1 | C79: 1 | D79: 5 | E79: 1 | F79: รวย | G79: adj | H79: rich | I79: having a lot of money or valuable possessions; wealthy | J79: The United States is one of the world’s richest nations. | K79: 1 | L79: 1 | M79: 1 | Q79: The United States is one of the world’s ________est nations. | S79: wealthy | T79: well-off | U79: affluent | V79: prosperous | X79: poor | Y79: scarce
A80: 79 | B80: 1 | C80: 1 | D80: 5 | E80: 2 | F80: วิตามิน | G80: noun | H80: vitamin | I80: any natural substances obtained from food that are necessary for growth and health | J80: Meat, fish, fruit, and vegetables contain vitamins, such as A, C, or D. | K80: 1 | Q80: Meat, fish, fruit, and vegetables contain ________s, such as A, C, or D. | S80: protein | T80: mineral | U80: fat | V80: carbohydrate | X80: milk | Y80: lemonade
A81: 80 | B81: 1 | C81: 1 | D81: 5 | E81: 2 | F81: ห้องเพดาน | G81: noun | H81: attic | I81: a space in a house just under the roof, often used for storing things | J81: Winter clothes are often stored in boxes up in the attic of a house. | K81: 1 | Q81: Winter clothes are often stored in boxes up in the ________ of a house. | S81: loft | T81: top story | U81: upper floor | V81: garret | X81: cause | Y81: clarify
A82: 81 | B82: 1 | C82: 1 | D82: 5 | E82: 2 | F82: ห้องอาบน้ำ | G82: noun | H82: bathroom | I82: a room with a toilet and a place to wash your hands, with a bathtub or a shower | J82: Our bathroom is the warmest room in the house. | K82: 1 | L82: 1 | M82: 1 | Q82: Our ________ is the warmest room in the house. | S82: lavatory | T82: toilet | U82: restroom | V82: shower | X82: calm | Y82: leading
A83: 82 | B83: 1 | C83: 1 | D83: 5 | E83: 2 | F83: ห้องนอน | G83: noun | H83: bedroom | I83: a room with a bed or beds for sleeping | J83: The quietest room in the house is the bedroom, where I can relax and sleep at night. | K83: 1 | L83: 1 | M83: 1 | Q83: The quietest room in the house is the ________, where I can relax and sleep at night. | S83: bathroom | T83: living room | U83: kitchen | V83: dining room | X83: office | Y83: library
A84: 83 | B84: 1 | C84: 1 | D84: 5 | E84: 2 | F84: หนังสือ | G84: noun | H84: book | I84: an object with pages of text fastened along one edge and fixed inside two covers | J84: The artist’s sketch books filled several shelves. | K84: 1 | L84: 1 | M84: 1 | Q84: The artist’s sketch ________s filled several shelves. | S84: volume | T84: tome | U84: manuscript | V84: paperback | X84: courageous | Y84: valiant
A85: 84 | B85: 1 | C85: 1 | D85: 5 | E85: 2 | F85: กล่อง | G85: noun | H85: box | I85: a square or rectangular container with stiff sides and sometimes a lid | J85: On Valentine's Day, many people give their closest friend a box of chocolates. | K85: 1 | L85: 1 | M85: 1 | Q85: On Valentine's Day, many people give their closest friend a ________ of chocolates. | S85: small package | T85: pack | U85: package | V85: sachet | X85: unpack | Y85: empty
A86: 85 | B86: 1 | C86: 1 | D86: 5 | E86: 3 | F86: เมืองหลวง | G86: noun | H86: capital | I86: a city which is the centre of government of a country | J86: The capital city of Japan is Tokyo. | K86: 1 | L86: 1 | M86: 1 | Q86: The ________ city of Japan is Tokyo. | S86: assets | T86: resources | U86: funds | V86: wealth | X86: poverty | Y86: deficiency
A87: 86 | B87: 1 | C87: 1 | D87: 5 | E87: 3 | F87: เมือง | G87: noun | H87: city | I87: a large town or any town in the UK which has a cathedral (= large, important church) | J87: Some people like to live in a small village, but I like to live in a big city. | K87: 1 | L87: 1 | M87: 1 | Q87: Some people like to live in a small village, but I like to live in a big ________. | S87: metropolis | T87: municipality | U87: conurbation | V87: capital | X87: cowardly | Y87: realm
A88: 87 | B88: 1 | C88: 1 | D88: 5 | E88: 3 | F88: แมว | G88: noun | H88: cat | I88: a small, furry animal with four legs and a tail, often kept as a pet | J88: My aunt loves to look after small kittens and other cats. | K88: 1 | L88: 1 | M88: 1 | Q88: My aunt loves to look after small kittens and other ________s. | S88: dog | T88: rabbit | U88: hamster | V88: fish | X88: giraffe | Y88: lion
A89: 88 | B89: 1 | C89: 1 | D89: 5 | E89: 3 | F89: เก้าอี้ | G89: noun | H89: chair | I89: a seat for one person, which has a back, usually four legs, and sometimes two arms | J89: You don't need to stand when there is a chair to sit down on. | K89: 1 | L89: 1 | M89: 1 | Q89: You don't need to stand when there is a ________ to sit down on. | S89: preside over | T89: take the chair | U89: lead | V89: control the discussion | X89: forbid | Y89: ignorance
A90: 89 | B90: 1 | C90: 1 | D90: 5 | E90: 3 | F90: เคาน์เตอร์ | G90: noun | H90: desk | I90: a type of table for working at, usually one with drawers | J90: Tommy sits at the desk in front of me in English. | K90: 1 | L90: 1 | M90: 1 | Q90: Tommy sits at the ________ in front of me in English. | S90: small table | T90: writing table | U90: writing desk | V90: school desk | X90: hatred | Y90: enmity
A91: 90 | B91: 1 | C91: 1 | D91: 5 | E91: 3 | F91: รับประทานอาหาร | G91: adj | H91: dining | I91: a room or activity where the evening meal is served. | J91: Let's go to the dining room to eat dinner. | K91: 1 | L91: 1 | M91: 1 | Q91: Let's go to the ________ room to eat dinner. | S91: bathroom | T91: toilet | U91: hall | V91: dining room | X91: office | Y91: library
A92: 91 | B92: 1 | C92: 1 | D92: 6 | E92: 1 | F92: ข้างล่าง | G92: adv | H92: downstairs | I92: to or on a lower floor of a building, especially the ground floor | J92: I left out of bed and ran downstairs to see who was kncoking at the door. | K92: 1 | L92: 1 | M92: 1 | Q92: I left out of bed and ran ________ to see who was kncoking at the door. | S92: below | T92: down the stairs | U92: down | V92: down below | X92: absorb | Y92: old
A93: 92 | B93: 1 | C93: 1 | D93: 6 | E93: 1 | F93: เท้า | G93: noun | H93: foot | I93: the part of the body at the bottom of the leg on which a person or animal stands | J93: I’ve got a blister on my left foot. | K93: 1 | L93: 1 | M93: 1 | Q93: I’ve got a blister on my left ________. | S93: toe | T93: ankle | U93: heel | V93: leg | X93: top | Y93: beginning
A94: 93 | B94: 1 | C94: 1 | D94: 6 | E94: 1 | F94: จิ้งจอก | G94: noun | H94: fox | I94: a wild mammal with a pointed face and ears, a wide furry tail, and often red-brown fur | J94: A fox who had smelled the chickens came out of the woods into the yard. | K94: 1 | Q94: A ________ who had smelled the chickens came out of the woods into the yard. | S94: deceive | T94: trick | U94: hoodwink | V94: bamboozle | X94: real | Y94: genuine
A95: 94 | B95: 1 | C95: 1 | D95: 6 | E95: 1 | F95: ตู้เย็น | G95: noun | H95: fridge | I95: a large piece of equipment to preserve food at a cold temperature | J95: We keep the milk cool in the fridge. | K95: 1 | L95: 1 | M95: 1 | Q95: We keep the milk cool in the ________. | S95: freezer | T95: icebox | U95: igloo | V95: refridgerator | X95: heater | Y95: fire
A96: 95 | B96: 1 | C96: 1 | D96: 6 | E96: 1 | F96: เกม | G96: noun | H96: game | I96: an entertaining activity, esp. one played by children, or a sports competition | J96: The kids are playing a computer game. | K96: 1 | L96: 1 | M96: 1 | Q96: The kids are playing a computer ________. | S96: pastime | T96: diversion | U96: sport | V96: amusement | X96: bottom | Y96: misery
A97: 96 | B97: 1 | C97: 1 | D97: 6 | E97: 1 | F97: ยิ่งใหญ่ | G97: adj | H97: great | I97: large in amount, size or degree | J97: There was a great deal of (= a lot of) excitement in the classroom before lunch. | K97: 1 | L97: 1 | M97: 1 | Q97: There was a ________ deal of (= a lot of) excitement in the classroom before lunch. | S97: huge | T97: immense | U97: enormous | V97: vast | X97: tiny | Y97: petite
A98: 97 | B98: 1 | C98: 1 | D98: 6 | E98: 2 | F98: ชั่วโมง | G98: noun | H98: hour | I98: a period of 60 minutes | J98: 7-11 shops are open 24 hours a day. | K98: 1 | L98: 1 | M98: 1 | Q98: 7-11 shops are open 24 ________s a day. | S98: minute | T98: second | U98: day | V98: week | X98: meter | Y98: inch
A99: 98 | B99: 1 | C99: 1 | D99: 6 | E99: 2 | F99: บ้าน | G99: noun | H99: house | I99: a building which people, usually one family, live in | J99: One day, I am going to live in a big house, with my own garden. | K99: 1 | L99: 1 | M99: 1 | P99: 1 | Q99: One day, I am going to live in a big ________, with my own garden. | S99: home | T99: residence | U99: dwelling | V99: abode | X99: away | Y99: elsewhere
A100: 99 | B100: 1 | C100: 1 | D100: 6 | E100: 2 | F100: ใน | G100: prep | H100: in | I100: In as a preposition describes a relationship of place between nouns in a sentence. | J100: When I went in the room, I saw the dog. | K100: 1 | L100: 1 | M100: 1 | Q100: When I went ________ the room, I saw the dog. | S100: inside | T100: within | U100: during | V100: into | X100: outside | Y100: out
A101: 100 | B101: 1 | C101: 1 | D101: 6 | E101: 2 | F101: ครัว | G101: noun | H101: kitchen | I101: a room where food is kept, prepared and cooked and where the dishes are washed | J101: I cook all my meals in the kitchen. | K101: 1 | L101: 1 | M101: 1 | Q101: I cook all my meals in the ________. | S101: dining room | T101: living room | U101: bedroom | V101: dining room | X101: office | Y101: library
A102: 101 | B102: 1 | C102: 1 | D102: 6 | E102: 2 | F102: มีด | G102: noun | H102: knife | I102: a tool used for cutting and spreading food or other substances, or as a weapon | J102: I took a plastic knife and fork to the picnic. | K102: 1 | L102: 1 | M102: 1 | Q102: I took a plastic ________ and fork to the picnic. | S102: blade | T102: table knife | U102: carving knife | V102: cook's knife | X102: boring | Y102: calm
A103: 102 | B103: 1 | C103: 1 | D103: 6 | E103: 2 | F103: โคมไฟ | G103: noun | H103: lamp | I103: a device for giving light, esp. one with a covering that the light shines through or around | J103: When it gets dark, I turn on my desk lamp so I can read my book. | K103: 1 | L103: 1 | M103: 1 | Q103: When it gets dark, I turn on my desk ________ so I can read my book. | S103: light | T103: street lamp | U103: street light | V103: oil lamp | X103: dark | Y103: night
A104: 103 | B104: 1 | C104: 1 | D104: 6 | E104: 3 | F104: ใบไม้ | G104: noun | H104: leaf | I104: any flat, usually green parts of a plant that are joined at one end to the stem or branch | J104: By early November it’s getting cold so almost every leaf falls from each tree. | K104: 1 | L104: 1 | M104: 1 | Q104: By early November it’s getting cold so almost every ________ falls from each tree. | S104: sheet | T104: piece of paper | U104: side | V104: folio | X104: big | Y104: under
A105: 104 | B105: 1 | C105: 1 | D105: 6 | E105: 3 | F105: มีชีวิตอยู่ | G105: adj | H105: living | I105: the room in a house or apartment where people sit or relax together but do not sleep | J105: I watch TV together with my family in the living room. | K105: 1 | L105: 1 | M105: 1 | Q105: I watch TV together with my family in the ________ room. | S105: livelihood | T105: income | U105: living wage | V105: source of revenue | X105: explicit | Y105: experienced
A106: 105 | B106: 1 | C106: 1 | D106: 6 | E106: 3 | F106: คน | G106: noun | H106: man | I106: an adult male human being | J106: The gas company sent a man to fix the heating system. | K106: 1 | L106: 1 | M106: 1 | Q106: The gas company sent a ________ to fix the heating system. | S106: gentleman | T106: guy | U106: chap | V106: male | X106: woman | Y106: lady
A107: 106 | B107: 1 | C107: 1 | D107: 6 | E107: 3 | F107: การแข่งขัน | G107: noun | H107: match | I107: covered with a special chemical at one end which burns when rubbed | J107: He lit a match to start a fire. | K107: 1 | L107: 1 | M107: 1 | Q107: He lit a ________ to start a fire. | S107: competition | T107: game | U107: bout | V107: contest | X107: acquaintance | Y107: closeness | AA107: Duplicate OK
A108: 107 | B108: 1 | C108: 1 | D108: 6 | E108: 3 | F108: เม้าส์ | G108: noun | H108: mouse | I108: a small mammal with short fur, a pointed face, and a long tail | J108: She screamed when she saw a mouse run across the kitchen floor. | K108: 1 | L108: 1 | M108: 1 | Q108: She screamed when she saw a ________ run across the kitchen floor. | S108: cat | T108: rat | U108: gerbil | V108: hamster | X108: elephant | Y108: tiger
A109: 108 | B109: 1 | C109: 1 | D109: 6 | E109: 3 | F109: ขณะนี้ | G109: adv | H109: now | I109: at the present time, not in the past or future | J109: She used to work in an office, but now she works at home. | K109: 1 | L109: 1 | M109: 1 | Q109: She used to work in an office, but ________ she works at home. | S109: at the present | T109: at the moment | U109: at this time | V109: currently | X109: then | Y109: formerly
A110: 109 | B110: 1 | C110: 1 | D110: 7 | E110: 1 | F110: บน | G110: prep | H110: on | I110: something in a position above something else | J110: There is snow on the ground. | K110: 1 | L110: 1 | M110: 1 | Q110: There is snow ________ the ground. | S110: on top of | T110: resting on | U110: lie down | V110: surface | X110: bitter | Y110: major
A111: 110 | B111: 1 | C111: 1 | D111: 7 | E111: 1 | F111: มากกว่า | G111: prep | H111: over | I111: above or higher than something else | J111: The horse jumped over the fence. | K111: 1 | L111: 1 | M111: 1 | Q111: The horse jumped ________ the fence. | S111: in excess of | T111: more than | U111: greater than | V111: larger than | X111: underneath | Y111: under
A112: 111 | B112: 1 | C112: 1 | D112: 7 | E112: 1 | F112: พรรค | G112: noun | H112: party | I112: a social gathering at which people talk, eat, drink, and enjoy themselves | J112: Sally is having a birthday party at her place tonight. | K112: 1 | L112: 1 | M112: 1 | Q112: Sally is having a birthday ________ at her place tonight. | S112: social gathering | T112: gathering | U112: get-together | V112: festivity | X112: single | Y112: alone
A113: 112 | B113: 1 | C113: 1 | D113: 7 | E113: 1 | F113: คน | G113: noun | H113: person | I113: a man, woman, or child | J113: Neil Armstrong was the first person to set foot on the moon. | K113: 1 | L113: 1 | M113: 1 | Q113: Neil Armstrong was the first ________ to set foot on the moon. | S113: being | T113: human being | U113: self | V113: individual | X113: nothingness | Y113: collective
A114: 113 | B114: 1 | C114: 1 | D114: 7 | E114: 1 | F114: เครื่องพิมพ์ | G114: noun | H114: printer | I114: a machine connected to a computer that prints onto paper using ink | J114: After I write documents on my computer, I use a laser printer to publish them. | K114: 1 | Q114: After I write documents on my computer, I use a laser ________ to publish them. | S114: copier | T114: imprinter | U114: laser printer | V114: laser copier | X114: actual | Y114: compliment
A115: 114 | B115: 1 | C115: 1 | D115: 7 | E115: 1 | F115: พร้อมแล้ว | G115: adj | H115: ready | I115: prepared and suitable for action or use | J115: The twins are getting ready for bed. | K115: 1 | L115: 1 | M115: 1 | Q115: The twins are getting ________ for bed. | S115: prepared | T115: set | U115: all set | V115: complete | X115: unprepared | Y115: individual
A116: 115 | B116: 1 | C116: 1 | D116: 7 | E116: 2 | F116: จริง | G116: adj | H116: real | I116: existing in fact; not imaginary | J116: This is a true story about real people. | K116: 1 | L116: 1 | M116: 1 | Q116: This is a true story about ________ people. | S116: genuine | T116: actual | U116: authentic | V116: bona fide | X116: imitation | Y116: bogus
A117: 116 | B117: 1 | C117: 1 | D117: 7 | E117: 2 | F117: การรับ | G117: noun | H117: reception | I117: a formal party at which important people are welcomed | J117: After the wedding, the guests went to have dinner at the reception. | K117: 1 | L117: 1 | M117: 1 | Q117: After the wedding, the guests went to have dinner at the ________. | S117: welcome | T117: greeting | U117: reaction | V117: response | X117: unwelcome | Y117: dispatch
A118: 117 | B118: 1 | C118: 1 | D118: 7 | E118: 2 | F118: หนา | G118: adj | H118: thick | I118: having a large distance between two sides | J118: The walls are a foot thick. | M118: 1 | Q118: The walls are a foot ________. | S118: broad | T118: fat | U118: wide | V118: chunky | X118: narrow | Y118: slim
A119: 118 | B119: 1 | C119: 1 | D119: 7 | E119: 2 | F119: พรม | G119: noun | H119: rug | I119: a shaped piece of thick cloth for covering part of a floor | J119: The rug we bought for the living-room has a beautiful red and gold pattern. | K119: 1 | Q119: The ________ we bought for the living-room has a beautiful red and gold pattern. | S119: carpet | T119: mat | U119: hearth rug | V119: runner | X119: wall | Y119: ceiling
A120: 119 | B120: 1 | C120: 1 | D120: 7 | E120: 2 | F120: ที่ลุ่ม | G120: noun | H120: bag | I120: a container of paper or plastic, open at the top, used to hold things | J120: I put all my groceries in a shopping bag. | K120: 1 | L120: 1 | M120: 1 | Q120: I put all my groceries in a shopping ________. | S120: container | T120: paper bag | U120: shopping bag | V120: plastic bag | X120: carefully | Y120: death
A121: 120 | B121: 1 | C121: 1 | D121: 7 | E121: 2 | F121: ฝักบัว | G121: noun | H121: shower | I121: a water device where you stand under to wash your whole body | J121: He stays in the shower until there is no more hot water! | K121: 1 | L121: 1 | M121: 1 | Q121: He stays in the ________ until there is no more hot water! | S121: wash | T121: bathe | U121: clean up | V121: freshen up | X121: calm | Y121: leading
A122: 121 | B122: 1 | C122: 1 | D122: 7 | E122: 3 | F122: โง่ | G122: adj | H122: silly | I122: showing a lack of thought or judgment; not showing much intelligence | J122: I watched another silly, crazy movie last night. | K122: 1 | L122: 1 | M122: 1 | Q122: I watched another ________, crazy movie last night. | S122: stupid | T122: ridiculous | U122: impractical | V122: mad | X122: bright | Y122: clumsiness
A123: 122 | B123: 1 | C123: 1 | D123: 7 | E123: 3 | F123: โซฟา | G123: noun | H123: sofa | I123: a long soft seat with a back and usually arms for more than 1 person to sit | J123: He lay down on the sofa in the living room and watched TV. | K123: 1 | L123: 1 | M123: 1 | Q123: He lay down on the ________ in the living room and watched TV. | S123: couch | T123: settee | U123: chaise longue | V123: daybed | X123: broaden | Y123: restore
A124: 123 | B124: 1 | C124: 1 | D124: 7 | E124: 3 | F124: ตาราง | G124: noun | H124: table | I124: a piece of furniture that has a flat top supported by legs | J124: We ate our meals sitting around a large dining room table. | K124: 1 | L124: 1 | M124: 1 | Q124: We ate our meals sitting around a large dining room ________. | S124: bench | T124: board | U124: desk | V124: counter | X124: wall | Y124: ceiling
A125: 124 | B125: 1 | C125: 1 | D125: 7 | E125: 3 | F125: เทนนิส | G125: noun | H125: tennis | I125: a game played by two or four people use rackets to hit a small ball across a center net | J125: Roger Federer has won many tennis tournaments at Wimbeldon. | K125: 1 | L125: 1 | M125: 1 | Q125: Roger Federer has won many ________ tournaments at Wimbeldon. | S125: volleyball | T125: basketball | U125: football | V125: hockey | X125: chess | Y125: poker
A126: 125 | B126: 1 | C126: 1 | D126: 7 | E126: 3 | F126: โทรศัพท์ | G126: noun | H126: telephone | I126: a device for speaking to someone in another place by means of electrical signals | J126: AIS is a big telephone company. | K126: 1 | L126: 1 | M126: 1 | Q126: AIS is a big ________ company. | S126: phone | T126: handset | U126: receiver | V126: cell phone | X126: sender | Y126: dispatcher
A127: 126 | B127: 1 | C127: 1 | D127: 7 | E127: 3 | F127: ฟัน | G127: noun | H127: tooth | I127: one of the hard white objects in the mouth, used for biting and chewing | J127: I have a sore tooth so I should go to see a dentist. | K127: 1 | Q127: I have a sore ________ so I should go to see a dentist. | S127: fang | T127: incisor | U127: pointed tooth | V127: dagger | X127: unnaturally | Y127: synthetically
A128: 127 | B128: 1 | C128: 1 | D128: 8 | E128: 1 | F128: ของเล่น | G128: noun | H128: toy | I128: an object for children to play with | J128: When I was young, I played with a toy train set. | K128: 1 | L128: 1 | M128: 1 | Q128: When I was young, I played with a ________ train set. | S128: plaything | T128: doll | U128: teddy bear | V128: model | X128: asleep | Y128: honour
A129: 128 | B129: 1 | C129: 1 | D129: 8 | E129: 1 | F129: ภายใต้ | G129: prep | H129: under | I129: in or to a position below or lower than something else | J129: Our dog hides under the bed whenever we have a lightning storm. | K129: 1 | L129: 1 | M129: 1 | Q129: Our dog hides ________ the bed whenever we have a lightning storm. | S129: beneath | T129: below | U129: in | V129: underneath | X129: absent | Y129: isolation
A130: 129 | B130: 1 | C130: 1 | D130: 8 | E130: 1 | F130: ชั้นบน | G130: adv | H130: upstairs | I130: towards or on the highest floor or floors of a building | J130: When I am tired, I climb upstairs to go to the bedroom and sleep. | K130: 1 | L130: 1 | M130: 1 | Q130: When I am tired, I climb ________ to go to the bedroom and sleep. | S130: upward | T130: high | U130: above | V130: over | X130: hour | Y130: day
A131: 130 | B131: 1 | C131: 1 | D131: 8 | E131: 1 | F131: เสมือน | G131: adj | H131: virtual | I131: seeming real in effect or essence | J131: She was a virtual unknown before this movie. | K131: 1 | N131: 1 | O131: 1 | Q131: She was a ________ unknown before this movie. | S131: near | T131: practical | U131: effective | V131: fundamental | X131: theory | Y131: guess
A132: 131 | B132: 1 | C132: 1 | D132: 8 | E132: 1 | F132: ตู้เสื้อผ้า | G132: noun | H132: wardrobe | I132: a tall cupboard in which to hang clothes | J132: I hang all my shirts in a wardrobe. | K132: 1 | Q132: I hang all my shirts in a ________. | S132: clothes | T132: clothing | U132: attire | V132: apparel | X132: concur | Y132: agree
A133: 132 | B133: 1 | C133: 1 | D133: 8 | E133: 1 | F133: ชม | G133: verb | H133: watch | I133: to look at something for a period of time | J133: He spent the evening watching an old movie on TV. | K133: 1 | L133: 1 | M133: 1 | Q133: He spent the evening ________ing an old movie on TV. | S133: timepiece | T133: wristwatch | U133: fob watch | V133: pocket watch | X133: ignore | Y133: disregard
A134: 133 | B134: 1 | C134: 1 | D134: 8 | E134: 2 | F134: ภรรยา | G134: noun | H134: wife | I134: the woman to whom a man is married; a married woman | J134: I have been married to my wife for the past 17 years. | K134: 1 | L134: 1 | M134: 1 | Q134: I have been married to my ________ for the past 17 years. | S134: companion | T134: consort | U134: husband | V134: spouse | X134: agree | Y134: intensify
A135: 134 | B135: 1 | C135: 1 | D135: 8 | E135: 2 | F135: หญิง | G135: noun | H135: woman | I135: an adult female human being | J135: A man often suffers more from high blood pressure than a woman. | K135: 1 | L135: 1 | M135: 1 | Q135: A man often suffers more from high blood pressure than a ________. | S135: lady | T135: female | U135: girl | V135: chick | X135: man | Y135: guy
A136: 135 | B136: 1 | C136: 1 | D136: 8 | E136: 2 | F136: ไม่ดี | G136: adj | H136: bad | I136: unpleasant; causing difficulties or harm | J136: Flights were delayed because of bad weather. | K136: 1 | L136: 1 | M136: 1 | Q136: Flights were delayed because of ________ weather. | S136: awful | T136: terrible | U136: dreadful | V136: appalling | X136: wonderful | Y136: pleasant
A137: 136 | B137: 1 | C137: 1 | D137: 8 | E137: 2 | F137: ใหญ่ | G137: adj | H137: big | I137: large in size or amount | J137: Do you have these shoes in a bigger size? | K137: 1 | L137: 1 | M137: 1 | Q137: Do you have these shoes in a ________ger size? | S137: large | T137: huge | U137: enormous | V137: gigantic | X137: small | Y137: miniature
A138: 137 | B138: 1 | C138: 1 | D138: 8 | E138: 2 | F138: กลายเป็น | G138: verb | H138: become | I138: to start to be | J138: Do you want to change and become a British citizen? | K138: 1 | L138: 1 | M138: 1 | Q138: Do you want to change and ________ a British citizen? | S138: turn out to be | T138: turn into | U138: develop into | V138: be converted into | X138: uneven | Y138: rough
A139: 138 | B139: 1 | C139: 1 | D139: 8 | E139: 2 | F139: หัวเข็มขัด | G139: noun | H139: buckle | I139: a fastener for a belt | J139: I waer a black belt with a silver buckle. | K139: 1 | P139: 1 | Q139: I waer a black belt with a silver ________. | S139: clasp | T139: clip | U139: fastener | V139: belt | X139: release | Y139: undo
A140: 139 | B140: 1 | C140: 1 | D140: 8 | E140: 3 | F140: อาคาร | G140: noun | H140: building | I140: a structure with walls and a roof | J140: Many buildings were badly damaged or destroyed by the earthquake. | K140: 1 | L140: 1 | M140: 1 | Q140: Many ________s were badly damaged or destroyed by the earthquake. | S140: structure | T140: construction | U140: edifice | V140: house | X140: detach | Y140: leave
A141: 140 | B141: 1 | C141: 1 | D141: 8 | E141: 3 | F141: ประตู | G141: noun | H141: door | I141: a flat hotizontal object used to close the entrance to something such as a room | J141: I’ll meet you at the main door of the library. | K141: 1 | L141: 1 | M141: 1 | Q141: I’ll meet you at the main ________ of the library. | S141: entrance | T141: gate | U141: entry | V141: exit | X141: expenditure | Y141: disagreement
A142: 141 | B142: 1 | C142: 1 | D142: 8 | E142: 3 | F142: ตัวอักษร | G142: noun | H142: alphabet | I142: a set of letters arranged in a fixed order which is used for writing a language | J142: The English alphabet has 26 letters, while the Thai has 44. | M142: 1 | Q142: The English ________ has 26 letters, while the Thai has 44. | S142: letter | T142: character | U142: key | V142: symbol | X142: car | Y142: house
A143: 142 | B143: 1 | C143: 1 | D143: 8 | E143: 3 | F143: กลัว | G143: noun | H143: fear | I143: an unpleasant emotion when frightened or worried by danger or pain | J143: Even when the boat was rocked by waves, the boy showed no fear. | K143: 1 | L143: 1 | M143: 1 | Q143: Even when the boat was rocked by waves, the boy showed no ________. | S143: terror | T143: dread | U143: horror | V143: fright | X143: security | Y143: look forward to
A144: 143 | B144: 1 | C144: 1 | D144: 8 | E144: 3 | F144: รู้สึก | G144: verb | H144: feel | I144: to experience or be aware of something emotional or physical | J144: She said she didn’t want anyone to feel sorry for her. | K144: 1 | L144: 1 | M144: 1 | Q144: She said she didn’t want anyone to ________ sorry for her. | S144: sense | T144: experience | U144: suffer | V144: undergo | X144: rumour | Y144: imagine
A145: 144 | B145: 1 | C145: 1 | D145: 8 | E145: 3 | F145: ชั้น | G145: noun | H145: floor | I145: the flat surface that you walk on when you are inside a building | J145: There were no chairs, so the children sat on the floor. | K145: 1 | L145: 1 | M145: 1 | Q145: There were no chairs, so the children sat on the ________. | S145: ground | T145: bottom | U145: base | V145: flooring | X145: top | Y145: ceiling
A146: 145 | B146: 1 | C146: 1 | D146: 9 | E146: 1 | F146: หัวใจ | G146: noun | H146: heart | I146: the organ in your chest that sends the blood around your body | J146: The heart pumps blood around the body in 60–80 beats per minute (bpm). | K146: 1 | L146: 1 | M146: 1 | Q146: The ________ pumps blood around the body in 60–80 beats per minute (bpm). | S146: spirit | T146: mind | U146: thought | V146: idea | X146: kind | Y146: helpful
A147: 146 | B147: 1 | C147: 1 | D147: 9 | E147: 1 | F147: ไก่ | G147: noun | H147: hen | I147: an adult female chicken that is often kept for its eggs, or the female of any bird | J147: On average, 3 hens will produce 2 eggs a day. | K147: 1 | Q147: On average, 3 ________s will produce 2 eggs a day. | S147: fowl | T147: chicken | U147: rooster | V147: pullet | X147: bright | Y147: finish
A148: 147 | B148: 1 | C148: 1 | D148: 9 | E148: 1 | F148: บ้าน | G148: noun | H148: home | I148: the house, apartment, etc. where you live, especially with your famil | J148: After school, I go home to see my mum and dad. | K148: 1 | L148: 1 | M148: 1 | Q148: After school, I go ________ to see my mum and dad. | S148: house | T148: residence | U148: dwelling | V148: abode | X148: away | Y148: out
A149: 148 | B149: 1 | C149: 1 | D149: 9 | E149: 1 | F149: ในร่ม | G149: adj | H149: indoor | I149: situated inside a building | J149: Tommy lives in a big mansion that has an indoor swimming pool. | K149: 1 | L149: 1 | M149: 1 | Q149: Tommy lives in a big mansion that has an ________ swimming pool. | S149: inside | T149: interior | U149: covered | V149: enclosed | X149: outside | Y149: exterior
A150: 149 | B150: 1 | C150: 1 | D150: 9 | E150: 1 | F150: กระได | G150: noun | H150: ladder | I150: two vertical bars joined by a set of horizontal steps used for climbing up and down | J150: I climbed the ladder to paint high up on the wall. | K150: 1 | L150: 1 | M150: 1 | Q150: I climbed the ________ to paint high up on the wall. | S150: steps | T150: stepladder | U150: stairs | V150: stage | X150: boredom | Y150: compassionate
A151: 150 | B151: 1 | C151: 1 | D151: 9 | E151: 1 | F151: ปู | G151: verb | H151: lay | I151: to put something down, esp. into a flat or horizontal position | J151: He lay down on the sandy beach. | K151: 1 | L151: 1 | M151: 1 | Q151: He ________ down on the sandy beach. | S151: put down | T151: place | U151: rest | V151: put | X151: accolade | Y151: praise
A152: 151 | B152: 1 | C152: 1 | D152: 9 | E152: 2 | F152: ความรัก | G152: verb | H152: love | I152: strong affection for someone, often combined with a strong romantic attraction | J152: "I love you and want to marry you, Emily," he said. | K152: 1 | L152: 1 | M152: 1 | Q152: "I ________ you and want to marry you, Emily," he said. | S152: feel affection for | T152: adore | U152: worship | V152: be in love with | X152: hate | Y152: disgust
A153: 152 | B153: 1 | C153: 1 | D153: 9 | E153: 2 | F153: โชคดี | G153: noun | H153: luck | I153: when good things beyond your own control happen to you. | J153: I hope you do well so I wish you the best of luck for your exams. | K153: 1 | L153: 1 | M153: 1 | Q153: I hope you do well so I wish you the best of ________ for your exams. | S153: fortune | T153: chance | U153: fate | V153: destiny | X153: poverty | Y153: misfortune
A154: 153 | B154: 1 | C154: 1 | D154: 9 | E154: 2 | F154: เต่าทอง | G154: noun | H154: ladybird | I154: a small red beetle which is round and has black spots | J154: Look at that red and black ladybird bug walking on that leaf. | K154: 1 | Q154: Look at that red and black ________ bug walking on that leaf. | S154: ant | T154: bug | U154: bee | V154: beetle | X154: crocodile | Y154: panda
A155: 154 | B155: 1 | C155: 1 | D155: 9 | E155: 2 | F155: นกกางเขน | G155: noun | H155: magpie | I155: a bird with black-and-white feathers and a long tail | J155: The noisy magpies are birds with black and white feathers. | K155: 1 | Q155: The noisy ________s are birds with black and white feathers. | S155: collector | T155: saver | U155: accumulator | V155: squirrel | X155: base | Y155: discomfort
A156: 155 | B156: 1 | C156: 1 | D156: 9 | E156: 2 | F156: ใหม่ | G156: adj | H156: new | I156: recently created or having started to exist recently | J156: She’s always thinking of new ideas. | K156: 1 | L156: 1 | M156: 1 | Q156: She’s always thinking of ________ ideas. | S156: novel | T156: new-fangled | U156: original | V156: innovative | X156: dull | Y156: unoriginal
A157: 156 | B157: 1 | C157: 1 | D157: 9 | E157: 2 | F157: เลือก | G157: verb | H157: pick | I157: to take some things and leave others; to choose | J157: We finally picked February 14 as the date for our wedding. | K157: 1 | L157: 1 | M157: 1 | Q157: We finally ________ed February 14 as the date for our wedding. | S157: choose | T157: select | U157: single out | V157: pick and choose | X157: reject | Y157: discard
A158: 157 | B158: 1 | C158: 1 | D158: 9 | E158: 3 | F158: ใส่ | G158: verb | H158: put | I158: to move something or someone into the stated place, position or direction | J158: She put her coffee cup on the table. | K158: 1 | L158: 1 | M158: 1 | Q158: She ________ her coffee cup on the table. | S158: place | T158: set | U158: lay | V158: position | X158: pick up | Y158: individual
A159: 158 | B159: 1 | C159: 1 | D159: 9 | E159: 3 | F159: ทดสอบ | G159: noun | H159: quiz | I159: a game or competition in which you answer questions | J159: We had a history quiz today. | K159: 1 | L159: 1 | M159: 1 | Q159: We had a history ________ today. | S159: question | T159: ask | U159: interrogate | V159: cross-examine | X159: apathetic | Y159: pull
A160: 159 | B160: 1 | C160: 1 | D160: 9 | E160: 3 | F160: สัมผัส | G160: noun | H160: rhyme | I160: to have the same final sound, or to use words that have the same final sound | J160: "Love" and "above" have the same ending sound. These words rhyme. | K160: 1 | Q160: "Love" and "above" have the same ending sound. These words ________. | S160: poem | T160: verse | U160: nursery rhyme | V160: limmerick | X160: prose | Y160: style
A161: 160 | B161: 1 | C161: 1 | D161: 9 | E161: 3 | F161: แถว | G161: noun | H161: row | I161: a line of things arranged next to each other | J161: I want to sit in the front row of seats. | K161: 1 | L161: 1 | M161: 1 | Q161: I want to sit in the front ________ of seats. | S161: line | T161: line up | U161: chain | V161: string | X161: middle | Y161: hub
A162: 161 | B162: 1 | C162: 1 | D162: 9 | E162: 3 | F162: ปลอดภัย | G162: adj | H162: safe | I162: free from danger or harm, or not causing danger or harm | J162: Be careful and have a safe trip. | K162: 1 | L162: 1 | M162: 1 | Q162: Be careful and have a ________ trip. | S162: secure | T162: protected | U162: in safe hands | V162: out of harm's way | X162: vulnerable | Y162: insecure
A163: 162 | B163: 1 | C163: 1 | D163: 9 | E163: 3 | F163: พูด | G163: verb | H163: say | I163: to speak or pronounce words | J163: The child could say her ABCs when she was still a baby. | K163: 1 | L163: 1 | M163: 1 | Q163: The child could ________ her ABCs when she was still a baby. | S163: speak | T163: utter | U163: articulate | V163: declare | X163: partial | Y163: inarticulate
A164: 163 | B164: 1 | C164: 1 | D164: 10 | E164: 1 | F164: คำพูด | G164: noun | H164: saying | I164: a well-known expression or wise statement | J164: To be or not to be' is a famous saying from Hamlet by William Sharespeare. | K164: 1 | Q164: To be or not to be' is a famous ________ from Hamlet by William Sharespeare. | S164: proverb | T164: adage | U164: maxim | V164: axiom | X164: cautious | Y164: cause
A165: 164 | B165: 1 | C165: 1 | D165: 10 | E165: 1 | F165: รองเท้า | G165: noun | H165: shoe | I165: an item of footwear intended to protect the foot while walking. | J165: I'll put on my shoes and then go outside to play tennis. | K165: 1 | L165: 1 | M165: 1 | Q165: I'll put on my ________s and then go outside to play tennis. | S165: sandal | T165: boot | U165: flip-flop | V165: trainer | X165: coat | Y165: jacket
A166: 165 | B166: 1 | C166: 1 | D166: 10 | E166: 1 | F166: ปิด | G166: verb | H166: shut | I166: to close something | J166: Would you shut the door, please? | K166: 1 | L166: 1 | M166: 1 | Q166: Would you ________ the door, please? | S166: close | T166: close up | U166: push to | V166: seal | X166: open | Y166: unlock
A167: 166 | B167: 1 | C167: 1 | D167: 10 | E167: 1 | F167: จุด | G167: noun | H167: spot | I167: a mark, usually round, that is different esp. in color from the area around it | J167: You got a spot on your new blouse. | K167: 1 | L167: 1 | M167: 1 | Q167: You got a ________ on your new blouse. | S167: mark | T167: blemish | U167: stain | V167: smudge | X167: scrounge | Y167: sponge
A168: 167 | B168: 1 | C168: 1 | D168: 10 | E168: 1 | F168: ติด | G168: verb | H168: stick | I168: to attach or become attached | J168: Stick the tape to the back of the picture. | K168: 1 | L168: 1 | M168: 1 | Q168: ________ the tape to the back of the picture. | S168: attach | T168: glue | U168: fix | V168: join | X168: detachment | Y168: remove
A169: 168 | B169: 1 | C169: 1 | D169: 10 | E169: 1 | F169: ตรง | G169: adj | H169: straight | I169: not bending or curving | J169: Draw a straight line between the two dots. | K169: 1 | L169: 1 | M169: 1 | Q169: Draw a ________ line between the two dots. | S169: direct | T169: line | U169: directly | V169: way | X169: indirectly | Y169: roundabout
A170: 169 | B170: 1 | C170: 1 | D170: 10 | E170: 2 | F170: ถนน | G170: noun | H170: street | I170: a road in a city or town, usually with buildings along one or both sides | J170: Watch out for cars, and look both ways when you cross the street. | K170: 1 | L170: 1 | M170: 1 | Q170: Watch out for cars, and look both ways when you cross the ________. | S170: road | T170: lane | U170: avenue | V170: boulevard | X170: lighten | Y170: blench
A171: 170 | B171: 1 | C171: 1 | D171: 10 | E171: 2 | F171: หวาน | G171: adj | H171: sweet | I171: having a taste similar to that of sugar or honey | J171: The four basic tastes are sweet, salty, bitter, and sour. | K171: 1 | L171: 1 | M171: 1 | Q171: The four basic tastes are ________, salty, bitter, and sour. | S171: sugary | T171: syrupy | U171: saccharine | V171: treacly | X171: boost | Y171: pale
A172: 171 | B172: 1 | C172: 1 | D172: 10 | E172: 2 | F172: วัยโจ๋ | G172: noun | H172: teenager | I172: a person who is 13 through 19 years old | J172: Tom, who is 14, is a lovely teenager. | K172: 1 | Q172: Tom, who is 14, is a lovely ________. | S172: adolescent | T172: young person | U172: youngster | V172: young adult | X172: mature | Y172: grown
A173: 172 | B173: 1 | C173: 1 | D173: 10 | E173: 2 | F173: คิด | G173: verb | H173: think | I173: to have or to form an opinion or idea about something | J173: "Do you think this is the right address?" "I don’t think so." | K173: 1 | L173: 1 | M173: 1 | Q173: "Do you ________ this is the right address?" "I don’t think so." | S173: believe | T173: imagine | U173: reflect | V173: feel | X173: hesitation | Y173: uncertainty
A174: 173 | B174: 1 | C174: 1 | D174: 10 | E174: 2 | F174: สัมผัส | G174: verb | H174: touch | I174: to put the fingers or hand lightly on or against something | J174: That paint is wet, so don’t touch. | K174: 1 | L174: 1 | M174: 1 | Q174: That paint is wet, so don’t ________. | S174: stroke | T174: feel | U174: handle | V174: finger | X174: separate | Y174: separate
A175: 174 | B175: 1 | C175: 1 | D175: 10 | E175: 2 | F175: ร่ม | G175: noun | H175: umbrella | I175: a cover fitted on a folding frame with a handle at one end that protects from rain or sun | J175: A figure carrying an open umbrella walked slowly through the rain. | K175: 1 | L175: 1 | M175: 1 | Q175: A figure carrying an open ________ walked slowly through the rain. | S175: sunshade | T175: sun umbrella | U175: parasol | V175: brolly | X175: hatred | Y175: enmity
A176: 175 | B176: 1 | C176: 1 | D176: 10 | E176: 3 | F176: โชคร้าย | G176: adj | H176: unlucky | I176: to describe when bad things beyond your own control happen to you. | J176: I studied but failed the test. The most difficult questions came up so I was unlucky. | K176: 1 | Q176: I studied but failed the test. The most difficult questions came up so I was ________. | S176: unsuccessful | T176: wretched | U176: unfortunate | V176: unlucky | X176: successful | Y176: noble
A177: 176 | B177: 1 | C177: 1 | D177: 10 | E177: 3 | F177: เดิน | G177: verb | H177: walk | I177: to move along by putting one foot in front of the other | J177: It’s not that far – you can walk it in half an hour. | K177: 1 | L177: 1 | M177: 1 | Q177: It’s not that far – you can ________ it in half an hour. | S177: saunter | T177: stroll | U177: amble | V177: march | X177: allow | Y177: decide
A178: 177 | B178: 1 | C178: 1 | D178: 10 | E178: 3 | F178: ต้องการ | G178: verb | H178: wish | I178: to hope or express desire for success or happiness | J178: I wish I could buy a new car. | K178: 1 | L178: 1 | M178: 1 | Q178: I ________ I could buy a new car. | S178: desire | T178: aspiration | U178: hope | V178: yearning | X178: devastate | Y178: end
A179: 178 | B179: 1 | C179: 1 | D179: 10 | E179: 3 | F179: เนื้อไม้ | G179: noun | H179: wood | I179: a hard substance from trees which can be used as a building material or fuel | J179: He makes tables from natural material, like wood. | K179: 1 | L179: 1 | M179: 1 | Q179: He makes tables from natural material, like ________. | S179: timber | T179: lumber | U179: firewood | V179: plank | X179: agree | Y179: loud
A180: 179 | B180: 1 | C180: 1 | D180: 10 | E180: 3 | F180: คำ | G180: noun | H180: word | I180: a single unit of language that has meaning and can be spoken or written | J180: She spoke so fast I couldn’t understand a word. | K180: 1 | L180: 1 | M180: 1 | Q180: She spoke so fast I couldn’t understand a ________. | S180: utterance | T180: sound | U180: statement | V180: expression | X180: silence | Y180: unsound
A181: 180 | B181: 1 | C181: 1 | D181: 10 | E181: 3 | F181: ค้นหา | G181: verb | H181: search | I181: to look somewhere carefully in order to find something | J181: I searched for the answer on the Internet. | K181: 1 | L181: 1 | M181: 1 | Q181: I ________ed for the answer on the Internet. | S181: look for | T181: hunt | U181: investigate | V181: explore | X181: careless | Y181: fulfill
A182: 181 | B182: 1 | C182: 1 | D182: 11 | E182: 1 | F182: โรยตัว | G182: noun | H182: abseiling | I182: to go down a slope, holding to a rope which is fastened to the slope's top | J182: She went abseiling down the rock face. | K182: 1 | L182: 1 | Q182: She went ________ down the rock face. | S182: climbing | T182: mountaineering | U182: hiking | V182: exploring | X182: running | Y182: swimming
A183: 182 | B183: 1 | C183: 1 | D183: 11 | E183: 1 | F183: ถุง | G183: noun | H183: climate | I183: the general weather conditions usually found in a particular place | J183: My parents like the warm, dry climate of Arizona. | K183: 1 | L183: 1 | M183: 1 | Q183: My parents like the warm, dry ________ of Arizona. | S183: atmosphere | T183: weather | U183: pressure | V183: temperature | X183: mountain | Y183: lake
A184: 183 | B184: 1 | C184: 1 | D184: 11 | E184: 1 | F184: วงดนตรี | G184: noun | H184: band | I184: a group of musicians who play modern music together | J184: Potato is a great Thai rock band. | K184: 1 | L184: 1 | M184: 1 | Q184: Potato is a great Thai rock ________. | S184: group | T184: gang | U184: crew | V184: posse | X184: quiet | Y184: still
A185: 184 | B185: 1 | C185: 1 | D185: 11 | E185: 1 | F185: เลข | G185: noun | H185: figure | I185: the symbol for a number or an amount expressed in numbers | J185: Can you read this figure? Is it a three or an eight? | M185: 1 | Q185: Can you read this ________? Is it a three or an eight? | S185: shape | T185: form | U185: outline | V185: stature | X185: fire | Y185: end
A186: 185 | B186: 1 | C186: 1 | D186: 11 | E186: 1 | F186: สีดำ | G186: adj | H186: black | I186: the darkest color there is, like night | J186: He was dressed all in black. | K186: 1 | L186: 1 | M186: 1 | Q186: He was dressed all in ________. | S186: white | T186: yellow | U186: green | V186: red | X186: sweet | Y186: sour
A187: 186 | B187: 1 | C187: 1 | D187: 11 | E187: 1 | F187: สีบลอนด์ | G187: adj | H187: blond | I187: pale yellow or golden | J187: Do you think she’s a natural blonde, or is her hair bleached? | K187: 1 | Q187: Do you think she’s a natural ________e, or is her hair bleached? | S187: fair-haired | T187: pale | U187: light-colored | V187: flaxen | X187: dawdle | Y187: grow
A188: 187 | B188: 1 | C188: 1 | D188: 11 | E188: 2 | F188: ทันตแพทย์ | G188: noun | H188: dentist | I188: a person whose job is treating people’s teeth | J188: My teeth are hurting. I think I must go to a dentist. | K188: 1 | L188: 1 | M188: 1 | Q188: My teeth are hurting. I think I must go to a ________. | S188: nurse | T188: doctor | U188: surgeon | V188: paramedic | X188: clown | Y188: teacher
A189: 188 | B189: 1 | C189: 1 | D189: 11 | E189: 2 | F189: สีน้ำเงิน | G189: adj | H189: blue | I189: of the colour of the sky without clouds on a bright day, or a darker or lighter type of this | J189: The sky is a beautiful shade of blue. | K189: 1 | L189: 1 | M189: 1 | Q189: The sky is a beautiful shade of ________. | S189: azure | T189: cobalt | U189: navy | V189: sapphire | X189: happy | Y189: happy
A190: 189 | B190: 1 | C190: 1 | D190: 11 | E190: 2 | F190: สุกใส | G190: adj | H190: brilliant | I190: very good | J190: Armstrong was one of the most brilliant musicians in jazz. | K190: 1 | L190: 1 | M190: 1 | P190: 1 | Q190: Armstrong was one of the most ________ musicians in jazz. | S190: clever | T190: intelligent | U190: dazzling | V190: sparkling | X190: thick | Y190: dull
A191: 190 | B191: 1 | C191: 1 | D191: 11 | E191: 2 | F191: สีน้ำตาล | G191: adj | H191: brown | I191: the color of chocolate or earth | J191: He was wearing a brown shirt. | K191: 1 | L191: 1 | M191: 1 | Q191: He was wearing a ________ shirt. | S191: chocolate | T191: coffee | U191: tan | V191: russet | X191: dull | Y191: tiresome
A192: 191 | B192: 1 | C192: 1 | D192: 11 | E192: 2 | F192: รถบัส | G192: noun | H192: bus | I192: a large vehicle in which people are driven from one place to another | J192: The tour bus was the easiest way to see the area. | K192: 1 | L192: 1 | M192: 1 | Q192: The tour ________ was the easiest way to see the area. | S192: means of transportation | T192: motor vehicle | U192: car | V192: van | X192: boost | Y192: pale
A193: 192 | B193: 1 | C193: 1 | D193: 11 | E193: 2 | F193: หยุด | G193: verb | H193: stop | I193: to finish doing something that you were doing | J193: When do you think the snow will stop? | K193: 1 | L193: 1 | M193: 1 | Q193: When do you think the snow will ________? | S193: discontinue | T193: end | U193: break | V193: rest | X193: continue | Y193: persist
A194: 193 | B194: 1 | C194: 1 | D194: 11 | E194: 3 | F194: แคลิฟอร์เนีย | G194: adj | H194: californian | I194: someone who lives and works in California, USA. | J194: Most people in Hollywood are Californians. | K194: 1 | Q194: Most people in Hollywood are ________s. | S194: Alaskan | T194: Texan | U194: Floridians | V194: Hawaiian | X194: Indonesian | Y194: African
A195: 194 | B195: 1 | C195: 1 | D195: 11 | E195: 3 | F195: ฝาครอบ | G195: noun | H195: cap | I195: a soft, light hat, esp. one with a curved part sticking out at the front | J195: My uncle must have a hundred baseball caps to choose from. | K195: 1 | L195: 1 | M195: 1 | Q195: My uncle must have a hundred baseball ________s to choose from. | S195: limit | T195: restrict | U195: put a ceiling on | V195: check | X195: bumpy | Y195: conserve
A196: 195 | B196: 1 | C196: 1 | D196: 11 | E196: 3 | F196: ชั้น | G196: noun | H196: class | I196: a group of students, taught together in a particular subject at school | J196: I am in class M1. | K196: 1 | L196: 1 | M196: 1 | Q196: I am in ________ M1. | S196: group of students | T196: group of pupils | U196: group | V196: course group | X196: back | Y196: shun
A197: 196 | B197: 1 | C197: 1 | D197: 11 | E197: 3 | F197: มา | G197: verb | H197: come | I197: to move or travel towards the speaker or with the speaker | J197: Tomorrow, my uncle will come here from Bangkok. | K197: 1 | L197: 1 | M197: 1 | Q197: Tomorrow, my uncle will ________ here from Bangkok. | S197: approach | T197: move toward | U197: draw closer | V197: get nearer | X197: retreat | Y197: leave
A198: 197 | B198: 1 | C198: 1 | D198: 11 | E198: 3 | F198: จิ้งหรีด | G198: noun | H198: cricket | I198: a team sport popular in England, played with a small, hard ball and a bat | J198: We all went to the village green to play the old English game of cricket together. | K198: 1 | Q198: We all went to the village green to play the old English game of ________ together. | S198: volleyball | T198: basketball | U198: football | V198: hockey | X198: chess | Y198: poker
A199: 198 | B199: 1 | C199: 1 | D199: 11 | E199: 3 | F199: มันฝรั่งทอดกรอบ | G199: noun | H199: crisps | I199: a very thin slice of potato fried until stiff, and sometimes flavored | J199: Lays are greazt tasty crisps or potato chips. | K199: 1 | Q199: Lays are greazt tasty ________ or potato chips. | S199: potato chips | T199: savoury snacks | U199: croutons | V199: pitta chips | X199: broccoli | Y199: ice cream
A200: 199 | B200: 1 | C200: 1 | D200: 12 | E200: 1 | F200: มืด | G200: adj | H200: dark | I200: with little or no light | J200: It was too dark to see much of anything. | K200: 1 | L200: 1 | M200: 1 | Q200: It was too ________ to see much of anything. | S200: dim | T200: shady | U200: shadowy | V200: murky | X200: strong | Y200: aboveboard
... 2050 more rows

Sheet Student WordList
A1: Wk | B1: Thai | C1: Thai | D1: Word | E1: Definition | M1: Adj.
A2: 1 | B2: 1 | C2: ห้อมล้อม | D2: encompass | E2: to include different types of things | G2: =IF(H3=9,"AWL",IF(H3=8,"SAT",IF(H3=7,"TOEFL","High school"))) -> High school | M2: =H3*2 -> 12 | O2: M | P2: Sem | Q2: Ref | R2: Row
C3: verb | D3: The festival is going to encompass everything from music to literature. | G3: =IF(H3<7,"M","Level") -> M | H3: 6 | M3: Total | O3: 1 | P3: 1 | Q3: =(O3*2)+P3 -> 3 | R3: ='M Order'!N2 -> 2
A4: 1 | B4: 1 | C4: นำไปใช้ | D4: utilise | E4: to use something in an effective way | G4: Sem | H4: 2 | M4: =H4+M2 -> 14 | O4: 1 | P4: 2 | Q4: =(O4*2)+P4 -> 4 | R4: ='M Order'!N16 -> 362
C5: verb | D5: The body is always able to utilise vitamins. | M5: Row start | O5: 2 | P5: 1 | Q5: 5 | R5: ='M Order'!O2 -> 722
A6: 1 | B6: 1 | C6: ชามที่มีรูปทรง | D6: deteriorating | E6: to become worse | J6: Nouns | K6: =COUNTIF(C:C,"noun") -> 138 | M6: =VLOOKUP($M$4,$Q$3:$R$20,2) -> 4162 | O6: 2 | P6: 2 | Q6: 6 | R6: ='M Order'!O16 -> 1082
C7: adj | D7: Currently, there are deteriorating relations between the USA and Russia. | J7: Verbs | K7: =COUNTIF(C:C,"verb") -> 139 | O7: 3 | P7: 1 | Q7: 7 | R7: ='M Order'!P2 -> 1442
A8: 1 | B8: 1 | C8: ล่มสลาย | D8: collapse | E8: to fall down suddenly, or to cause to fall down | J8: Adjectives | K8: =COUNTIF(C:C,"adj") -> 104 | O8: 3 | P8: 2 | Q8: 8 | R8: ='M Order'!P16 -> 1802
C9: verb | D9: Thousands of buildings will collapse in the event of an earthquake. | J9: Adverbs | K9: =COUNTIF(C:C,"adv") -> 13 | M9: Make sure | O9: 4 | P9: 1 | Q9: 9 | R9: ='M Order'!Q2 -> 2162
A10: 1 | B10: 1 | C10: แหวกแนว | D10: innovate | E10: to introduce changes and new ideas | J10: Pronouns | K10: =COUNTIF(C:C,"pron") -> 0 | M10: line 801 | O10: 4 | P10: 2 | Q10: 10 | R10: ='M Order'!Q16 -> 2562
C11: verb | D11: The fashion industry is always desperate to innovate new ideas. | J11: Prepositions | K11: =COUNTIF(C:C,"prep") -> 4 | M11: and 802 | O11: 5 | P11: 1 | Q11: 11 | R11: ='M Order'!R2 -> 2962
A12: 1 | B12: 1 | C12: รากฐาน | D12: foundation | E12: the base that is built below the surface of the ground to support a building | J12: Conjunctions | K12: =COUNTIF(C:C,"conj") -> 2 | M12: have | O12: 5 | P12: 2 | Q12: 12 | R12: ='M Order'!R16 -> 3362
C13: noun | D13: The foundation was reinforced to prevent the house from sinking. | J13: Expressions | K13: =COUNTIF(C:C,"exp") -> 0 | M13: "blank" | O13: 6 | P13: 1 | Q13: 13 | R13: ='M Order'!S2 -> 3762
A14: 1 | B14: 1 | C14: เกิดปฏิกิริยา | D14: react | E14: to act in a particular way as a direct result of something else | M14: in cells | O14: 6 | P14: 2 | Q14: 14 | R14: ='M Order'!S16 -> 4162
C15: verb | D15: She slapped him and called him names, but he didn't react. | J15: Total Words | K15: =SUM(K6:K14) -> 400 | M15: in white | N15: TOEFL | O15: 7 | P15: 1 | Q15: 15 | R15: 2
A16: 1 | B16: 1 | C16: ก่อน | D16: prior | E16: coming before in time, order, or importance | M16: for loops | O16: 7 | P16: 2 | Q16: 16 | R16: 402
C17: adj | D17: The course does not require any prior knowledge of Spanish. | M17: to stop | N17: SAT | O17: 8 | P17: 1 | Q17: 17 | R17: 2
A18: 1 | B18: 1 | C18: โหมด | D18: mode | E18: a way of operating, living, or behaving | O18: 8 | P18: 2 | Q18: 18 | R18: 402
C19: noun | D19: Each department in the company has its own mode of operation. | N19: AWL | O19: 9 | P19: 1 | Q19: 19 | R19: 2
A20: 1 | B20: 1 | C20: ชำนาญ | D20: expert | E20: a person having a high level of knowledge or skill in a particular subject | O20: 9 | P20: 2 | Q20: 20 | R20: 402
C21: noun | D21: My mother is an expert at dress-making.
A22: 1 | B22: 2 | C22: ตัดคำพูด | D22: bowl-shaped | E22: having a concave shape with an open top like a bowl | N22: M | O22: 1 | P22: Sem | Q22: 1
C23: adj | D23: The Beatles' haircuts in the 60's were quite bowl-shaped. | O23: 2 | Q23: 2
A24: 1 | B24: 2 | C24: แสดง | D24: indicate | E24: to show or signal a direction or warning, or to make something clear | O24: 3
C25: verb | D25: Please indicate which free gift you would like to receive. | O25: 4
A26: 1 | B26: 2 | C26: เป้า | D26: target | E26: a circular object with rings aimed and fired at during shooting practice | O26: 5
C27: noun | D27: Any major airport or station is potentially a terrorist target. | O27: 6
A28: 1 | B28: 2 | C28: อย่างไรก็ตาม | D28: notwithstanding | E28: despite the fact or thing mentioned | O28: 7
C29: adv | D29: Injuries notwithstanding, he won the semifinal match. | O29: 8
A30: 1 | B30: 2 | C30: ต่างประเทศ | D30: overseas | E30: in, from, or to countries that are across the sea | O30: 9
C31: adj | D31: There are a lot of overseas students in Cambridge.
A32: 1 | B32: 2 | C32: โครงสร้างพื้นฐาน | D32: infrastructure | E32: the basic structure of an organization or system necessary for its operation
C33: noun | D33: The war has badly damaged the country's infrastructure.
A34: 1 | B34: 2 | C34: เครียด | D34: tense | E34: anxious, unable to relax, or causing anxiety
C35: adj | D35: She was very nervous and tense as she waited for the interview.
A36: 1 | B36: 2 | C36: เอาเปรียบ | D36: exploit | E36: a brave, interesting, or unusual act
C37: verb | D37: We need to make sure that we exploit our resources as fully as possible.
A38: 1 | B38: 2 | C38: นำความอัปยศเมื่อ | D38: dulled | E38: to make or become dull
C39: verb | D39: He was dulled to the pain by the anesthetic.
A40: 1 | B40: 2 | C40: คุณภาพ | D40: qualitative | E40: relating to the quality of an experience rather than to measurable facts
C41: adj | D41: Is there any qualitative difference between these two DVD players?
A42: 2 | B42: 1 | C42: สื่อ | D42: media | E42: newspapers, magazines, television, and radio, considered as a group
C43: noun | D43: The issue has been much discussed in the media.
A44: 2 | B44: 1 | C44: ลำดับ | D44: sequence | E44: a series of related things or events, or the order in which things follow each other
C45: noun | D45: The first chapter describes the strange sequence of events that led to his death.
A46: 2 | B46: 1 | C46: คาบเกี่ยว | D46: overlap | E46: to have some parts or features that are the same
C47: verb | D47: The fence is made of panels that overlap with each other.
A48: 2 | B48: 1 | C48: ตอบสนอง | D48: respond | E48: to say or do something as a reaction to something that has been said or done
C49: verb | D49: I asked her what the time was, but she didn't respond.
A50: 2 | B50: 1 | C50: มิติ | D50: dimension | E50: a measurement of something in a particular direction, esp. height or width
C51: noun | D51: Please specify the each dimension, such as the height and bredth, of the room.
A52: 2 | B52: 1 | C52: ปรัชญา | D52: philosophy | E52: the study of the nature of reality and existence, of what it is possible to know
C53: noun | D53: René Descartes is regarded as the founder of modern philosophy
A54: 2 | B54: 1 | C54: ตัวตายตัวแทน | D54: successor | E54: that which follows and takes the job, place, or position that was held by another
C55: noun | D55: The university is seeking a successor to its vice chancellor, who retires this Easter.
A56: 2 | B56: 1 | C56: เปลี่ยน | D56: shift | E56: to change direction or move from one person, position, or place to another
C57: verb | D57: The wind is expected to shift to the east tomorrow.
A58: 2 | B58: 1 | C58: ไม่อ้อมค้อม | D58: straightforward | E58: easy to understand; clear
C59: adj | D59: Just follow the signs to Bradford - it's very straightforward.
A60: 2 | B60: 1 | C60: ปลอดภัย | D60: secure | E60: free from risk and the threat of change for the worse
C61: adj | D61: Be careful. That ladder doesn't look very secure to me.
A62: 2 | B62: 2 | C62: มีการศึกษา | D62: distrustful | E62: the feeling of not trusting someone or something
C63: adj | D63: He was distrustful of her motives as she had lied to him previously.
A64: 2 | B64: 2 | C64: โอกาส | D64: prospect | E64: the possibility or likelihood that something will happen
C65: noun | D65: There seems little prospect of an end to the dispute.
A66: 2 | B66: 2 | C66: และ | D66: take no notice of | E66: to not receive information
C67: verb | D67: I asked him to drive more slowly, but he seemed to take no notice of what I said.
A68: 2 | B68: 2 | C68: พื้นฐาน | D68: fundamental | E68: being the most basic or most important thing on which other things depend
C69: adj | D69: We need to make fundamental changes to the way in which we treat our environment.
A70: 2 | B70: 2 | C70: แม้ว่า | D70: albeit | E70: despite the stated thing; although
C71: conj | D71: The evening was very pleasant, albeit a little quiet.
A72: 2 | B72: 2 | C72: วิชาเลือก | D72: drape | E72: to put something such as cloth or a piece of clothing loosely over something
C73: verb | D73: He he began to drape his jacket over the back of the chair as he sat down to eat.
A74: 2 | B74: 2 | C74: กลยุทธ์ | D74: strategy | E74: a long-range plan for achieving something or reaching a goal
C75: noun | D75: Their marketing strategy imcludes obtaining as much free publicity as posible.
A76: 2 | B76: 2 | C76: ปฏิเสธ | D76: reject | E76: to refuse to accept, use, or believe something or someone
C77: verb | D77: Coin-operated machines in England reject euros.
A78: 2 | B78: 2 | C78: ตัวอย่าง | D78: instance | E78: a particular situation, event, or fact
C79: noun | D79: I don't usually agree, but in this instance I sympathise with what they're saying.
A80: 2 | B80: 2 | C80: ภาค | D80: sector | E80: a part of society, separated from other parts because of its own special character
C81: noun | D81: In the financial sector, banks have lost a lot of money.
A82: 3 | B82: 1 | C82: กำหนด | D82: impose | E82: to establish or force something as a rule to be obeyed
C83: verb | D83: The government is going to impose high taxes on cigarettes.
A84: 3 | B84: 1 | C84: ความจุ | D84: capacity | E84: the amount that can be held or produced by something
C85: noun | D85: The stadium has a seating capacity of 50,000.
A86: 3 | B86: 1 | C86: รูป | D86: format | E86: the way in which something is shown or arranged
C87: noun | D87: The meeting will have the usual format, beginning with an introductory session.
A88: 3 | B88: 1 | C88: สนับสนุน | D88: contribute | E88: to help by providing money or support
C89: verb | D89: Aren't you going to contribute towards Jack's leaving present?
A90: 3 | B90: 1 | C90: สั่ง | D90: instruct | E90: to teach someone how to do something
C91: verb | D91: The police attempted to instruct motorists to drive carefully during the bank holidays.
A92: 3 | B92: 1 | C92: แรงจูงใจ | D92: incentive | E92: something that encourages a person to do something
C93: noun | D93: Bonus payments provide an incentive to work harder.
A94: 3 | B94: 1 | C94: ผ่านทาง | D94: via | E94: by way of, or by use of
C95: prep | D95: The London-Addis flight goes via Rome.
A96: 3 | B96: 1 | C96: คงที่ | D96: constant | E96: nearly continuous or very frequent
C97: adj | D97: He's in constant trouble with the police.
A98: 3 | B98: 1 | C98: หัวรุนแรง | D98: radical | E98: believing there should be great or extreme social, economic, or political change
C99: adj | D99: Most people believe that fundamentalists have very radical views.
A100: 3 | B100: 1 | C100: เส้นทาง | D100: route | E100: a particular way or direction between places
C101: noun | D101: I live on a bus route so I can easily get to work.
A102: 3 | B102: 2 | C102: โต้ตอบ | D102: interact | E102: to communicate with or react to each other
C103: verb | D103: Dominique's teacher says that she seems to interact well with the other children.
A104: 3 | B104: 2 | C104: อาสา | D104: undertake | E104: to take responsibility for and begin doing something
C105: verb | D105: Students are required to undertake simple experiments.
A106: 3 | B106: 2 | C106: เหยียบ | D106: tread | E106: to put your foot on something or to press something down with your foot
C107: verb | D107: Before the days of automation, they used to tread grapes to make wine.
A108: 3 | B108: 2 | C108: ทำให้เสื่อมทราม | D108: hedonism | E108: living and behaving for pleasure for oneself
C109: noun | D109: The later Roman emperors were notorious for their hedonism.
A110: 3 | B110: 2 | C110: ยุติ | D110: terminate | E110: to end or stop, or to cause something to end or stop
C111: verb | D111: This train will terminate at the next stop so passengers will need to exit the train.
A112: 3 | B112: 2 | C112: สถิติ | D112: statistic | E112: a single number in a range of statistics
C113: noun | D113: The city's most shocking statistic is its high infant mortality rate.
A114: 3 | B114: 2 | C114: สื่อสาร | D114: communicate | E114: to give messages through speech, writing, body movements, or signals
C115: verb | D115: We can now communicate instantly with people on the other side of the world.
A116: 3 | B116: 2 | C116: แทรกแซง | D116: intervene | E116: to become involved intentionally in a difficult situation in order to change it
C117: verb | D117: The Central Bank is going to intervene to try to stabilize the exchange rate.
A118: 3 | B118: 2 | C118: กลับไม่ได้ | D118: irreversible | E118: not possible to change; impossible to return to a previous condition
C119: adj | D119: Smoking has caused irreversible damage to his lungs.
A120: 3 | B120: 2 | C120: ไล่ | D120: displace | E120: to force something or someone out of its usual or original place
C121: verb | D121: The building of a new dam will displace thousands of people who live in this area.
A122: 4 | B122: 1 | C122: จัดสรร | D122: allocate | E122: to give something as a share of a total amount
C123: verb | D123: As project leader, you will have to allocate jobs to people.
A124: 4 | B124: 1 | C124: จิตวิทยา | D124: psychology | E124: the scientific study of how the mind works and how it influences behavior
C125: noun | D125: She studied psychology at Harvard.
A126: 4 | B126: 1 | C126: สรุป | D126: infer | E126: to reach an opinion from available information or facts
C127: verb | D127: What do you infer from her refusal?
A128: 4 | B128: 1 | C128: ปรับแต่ง | D128: refine | E128: to make a substance pure by removing unwanted material
C129: verb | D129: Oil producers refine crude oil to purify it and separate elements, such as benzene.
A130: 4 | B130: 1 | C130: รวบรวม | D130: assemble | E130: to bring or come together in a single group or place
C131: verb | D131: We are going to assemble in the meeting room after lunch.
A132: 4 | B132: 1 | C132: ทีม | D132: team | E132: a number of people who act together as a group to achieve something
C133: noun | D133: It was a real team effort. Everyone contributed to the success of the project.
A134: 4 | B134: 1 | C134: คาย | D134: evolve | E134: to change or develop gradually
C135: verb | D135: The company will evolve and grow into a multi-million dollar organization.
A136: 4 | B136: 1 | C136: ปรสิต | D136: parasite | E136: an animal or plant that lives off another animal or plant of a different type
C137: noun | D137: The older drugs didn't deal effectively with the malaria parasite.
A138: 4 | B138: 1 | C138: เลื่อน | D138: suspend | E138: to stop doing an activity
C139: verb | D139: The company will suspend the ferry service when there is bad weather.
A140: 4 | B140: 1 | C140: ประมาณ | D140: approximate | E140: almost exact
C141: adj | D141: The approximate cost will be about $600.
A142: 4 | B142: 2 | C142: แก้ไข | D142: edit | E142: to prepare text or film by correcting mistakes, deciding what will be removed
C143: verb | D143: Janet had to re-write and edit her book for a variety of publishers.
A144: 4 | B144: 2 | C144: ขาดแคลน | D144: scarce | E144: not easy to find or get
C145: adj | D145: During the floods, food and clean water were becoming scarce.
A146: 4 | B146: 2 | C146: ติดร่างแห | D146: implicate | E146: to show that someone is involved in a crime or partly responsible for something bad
C147: verb | D147: Have they any evidence to implicate him in the robbery?
A148: 4 | B148: 2 | C148: ในประเทศ | D148: domestic | E148: relating to the home, house, or family
C149: adj | D149: Demonstrations showed US domestic opinion had turned against the Vietnam war.
A150: 4 | B150: 2 | C150: การขนส่ง | D150: transit | E150: the process of moving, or the movement of goods or people from one place to another
C151: noun | D151: It is possible to make an insurance claim for any goods lost or damaged in transit.
A152: 4 | B152: 2 | C152: งาน | D152: task | E152: a piece of work to be done, esp. one done regularly, unwillingly, or with difficulty
C153: noun | D153: The government now faces the daunting task of restructuring the economy.
A154: 4 | B154: 2 | C154: แต่ | D154: nevertheless | E154: despite what has just been said or referred to
C155: adv | D155: I knew a lot about the subject already, but her talk was interesting nevertheless.
A156: 4 | B156: 2 | C156: ออกกฎหมาย | D156: legislate | E156: to make laws
C157: verb | D157: The government have promised to legislate against cigarette advertising.
A158: 4 | B158: 2 | C158: เข้มข้น | D158: intense | E158: extreme or requiring a lot of effort
C159: adj | D159: He suddenly felt an intense pain in his back.
A160: 4 | B160: 2 | C160: มุมมอง | D160: perspective | E160: a particular way of viewing things that depends on one’s experience and personality
C161: noun | D161: Her attitude lends a fresh perspective to the subject.
A162: 5 | B162: 1 | C162: บรรลุ | D162: attain | E162: to achieve something difficult to do or obtain
C163: verb | D163: He has to attain a 4.0 GPA to apply to a good university.
A164: 5 | B164: 1 | C164: โดยธรรมชาติ | D164: inherent | E164: existing as a natural and permanent quality of something or someone
C165: adj | D165: There are risks inherent in almost every sport.
A166: 5 | B166: 1 | C166: ครอบคลุม | D166: comprehensive | E166: including everything that is necessary; complete
C167: adj | D167: We offer you a comprehensive training in all aspects of the business.
A168: 5 | B168: 1 | C168: สุ่ม | D168: random | E168: happening, done, or chosen by chance rather than according to a plan or pattern
C169: adj | D169: We asked a random sample of people what they thought.
A170: 5 | B170: 1 | C170: ถอด | D170: remove | E170: to take something away from an object, group, or place
C171: verb | D171: This detergent will remove even old stains.
A172: 5 | B172: 1 | C172: เน้น | D172: highlight | E172: the best, most important, or most interesting part
C173: verb | D173: The report is going to highlight the need for improved safety.
A174: 5 | B174: 1 | C174: ผ่าน | D174: undergo | E174: to experience something that is unpleasant or has a strong effect
C175: verb | D175: She will undergo an operation on a tumour in her left lung next week.
A176: 5 | B176: 1 | C176: เริ่มต้น | D176: initiate | E176: to cause something to begin
C177: verb | D177: Who is going to initiate the initial offer?
A178: 5 | B178: 1 | C178: เข้ากันได้ | D178: compatible | E178: able to exist or work with something or someone else
C179: adj | D179: This software may not be compatible with older operating systems.
A180: 5 | B180: 1 | C180: เริม | D180: commence | E180: to begin something
C181: verb | D181: Unfortunately, he began to commence speaking before all the guests had arrived.
A182: 5 | B182: 2 | C182: ประชุมกัน | D182: convene | E182: to meet formally as a group, or to arrange a meeting of people or groups for a serious purpose
C183: verb | D183: The prime minister will convene a meeting to discuss the matter.
A184: 5 | B184: 2 | C184: กระนั้น | D184: nonetheless | E184: despite what has just been said or referred to; nevertheless
C185: adv | D185: The first attempt failed. Nonetheless, we feel we should try again.
A186: 5 | B186: 2 | C186: ที่สุด | D186: ultimate | E186: most important, highest, last, or final
C187: adj | D187: The ultimate decision about who to employ lies with Andrew.
A188: 5 | B188: 2 | C188: เสริม | D188: supplement | E188: something extra added to something else in order to improve it or complete it
C189: noun | D189: The money from teaching evening classes provides a supplement to the main income.
A190: 5 | B190: 2 | C190: นอกจากนี้ | D190: furthermore | E190: to add information; similar to 'also' and 'more importantly'
C191: adv | D191: We should use Barkers because they're good and furthermore they're cheap.
A192: 5 | B192: 2 | C192: ทฤษฎี | D192: theory | E192: something suggested as a reasonable explanation for facts, a condition, or an event
C193: noun | D193: He has a theory that the hole was caused by a meteorite.
A194: 5 | B194: 2 | C194: เบี่ยงเบน | D194: deviate | E194: to change from the usual way, or to go in a different direction
C195: verb | D195: The recent pattern of weather seems to deviate from the norm for this time of year.
A196: 5 | B196: 2 | C196: พบ | D196: encounter | E196: to meet someone unexpectedly, or to experience, esp. something unpleasant
C197: verb | D197: This meeting will be the first encounter between the party leaders since the election.
A198: 5 | B198: 2 | C198: ยุติ | D198: cease | E198: to stop an action or condition
C199: verb | D199: Whether the protests will cease remains to be seen.
A200: 5 | B200: 2 | C200: ภายนอก | D200: external | E200: existing, intended for, or happening outside a person, organization, place, country, etc
... 603 more rows

Sheet L_Vocab
C1: Name: ___________________ | F1: Number: _______________ Class: _____________
A3: M | B3: 1 | C3: Week | D3: 1 | E3: Word Scramble Semester | G3: 2
E4: Unscramble the words below, and match each word with its definition.
B5: Part 1
B6: # | C6: Word | D6: Answer | E6: Wd | F6: Find the Clue | H6: Rand | I6: Cl
B7: 1 | C7: =L_List!L2 -> trfneaono | D7: =RAND() -> 0.1222919648 | E7: 1 | F7: =L_List!F2 -> time from twelve o'clock lunchtime till the sun goes down | H7: =RAND() -> 0.7735835486 | I7: 1 | Y7: Wks
B8: 2 | C8: =L_List!L3 -> lyasaw | D8: 0.3261077238 | E8: 2 | F8: =L_List!F3 -> every time, all the time, or forever | H8: 0.5927655395 | I8: 2 | U8: 1 | V8: Matthayom | Y8: 1
B9: 3 | C9: =L_List!L4 -> conab | D9: 0.5793084536 | E9: 3 | F9: =L_List!F4 -> salted or smoked meat from the back or sides of a pig, usually eaten sliced and fried | H9: 0.770981808 | I9: 3 | U9: 2 | Y9: 2
B10: 4 | C10: =L_List!L5 -> bchae | D10: 0.4460126483 | E10: 4 | F10: =L_List!F5 -> an area of sand or small stones near the sea or another area of water such as a lake | H10: 0.06212094535 | I10: 4 | U10: 3 | Y10: 3
B11: 5 | C11: =L_List!L6 -> cbeuaes | D11: 0.1196883288 | E11: 5 | F11: =L_List!F6 -> for the reason that | H11: 0.1799925704 | I11: 5 | U11: 4 | Y11: 4
B12: 6 | C12: =L_List!L7 -> giebn | D12: 0.1955886536 | E12: 6 | F12: =L_List!F7 -> to start to be, do, | H12: 0.1726002536 | I12: 6 | U12: 5 | Y12: 5
B13: 7 | C13: =L_List!L8 -> aihyrdtb | D13: 0.4936156392 | E13: 7 | F13: =L_List!F8 -> the day that is a year or number of years after a person was born | H13: 0.2433714174 | I13: 7 | U13: 6 | Y13: 6
B14: 8 | C14: =L_List!L9 -> kbearasft | D14: 0.8255058379 | E14: 8 | F14: =L_List!F9 -> a meal eaten in the morning as the first meal of the day | H14: 0.578040013 | I14: 8 | U14: 7 | V14: TOEFL | W14: N | Y14: 7
B15: 9 | C15: =L_List!L10 -> but | D15: 0.3035515406 | E15: 9 | F15: =L_List!F10 -> used to express a difference or to introduce an added statement | H15: 0.3466499252 | I15: 9 | U15: 8 | V15: SAT | W15: I | Y15: 8
U16: 9 | V16: AWL | W16: S | Y16: 9
B17: Part 2 | Y17: 10
B18: 10 | C18: =L_List!L11 -> arc | D18: =RAND() -> 0.2497432866 | E18: 10 | F18: =L_List!F18 -> the main meal of the day, whether in the evening or midday | H18: =RAND() -> 0.6879771486 | I18: 10 | V18: Sem | W18: 1 | Y18: 11
B19: 11 | C19: =L_List!L12 -> rlaece | D19: 0.5638178186 | E19: 11 | F19: =L_List!F13 -> to talk to someone in a friendly informal way | H19: 0.02463161617 | I19: 11 | W19: 2 | Y19: 12
B20: 12 | C20: =L_List!L13 -> htca | D20: 0.9029727659 | E20: 12 | F20: =L_List!F12 -> a food made from grain that is eaten esp. for breakfast | H20: 0.03711659388 | I20: 12 | Y20: 13
B21: 13 | C21: =L_List!L14 -> srstahCmi | D21: 0.8208433497 | E21: 13 | F21: =L_List!F14 -> December 25th, a day celebrated each year to honor the birth of Jesus | H21: 0.07381935529 | I21: 13 | Y21: 14
B22: 14 | C22: =L_List!L15 -> aroendugs | D22: 0.8325291481 | E22: 14 | F22: =L_List!F11 -> a road vehicle with an engine, four wheels, and seats | H22: 0.6887529558 | I22: 14 | Y22: 15
B23: 15 | C23: =L_List!L16 -> vreledi | D23: 0.5961125712 | E23: 15 | F23: =L_List!F16 -> to take goods, letters, or packages to people’s houses or places of work | H23: 0.4364820522 | I23: 15 | Y23: 16
B24: 16 | C24: =L_List!L17 -> evetecdti | D24: 0.08933270061 | E24: 16 | F24: =L_List!F15 -> able or likely to cause harm or death, or unpleasant problems | H24: 0.7587488065 | I24: 16 | Y24: 17
B25: 17 | C25: =L_List!L18 -> nnderi | D25: 0.2350811066 | E25: 17 | F25: =L_List!F19 -> used with another verb to form questions and negative sentences | H25: 0.389244957 | I25: 17 | Y25: 18
B26: 18 | C26: =L_List!L19 -> do | D26: 0.9866345608 | E26: 18 | F26: =L_List!F17 -> someone who discovers information about crimes and find out who is responsible | H26: 0.115286966 | I26: 18 | Y26: 19
Y27: 20
A29: =A3 -> M | B29: =B3 -> 1 | C29: =C3 -> Week | D29: =D3 -> 1 | E29: Cloze Sentences Semester | G29: =G3 -> 2
E30: Choose a word to complete the sentences below:
B31: Part 1
B32: # | C32: Thai | D32: Word | E32: # | F32: Sentence | H32: Rand | I32: Sn
B33: 1 | C33: =$O$33 -> ชายหาด | D33: =$P$33 -> beach | E33: a) | F33: =L_List!G3 -> He ________ enjoyed having dinner with friends. | H33: =RAND() -> 0.746923417 | I33: 2 | M33: 4 | N33: =RAND() -> 0.3878533612 | O33: =L_List!D5 -> ชายหาด | P33: =L_List!E5 -> beach
B34: 2 | C34: =$O$34 -> เบคอน | D34: =$P$34 -> bacon | E34: b) | F34: =L_List!G5 -> Pattaya has a long, sandy ________ that stretches over 2 kilometers. | H34: 0.626225387 | I34: 4 | M34: 3 | N34: 0.5759849093 | O34: =L_List!D4 -> เบคอน | P34: =L_List!E4 -> bacon
B35: 3 | C35: =$O$35 -> อาหารเช้า | D35: =$P$35 -> breakfast | E35: c) | F35: =L_List!G6 -> We can’t go to Julia’s party ________ we’re going away that weekend. | H35: 0.1399387281 | I35: 5 | M35: 8 | N35: 0.02063334631 | O35: =L_List!D9 -> อาหารเช้า | P35: =L_List!E9 -> breakfast
B36: 4 | C36: =$O$36 -> บ่าย | D36: =$P$36 -> afternoon | E36: d) | F36: =L_List!G4 -> Try to eat some grilled ________ or ham together with scrambled eggs or omelets. | H36: 0.8350393002 | I36: 3 | M36: 1 | N36: 0.9107030236 | O36: =L_List!D2 -> บ่าย | P36: =L_List!E2 -> afternoon
B37: 5 | C37: =$O$37 -> วันเกิด | D37: =$P$37 -> birthday | E37: e) | F37: =L_List!G8 -> Today is my mother’s 49th ________ so we are going to bake a cake for her. | H37: 0.7927711161 | I37: 7 | M37: 7 | N37: 0.4901509269 | O37: =L_List!D8 -> วันเกิด | P37: =L_List!E8 -> birthday
B38: 6 | C38: =$O$38 -> เสมอ | D38: =$P$38 -> always | E38: f) | F38: =L_List!G2 -> I didn't go in the morning but in the ________ instead. | H38: 0.2527854489 | I38: 1 | M38: 2 | N38: 0.9638218415 | O38: =L_List!D3 -> เสมอ | P38: =L_List!E3 -> always
B39: 7 | C39: =$O$39 -> เพราะ | D39: =$P$39 -> because | E39: g) | F39: =L_List!G10 -> You can take Route 14 to get there, ________ it may take you a little longer. | H39: 0.3530735223 | I39: 9 | M39: 5 | N39: 0.1680421724 | O39: =L_List!D6 -> เพราะ | P39: =L_List!E6 -> because
B40: 8 | C40: =$O$40 -> เริ่ม | D40: =$P$40 -> begin | E40: h) | F40: =L_List!G9 -> We had scrambled eggs and toast for ________. | H40: 0.4048388453 | I40: 8 | M40: 6 | N40: 0.08759420367 | O40: =L_List!D7 -> เริ่ม | P40: =L_List!E7 -> begin
B41: 9 | C41: =$O$41 -> แต่ | D41: =$P$41 -> but | E41: i) | F41: =L_List!G7 -> Let me ________ by explaining why I arrived late. | H41: 0.4627334534 | I41: 6 | M41: 9 | N41: 0.4996310915 | O41: =L_List!D10 -> แต่ | P41: =L_List!E10 -> but
B43: Part 2
B44: 10 | C44: =O44 -> คริสต์มาส | D44: =P44 -> Christmas | E44: j) | F44: =L_List!G17 -> Sherlock Holmes is the fictional ________ in Arthur Conan Doyle's books. | H44: =RAND() -> 0.1631996954 | I44: 16 | M44: 13 | N44: =RAND() -> 0.06651211681 | O44: =L_List!D14 -> คริสต์มาส | P44: =L_List!E14 -> Christmas
B45: 11 | C45: =O45 -> พูดคุย | D45: =P45 -> chat | E45: k) | F45: =L_List!G11 -> She doesn't take the bus, but rather goes to work by ________. | H45: 0.35268974 | I45: 10 | M45: 12 | N45: 0.6591058549 | O45: =L_List!D13 -> พูดคุย | P45: =L_List!E13 -> chat
B46: 12 | C46: ทำ | D46: do | E46: l) | F46: =L_List!G12 -> W.K. Kellogg began to sell Kellogg’s Corn Flakes as a ________ breakfast in 1906. | H46: 0.6044091837 | I46: 11 | M46: 18 | N46: 0.5092124487 | O46: =L_List!D19 -> ทำ | P46: =L_List!E19 -> do
B47: 13 | C47: รถ | D47: car | E47: m) | F47: =L_List!G15 -> Whooping cough is most ________ cough for infants. | H47: 0.2904860753 | I47: 14 | M47: 10 | N47: 0.9162040153 | O47: =L_List!D11 -> รถ | P47: =L_List!E11 -> car
B48: 14 | C48: อาหารเย็น | D48: dinner | E48: n) | F48: =L_List!G18 -> The restaurant is open for ________ from 5 p.m. to 10 p.m. | H48: 0.08090326938 | I48: 17 | M48: 17 | N48: 0.3741330649 | O48: =L_List!D18 -> อาหารเย็น | P48: =L_List!E18 -> dinner
B49: 15 | C49: ส่งมอบ | D49: deliver | E49: o) | F49: =L_List!G16 -> We ________ pizza in 30 minutes or you get your money back! | H49: 0.4875936509 | I49: 15 | M49: 15 | N49: 0.8868244197 | O49: =L_List!D16 -> ส่งมอบ | P49: =L_List!E16 -> deliver
B50: 16 | C50: นักสืบ | D50: detective | E50: p) | F50: =L_List!G13 -> We stopped to ________ with the neighbors. | H50: 0.2960028452 | I50: 12 | M50: 16 | N50: 0.3330441172 | O50: =L_List!D17 -> นักสืบ | P50: =L_List!E17 -> detective
B51: 17 | C51: เป็นอันตราย | D51: dangerous | E51: q) | F51: =L_List!G19 -> Where ________ you work? | H51: 0.2442903078 | I51: 18 | M51: 14 | N51: 0.7088265783 | O51: =L_List!D15 -> เป็นอันตราย | P51: =L_List!E15 -> dangerous
B52: 18 | C52: ธัญญาหาร | D52: cereal | E52: r) | F52: =L_List!G14 -> I wish you have a very Merry ________! | H52: 0.3410181749 | I52: 13 | M52: 11 | N52: 0.4823362013 | O52: =L_List!D12 -> ธัญญาหาร | P52: =L_List!E12 -> cereal

Sheet L_V_Sheet (hidden)
C1: Name: ___________________ | F1: Number: _______________ Class: _____________ | M1: Name: ___________________ | P1: Number: _______________ Class: _____________
A3: M | B3: 1 | C3: Week | D3: 1 | E3: Word Scramble Semester | G3: 2 | M3: Week | N3: 1 | O3: Word Scramble Semester | Q3: 2
E4: Unscramble the words below, and match each word with its definition. | O4: Unscramble the words below, and match each word with its definition.
B5: Part 1 | Y5: Linked
B6: # | C6: Word | D6: Answer | E6: Wd | F6: Find the Clue | M6: Word | N6: Answer | O6: Wd | P6: Find the Clue | R6: Rand | S6: Cl | U6: Col C | V6: Col D | Y6: Answer
B7: 1 | C7: =IF(AA7=1,U7,M7) -> trfneaono | D7: =IF(Z7=1,V7," ") ->  | F7: =P7 -> time from twelve o'clock lunchtime till the sun goes down | M7: trfneaono | N7: 0.6055211613 | O7: 1 | P7: time from twelve o'clock lunchtime till the sun goes down | R7: 0.2772418208 | S7: 1 | U7: =INDIRECT(CONCATENATE("'L_List'!E",O7+1)) -> afternoon | V7: =INDIRECT(CONCATENATE("'L_List'!E",S7+1)) -> afternoon | Y7: =INDIRECT(CONCATENATE("'L_List'!E",O7+1)) -> afternoon | Z7: 0 | AA7: 0 | AC7: 0 | AD7: 0 | AF7: 1 | AG7: 1
B8: 2 | C8: lyasaw | F8: every time, all the time, or forever | M8: lyasaw | N8: 0.5073326901 | O8: 2 | P8: every time, all the time, or forever | R8: 0.4364175929 | S8: 2 | U8: =INDIRECT(CONCATENATE("'L_List'!E",O8+1)) -> always | V8: =INDIRECT(CONCATENATE("'L_List'!E",S8+1)) -> always | Y8: =INDIRECT(CONCATENATE("'L_List'!E",O8+1)) -> always | Z8: 0 | AA8: 0 | AC8: 0 | AD8: 0 | AF8: 1 | AG8: 1
B9: 3 | C9: conab | F9: salted or smoked meat from the back or sides of a pig, usually eaten sliced and fried | M9: conab | N9: 0.9992601763 | O9: 3 | P9: salted or smoked meat from the back or sides of a pig, usually eaten sliced and fried | R9: 0.743714818 | S9: 3 | U9: bacon | V9: bacon | Y9: bacon | Z9: 0 | AA9: 0 | AC9: 0 | AD9: 0 | AF9: 1 | AG9: 1
B10: 4 | C10: bchae | F10: an area of sand or small stones near the sea or another area of water such as a lake | M10: bchae | N10: 0.1622489158 | O10: 4 | P10: an area of sand or small stones near the sea or another area of water such as a lake | R10: 0.771349304 | S10: 4 | U10: beach | V10: beach | Y10: beach | Z10: 0 | AA10: 0 | AC10: 0 | AD10: 0 | AF10: 1 | AG10: 1
B11: 5 | C11: cbeuaes | F11: for the reason that | M11: cbeuaes | N11: 0.7418987305 | O11: 5 | P11: for the reason that | R11: 0.8638345396 | S11: 5 | U11: because | V11: because | Y11: because | Z11: 0 | AA11: 0 | AC11: 0 | AD11: 0 | AF11: 1 | AG11: 1
B12: 6 | C12: giebn | F12: to start to be, do, | M12: giebn | N12: 0.4388319546 | O12: 6 | P12: to start to be, do, | R12: 0.2847224096 | S12: 6 | U12: begin | V12: begin | Y12: begin | Z12: 0 | AA12: 0 | AC12: 0 | AD12: 0 | AF12: 1 | AG12: 1
B13: 7 | C13: aihyrdtb | F13: the day that is a year or number of years after a person was born | M13: aihyrdtb | N13: 0.06947058583 | O13: 7 | P13: the day that is a year or number of years after a person was born | R13: 0.2997599816 | S13: 7 | U13: birthday | V13: birthday | Y13: birthday | Z13: 0 | AA13: 0 | AC13: 0 | AD13: 0 | AF13: 1 | AG13: 1
B14: 8 | C14: kbearasft | F14: a meal eaten in the morning as the first meal of the day | M14: kbearasft | N14: 0.3966483342 | O14: 8 | P14: a meal eaten in the morning as the first meal of the day | R14: 0.6627726299 | S14: 8 | U14: breakfast | V14: breakfast | Y14: breakfast | Z14: 0 | AA14: 0 | AC14: 0 | AD14: 0 | AF14: 1 | AG14: 1
B15: 9 | C15: but | F15: used to express a difference or to introduce an added statement | M15: but | N15: 0.8006939217 | O15: 9 | P15: used to express a difference or to introduce an added statement | R15: 0.1515840598 | S15: 9 | U15: but | V15: but | Y15: but | Z15: 0 | AA15: 0 | AC15: 0 | AD15: 0 | AF15: 1 | AG15: 1
B17: Part 2 | U17: Col C | V17: Col D
B18: 10 | C18: =IF(AA18=1,U18,M18) -> arc | D18: =IF(Z18=1,V18," ") ->  | F18: =P18 -> the main meal of the day, whether in the evening or midday | M18: arc | N18: 0.4554009374 | O18: 10 | P18: the main meal of the day, whether in the evening or midday | R18: 0.5370428594 | S18: 10 | U18: =INDIRECT(CONCATENATE("'L_List'!E",O18+1)) -> car | V18: =INDIRECT(CONCATENATE("'L_List'!E",S18+1)) -> car | Y18: =INDIRECT(CONCATENATE("'L_List'!E",O18+1)) -> car | Z18: 0 | AA18: 0 | AC18: 0 | AD18: 0 | AF18: 1 | AG18: 1
B19: 11 | C19: rlaece | F19: to talk to someone in a friendly informal way | M19: rlaece | N19: 0.9275076691 | O19: 11 | P19: to talk to someone in a friendly informal way | R19: 0.5106843123 | S19: 11 | U19: =INDIRECT(CONCATENATE("'L_List'!E",O19+1)) -> cereal | V19: =INDIRECT(CONCATENATE("'L_List'!E",S19+1)) -> cereal | Y19: cereal | Z19: 0 | AA19: 0 | AC19: 0 | AD19: 0 | AF19: 1 | AG19: 1
B20: 12 | C20: htca | F20: a food made from grain that is eaten esp. for breakfast | M20: htca | N20: 0.05337875471 | O20: 12 | P20: a food made from grain that is eaten esp. for breakfast | R20: 0.352437502 | S20: 12 | U20: chat | V20: chat | Y20: chat | Z20: 0 | AA20: 0 | AC20: 0 | AD20: 0 | AF20: 1 | AG20: 1
B21: 13 | C21: srstahCmi | F21: December 25th, a day celebrated each year to honor the birth of Jesus | M21: srstahCmi | N21: 0.6167335717 | O21: 13 | P21: December 25th, a day celebrated each year to honor the birth of Jesus | R21: 0.03212173089 | S21: 13 | U21: Christmas | V21: Christmas | Y21: Christmas | Z21: 0 | AA21: 0 | AC21: 0 | AD21: 0 | AF21: 1 | AG21: 1
B22: 14 | C22: aroendugs | F22: a road vehicle with an engine, four wheels, and seats | M22: aroendugs | N22: 0.2774327612 | O22: 14 | P22: a road vehicle with an engine, four wheels, and seats | R22: 0.911372132 | S22: 14 | U22: dangerous | V22: dangerous | Y22: dangerous | Z22: 0 | AA22: 0 | AC22: 0 | AD22: 0 | AF22: 1 | AG22: 1
B23: 15 | C23: vreledi | F23: to take goods, letters, or packages to people’s houses or places of work | M23: vreledi | N23: 0.7800314226 | O23: 15 | P23: to take goods, letters, or packages to people’s houses or places of work | R23: 0.2689179789 | S23: 15 | U23: deliver | V23: deliver | Y23: deliver | Z23: 0 | AA23: 0 | AC23: 0 | AD23: 0 | AF23: 1 | AG23: 1
B24: 16 | C24: evetecdti | F24: able or likely to cause harm or death, or unpleasant problems | M24: evetecdti | N24: 0.102199065 | O24: 16 | P24: able or likely to cause harm or death, or unpleasant problems | R24: 0.8262689175 | S24: 16 | U24: detective | V24: detective | Y24: detective | Z24: 0 | AA24: 0 | AC24: 0 | AD24: 0 | AF24: 1 | AG24: 1
B25: 17 | C25: nnderi | F25: used with another verb to form questions and negative sentences | M25: nnderi | N25: 0.08824491426 | O25: 17 | P25: used with another verb to form questions and negative sentences | R25: 0.767236808 | S25: 17 | U25: dinner | V25: dinner | Y25: dinner | Z25: 0 | AA25: 0 | AC25: 0 | AD25: 0 | AF25: 1 | AG25: 1
B26: 18 | C26: do | F26: someone who discovers information about crimes and find out who is responsible | M26: do | N26: 0.1202265239 | O26: 18 | P26: someone who discovers information about crimes and find out who is responsible | R26: 0.9982590494 | S26: 18 | U26: do | V26: do | Y26: do | Z26: 0 | AA26: 0 | AC26: 0 | AD26: 0 | AF26: 1 | AG26: 1
A29: M | B29: 1 | C29: Week | D29: 1 | E29: Cloze Sentences Semester | G29: 2 | M29: Week | N29: 1 | O29: Cloze Sentences Semester | Q29: 2
E30: Choose a word to complete the sentences below: | O30: Choose a word to complete the sentences below:
B31: Part 1
B32: # | C32: Thai | D32: Word | E32: # | F32: Sentence | M32: Thai | N32: Word | O32: # | P32: Sentence | R32: Rand | S32: Sn | U32: Col C | V32: Col D
B33: 1 | C33: =M33 -> ชายหาด | D33: =N33 -> beach | E33: a) | F33: =IF(Z33=1,V33,P33) -> He ________ enjoyed having dinner with friends. | J33: =IF(Z33=1,Y33," ") ->  | M33: ชายหาด | N33: beach | O33: a) | P33: He ________ enjoyed having dinner with friends. | R33: 0.4463672052 | S33: 2 | U33: =INDIRECT(CONCATENATE("'L_List'!E",S33+1)) -> always | V33: =INDIRECT(CONCATENATE("'L_List'!H",S33+1)) -> He always enjoyed having dinner with friends. | Y33: =INDIRECT(CONCATENATE("'L_List'!e",S33+1)) -> always | Z33: 0 | AC33: 0 | AF33: 1
B34: 2 | C34: เบคอน | D34: bacon | E34: b) | F34: Pattaya has a long, sandy ________ that stretches over 2 kilometers. | M34: เบคอน | N34: bacon | O34: b) | P34: Pattaya has a long, sandy ________ that stretches over 2 kilometers. | R34: 0.9073580166 | S34: 4 | U34: =INDIRECT(CONCATENATE("'L_List'!E",S34+1)) -> beach | V34: =INDIRECT(CONCATENATE("'L_List'!H",S34+1)) -> Pattaya has a long, sandy beach that stretches over 2 kilometers. | Y34: =INDIRECT(CONCATENATE("'L_List'!e",S34+1)) -> beach | Z34: 0 | AC34: 0 | AF34: 1
B35: 3 | C35: อาหารเช้า | D35: breakfast | E35: c) | F35: We can’t go to Julia’s party ________ we’re going away that weekend. | M35: อาหารเช้า | N35: breakfast | O35: c) | P35: We can’t go to Julia’s party ________ we’re going away that weekend. | R35: 0.5291048375 | S35: 5 | U35: because | V35: We can’t go to Julia’s party because we’re going away that weekend. | Y35: because | Z35: 0 | AC35: 0 | AF35: 1
B36: 4 | C36: บ่าย | D36: afternoon | E36: d) | F36: Try to eat some grilled ________ or ham together with scrambled eggs or omelets. | M36: บ่าย | N36: afternoon | O36: d) | P36: Try to eat some grilled ________ or ham together with scrambled eggs or omelets. | R36: 0.3316855074 | S36: 3 | U36: bacon | V36: Try to eat some grilled bacon or ham together with scrambled eggs or omelets. | Y36: bacon | Z36: 0 | AC36: 0 | AF36: 1
B37: 5 | C37: วันเกิด | D37: birthday | E37: e) | F37: Today is my mother’s 49th ________ so we are going to bake a cake for her. | M37: วันเกิด | N37: birthday | O37: e) | P37: Today is my mother’s 49th ________ so we are going to bake a cake for her. | R37: 0.2674223553 | S37: 7 | U37: birthday | V37: Today is my mother’s 49th birthday so we are going to bake a cake for her. | Y37: birthday | Z37: 0 | AC37: 0 | AF37: 1
B38: 6 | C38: เสมอ | D38: always | E38: f) | F38: I didn't go in the morning but in the ________ instead. | M38: เสมอ | N38: always | O38: f) | P38: I didn't go in the morning but in the ________ instead. | R38: 0.9017873209 | S38: 1 | U38: afternoon | V38: I didn't go in the morning but in the afternoon instead. | Y38: afternoon | Z38: 0 | AC38: 0 | AF38: 1
B39: 7 | C39: เพราะ | D39: because | E39: g) | F39: You can take Route 14 to get there, ________ it may take you a little longer. | M39: เพราะ | N39: because | O39: g) | P39: You can take Route 14 to get there, ________ it may take you a little longer. | R39: 0.3832219072 | S39: 9 | U39: but | V39: You can take Route 14 to get there, but it may take you a little longer. | Y39: but | Z39: 0 | AC39: 0 | AF39: 1
B40: 8 | C40: เริ่ม | D40: begin | E40: h) | F40: We had scrambled eggs and toast for ________. | M40: เริ่ม | N40: begin | O40: h) | P40: We had scrambled eggs and toast for ________. | R40: 0.7505007594 | S40: 8 | U40: breakfast | V40: We had scrambled eggs and toast for breakfast. | Y40: breakfast | Z40: 0 | AC40: 0 | AF40: 1
B41: 9 | C41: แต่ | D41: but | E41: i) | F41: Let me ________ by explaining why I arrived late. | M41: แต่ | N41: but | O41: i) | P41: Let me ________ by explaining why I arrived late. | R41: 0.5544364438 | S41: 6 | U41: begin | V41: Let me begin by explaining why I arrived late. | Y41: begin | Z41: 0 | AC41: 0 | AF41: 1
B43: Part 2
B44: 10 | C44: =M44 -> คริสต์มาส | D44: =N44 -> Christmas | E44: j) | F44: =IF(Z44=1,V44,P44) -> Sherlock Holmes is the fictional ________ in Arthur Conan Doyle's books. | J44: =IF(Z44=1,Y44," ") ->  | M44: คริสต์มาส | N44: Christmas | O44: j) | P44: Sherlock Holmes is the fictional ________ in Arthur Conan Doyle's books. | R44: 0.405415114 | S44: 16 | U44: detective | V44: Sherlock Holmes is the fictional detective in Arthur Conan Doyle's books. | Y44: =INDIRECT(CONCATENATE("'L_List'!e",S44+1)) -> detective | Z44: 0 | AC44: 0 | AF44: 1
B45: 11 | C45: พูดคุย | D45: chat | E45: k) | F45: She doesn't take the bus, but rather goes to work by ________. | M45: พูดคุย | N45: chat | O45: k) | P45: She doesn't take the bus, but rather goes to work by ________. | R45: 0.07956712527 | S45: 10 | U45: car | V45: She doesn't take the bus, but rather goes to work by car. | Y45: =INDIRECT(CONCATENATE("'L_List'!e",S45+1)) -> car | Z45: 0 | AC45: 0 | AF45: 1
B46: 12 | C46: ทำ | D46: do | E46: l) | F46: W.K. Kellogg began to sell Kellogg’s Corn Flakes as a ________ breakfast in 1906. | M46: ทำ | N46: do | O46: l) | P46: W.K. Kellogg began to sell Kellogg’s Corn Flakes as a ________ breakfast in 1906. | R46: 0.7469114819 | S46: 11 | U46: cereal | V46: W.K. Kellogg began to sell Kellogg’s Corn Flakes as a cereal breakfast in 1906. | Y46: cereal | Z46: 0 | AC46: 0 | AF46: 1
B47: 13 | C47: รถ | D47: car | E47: m) | F47: Whooping cough is most ________ cough for infants. | M47: รถ | N47: car | O47: m) | P47: Whooping cough is most ________ cough for infants. | R47: 0.3450753848 | S47: 14 | U47: dangerous | V47: Whooping cough is the most dangerous cough for infants. | Y47: dangerous | Z47: 0 | AC47: 0 | AF47: 1
B48: 14 | C48: อาหารเย็น | D48: dinner | E48: n) | F48: The restaurant is open for ________ from 5 p.m. to 10 p.m. | M48: อาหารเย็น | N48: dinner | O48: n) | P48: The restaurant is open for ________ from 5 p.m. to 10 p.m. | R48: 0.4397713636 | S48: 17 | U48: dinner | V48: The restaurant is open for dinner from 5 p.m. to 10 p.m. | Y48: dinner | Z48: 0 | AC48: 0 | AF48: 1
B49: 15 | C49: ส่งมอบ | D49: deliver | E49: o) | F49: We ________ pizza in 30 minutes or you get your money back! | M49: ส่งมอบ | N49: deliver | O49: o) | P49: We ________ pizza in 30 minutes or you get your money back! | R49: 0.6486631029 | S49: 15 | U49: deliver | V49: We deliver pizza in 30 minutes or you get your money back! | Y49: deliver | Z49: 0 | AC49: 0 | AF49: 1
B50: 16 | C50: นักสืบ | D50: detective | E50: p) | F50: We stopped to ________ with the neighbors. | M50: นักสืบ | N50: detective | O50: p) | P50: We stopped to ________ with the neighbors. | R50: 0.4717170812 | S50: 12 | U50: chat | V50: We stopped to chat with the neighbours. | Y50: chat | Z50: 0 | AC50: 0 | AF50: 1
B51: 17 | C51: เป็นอันตราย | D51: dangerous | E51: q) | F51: Where ________ you work? | M51: เป็นอันตราย | N51: dangerous | O51: q) | P51: Where ________ you work? | R51: 0.06350252959 | S51: 18 | U51: do | V51: Where do you work? | Y51: do | Z51: 0 | AC51: 0 | AF51: 1
B52: 18 | C52: ธัญญาหาร | D52: cereal | E52: r) | F52: I wish you have a very Merry ________! | M52: ธัญญาหาร | N52: cereal | O52: r) | P52: I wish you have a very Merry ________! | R52: 0.3962537916 | S52: 13 | U52: Christmas | V52: I wish you have a very Merry Christmas! | Y52: Christmas | Z52: 0 | AC52: 0 | AF52: 1

Sheet U_Vocab
C1: Name: ___________________ | F1: Number: _______________ Class: _____________
A3: M | B3: 5 | C3: Week | D3: 10 | E3: =IF(B3=9,"AWL Word Scramble Sem",IF(B3=8,"SAT Word Scramble Sem",IF(B3=7,"TOEFL Word Scramble Sem","Word Scramble Sem"))) -> Word Scramble Sem | G3: 2
E4: Unscramble the words below, and match each word with its definition.
B5: Part 1
B6: # | C6: Word | D6: Answer | E6: Wd | F6: Find the Clue | H6: Rand | I6: Cl
B7: 1 | C7: =U_List!L2 -> menyez | D7: =RAND() -> 0.7941461569 | E7: 1 | F7: =U_List!F2 -> chemical substances that are produced by living cells | H7: =RAND() -> 0.6848742419 | I7: 1 | Y7: Wks
B8: 2 | C8: =U_List!L3 -> rnofcotn | D8: =RAND() -> 0.0586818961 | E8: 2 | F8: =U_List!F3 -> to face, meet, or deal with a difficult situation or person | H8: =RAND() -> 0.2324290189 | I8: 2 | U8: 1 | V8: Matthayom | Y8: 1
B9: 3 | C9: =U_List!L4 -> nepa | D9: =RAND() -> 0.1549652709 | E9: 3 | F9: =U_List!F4 -> a flat piece of glass, used in a window or door | H9: =RAND() -> 0.2628942129 | I9: 3 | U9: 2 | Y9: 2
B10: 4 | C10: =U_List!L5 -> omdiatnn | D10: =RAND() -> 0.8025119238 | E10: 4 | F10: =U_List!F5 -> more important, strong, or noticeable than anything else of the same type | H10: =RAND() -> 0.7842317498 | I10: 4 | U10: 3 | Y10: 3
B11: 5 | C11: =U_List!L6 -> utcsvecione | D11: =RAND() -> 0.4774813415 | E11: 5 | F11: =U_List!F6 -> events or numbers that follow one after another without an interruption | H11: =RAND() -> 0.419753744 | I11: 5 | U11: 4 | Y11: 4
B12: 6 | C12: =U_List!L7 -> oonmclw ma | D12: =RAND() -> 0.3766965089 | E12: 6 | F12: =U_List!F7 -> the legal system in England and most of the US from old customs rather than laws | H12: =RAND() -> 0.7677642643 | I12: 6 | U12: 5 | Y12: 5
B13: 7 | C13: =U_List!L8 -> pascfetrac | D13: =RAND() -> 0.3923311169 | E13: 7 | F13: =U_List!F8 -> a vehicle used for travel in space | H13: =RAND() -> 0.799316776 | I13: 7 | U13: 6 | Y13: 6
B14: 8 | C14: =U_List!L9 -> elegd | D14: =RAND() -> 0.4075544175 | E14: 8 | F14: =U_List!F9 -> a narrow shelf which sticks out from a vertical surface | H14: =RAND() -> 0.5300857274 | I14: 8 | U14: 7 | V14: TOEFL | W14: N | Y14: 7
B15: 9 | C15: =U_List!L10 -> k almceera | D15: =RAND() -> 0.9502007922 | E15: 9 | F15: =U_List!F10 -> to emphasize what has just been said | H15: =RAND() -> 0.9953747378 | I15: 9 | U15: 8 | V15: SAT | W15: I | Y15: 8
B16: 10 | C16: =U_List!L11 -> surct | D16: =RAND() -> 0.5777147327 | E16: 10 | F16: =U_List!F11 -> a hard outer covering of something | H16: =RAND() -> 0.899743788 | I16: 10 | U16: 9 | V16: AWL | W16: S | Y16: 9
Y17: 10
B18: Part 2 | V18: Sem | W18: 1 | Y18: 11
B19: 11 | C19: =U_List!L12 -> tsrcotcni | D19: =RAND() -> 0.9065221022 | E19: 11 | F19: =U_List!F12 -> to become tighter and narrower, or to make something become tighter and narrower | H19: =RAND() -> 0.844391181 | I19: 11 | W19: 2 | Y19: 12
B20: 12 | C20: =U_List!L13 -> rcfato | D20: =RAND() -> 0.8458851051 | E20: 12 | F20: =U_List!F13 -> any whole number that is produced when a larger number is divided by whole number | H20: =RAND() -> 0.6957954115 | I20: 12 | Y20: 13
B21: 13 | C21: =U_List!L14 -> aclgey | D21: =RAND() -> 0.1847201808 | E21: 13 | F21: =U_List!F14 -> money or property that you receive from someone after they die | H21: =RAND() -> 0.3727170049 | I21: 13 | Y21: 14
B22: 14 | C22: =U_List!L15 -> emritb | D22: =RAND() -> 0.4394554369 | E22: 14 | F22: =U_List!F15 -> trees that are grown so that the wood from them can be used for building | H22: =RAND() -> 0.9968788 | I22: 14 | Y22: 15
B23: 15 | C23: =U_List!L16 -> biansttevsu | D23: =RAND() -> 0.588410853 | E23: 15 | F23: =U_List!F16 -> important, serious, or related to real facts | H23: =RAND() -> 0.7324393122 | I23: 15 | Y23: 16
B24: 16 | C24: =U_List!L17 -> hisp | D24: =RAND() -> 0.7791235448 | E24: 16 | F24: =U_List!F17 -> to transport something or someone by air, train, boat, or truck | H24: =RAND() -> 0.9226291592 | I24: 16 | Y24: 17
B25: 17 | C25: =U_List!L18 -> eesern | D25: =RAND() -> 0.9975859999 | E25: 17 | F25: =U_List!F18 -> peaceful and calm; worried by nothing | H25: =RAND() -> 0.618862529 | I25: 17 | Y25: 18
B26: 18 | C26: =U_List!L19 -> luperbm | D26: =RAND() -> 0.7875792326 | E26: 18 | F26: =U_List!F19 -> a person whose job is to supply and connect or repair water pipes, baths, toilets | H26: =RAND() -> 0.2983173818 | I26: 18 | Y26: 19
B27: 19 | C27: =U_List!L20 -> tarisavtno | D27: =RAND() -> 0.5644831141 | E27: 19 | F27: =U_List!F20 -> the state of having no food for a long period, often causing death | H27: =RAND() -> 0.555435787 | I27: 19 | Y27: 20
B28: 20 | C28: =U_List!L21 -> etoaixlennp | D28: =RAND() -> 0.3676871956 | E28: 20 | F28: =U_List!F21 -> a rate of increase that becomes quicker as the thing that increases becomes larger | H28: =RAND() -> 0.1603649606 | I28: 20
A30: =A3 -> M | B30: =B3 -> 5 | C30: =C3 -> Week | D30: =D3 -> 10 | E30: Cloze Sentences Sem | G30: =G3 -> 2
E31: Choose a word to complete the sentences below:
B32: Part 1
B33: # | C33: Thai | D33: Word | E33: # | F33: Sentence | H33: Rand | I33: Sn
B34: 1 | C34: =$O$34 -> เด่น | D34: =$P$34 -> dominant | E34: a) | F34: =U_List!G9 -> Water had risen to window ________ height in parts of the resort. | H34: =RAND() -> 0.01375193106 | I34: 8 | M34: 4 | N34: =RAND() -> 0.1020660886 | O34: =U_List!D5 -> เด่น | P34: =U_List!E5 -> dominant
B35: 2 | C35: =$O$35 -> บานหน้าต่าง | D35: =$P$35 -> pane | E35: b) | F35: =U_List!G2 -> An ________ in the saliva of the mouth starts the process of breaking down the food. | H35: 0.001363929636 | I35: 1 | M35: 3 | N35: 0.6936600899 | O35: =U_List!D4 -> บานหน้าต่าง | P35: =U_List!E4 -> pane
B36: 3 | C36: =$O$36 -> เผชิญหน้า | D36: =$P$36 -> confront | E36: c) | F36: =U_List!G8 -> I saw some type of ________ flying above my house. | H36: 0.4466959829 | I36: 7 | M36: 2 | N36: 0.9615210117 | O36: =U_List!D3 -> เผชิญหน้า | P36: =U_List!E3 -> confront
B37: 4 | C37: =$O$37 -> ยานอวกาศ | D37: =$P$37 -> spacecraft | E37: d) | F37: =U_List!G4 -> When I hit the baseball, I accidentally broke a ________ of glass in my Grandma's shed. | H37: 0.5494223782 | I37: 3 | M37: 7 | N37: 0.6375119464 | O37: =U_List!D8 -> ยานอวกาศ | P37: =U_List!E8 -> spacecraft
B38: 5 | C38: =$O$38 -> หิ้ง | D38: =$P$38 -> ledge | E38: e) | F38: =U_List!G6 -> This is the fifth ________ weekend that I've spent working, and I'm a bit fed up with it. | H38: 0.6324921726 | I38: 5 | M38: 8 | N38: 0.5010394772 | O38: =U_List!D9 -> หิ้ง | P38: =U_List!E9 -> ledge
B39: 6 | C39: =$O$39 -> แจง | D39: =$P$39 -> make clear | E39: f) | F39: =U_List!G10 -> I will not tolerate this behaviour any longer. Do I ________? | H39: 0.06147581227 | I39: 9 | M39: 9 | N39: 0.02984254315 | O39: =U_List!D10 -> แจง | P39: =U_List!E10 -> make clear
B40: 7 | C40: =$O$40 -> ติดต่อกัน | D40: =$P$40 -> consecutive | E40: g) | F40: =U_List!G3 -> It's an issue we'll have to ________ at some point, no matter how unpleasant it is. | H40: 0.1122040493 | I40: 2 | M40: 5 | N40: 0.1392693224 | O40: =U_List!D6 -> ติดต่อกัน | P40: =U_List!E6 -> consecutive
B41: 8 | C41: =$O$41 -> ระเบียบสังคม | D41: =$P$41 -> common law | E41: h) | F41: =U_List!G11 -> I'll eat your pizza ________ for you. | H41: 0.06336120605 | I41: 10 | M41: 6 | N41: 0.6863165368 | O41: =U_List!D7 -> ระเบียบสังคม | P41: =U_List!E7 -> common law
B42: 9 | C42: =$O$42 -> เอนไซม์ | D42: =$P$42 -> enzyme | E42: i) | F42: =U_List!G7 -> Jim considered Jane his ________ wife, as she is living with him. | H42: 0.7405222366 | I42: 6 | M42: 1 | N42: 0.6707244912 | O42: =U_List!D2 -> เอนไซม์ | P42: =U_List!E2 -> enzyme
B43: 10 | C43: =$O$43 -> เปลือก | D43: =$P$43 -> crust | E43: j) | F43: =U_List!G5 -> Unemployment will be a ________ issue at the next election. | H43: 0.5968352928 | I43: 4 | M43: 10 | N43: 0.6176558999 | O43: =U_List!D11 -> เปลือก | P43: =U_List!E11 -> crust
B45: Part 2
B46: 11 | C46: =O46 -> ที่ชี้แจง | D46: exponential | E46: k) | F46: =U_List!G12 -> The drug causes the blood vessels to ________. | H46: =RAND() -> 0.05931755924 | I46: 11 | M46: 17 | N46: =RAND() -> 0.5052313531 | O46: =U_List!D21 -> ที่ชี้แจง | P46: =U_List!E21 -> exponential
B47: 12 | C47: เรือ | D47: ship | E47: l) | F47: =U_List!G18 -> She has a lovely ________ face. | H47: 0.5930047258 | I47: 17 | M47: 14 | N47: 0.5666560706 | O47: =U_List!D17 -> เรือ | P47: =U_List!E17 -> ship
B48: 13 | C48: ขอนไม้ | D48: timber | E48: m) | F48: =U_List!G17 -> They boarded a ________ that was sailing the next day. | H48: 0.5014844066 | I48: 16 | M48: 13 | N48: 0.8268872971 | O48: =U_List!D15 -> ขอนไม้ | P48: =U_List!E15 -> timber
B49: 14 | C49: ความอดอยาก | D49: starvation | E49: n) | F49: =U_List!G15 -> These trees are being grown for ________. | H49: 0.604884876 | I49: 14 | M49: 16 | N49: 0.4134464256 | O49: =U_List!D20 -> ความอดอยาก | P49: =U_List!E20 -> starvation
B50: 15 | C50: มรดก | D50: legacy | E50: o) | F50: =U_List!G16 -> ________ research on the subject needs to be carried out. | H50: 0.1182151684 | I50: 15 | M50: 11 | N50: 0.8037272747 | O50: =U_List!D14 -> มรดก | P50: =U_List!E14 -> legacy
B51: 16 | C51: ปัจจัย | D51: factor | E51: p) | F51: =U_List!G19 -> When is the ________ coming to mend the burst pipe? | H51: 0.3878229362 | I51: 18 | M51: 12 | N51: 0.02007871947 | O51: =U_List!D13 -> ปัจจัย | P51: =U_List!E13 -> factor
B52: 17 | C52: รัด | D52: constrict | E52: q) | F52: =U_List!G13 -> Two, three, four and six are all ________s of twelve. | H52: 0.1323717514 | I52: 12 | M52: 18 | N52: 0.6418741193 | O52: =U_List!D12 -> รัด | P52: =U_List!E12 -> constrict
B53: 18 | C53: สงบเงียบ | D53: serene | E53: r) | F53: =U_List!G14 -> An elderly cousin had left her a small ________. | H53: 0.1657760837 | I53: 13 | M53: 10 | N53: 0.7585855607 | O53: =U_List!D18 -> สงบเงียบ | P53: =U_List!E18 -> serene
B54: 19 | C54: สำคัญ | D54: substantive | E54: s) | F54: =U_List!G20 -> 20 million people face ________ unless a vast emergency aid programme is launched. | H54: 0.2698911133 | I54: 19 | M54: 17 | N54: 0.9487522676 | O54: =U_List!D16 -> สำคัญ | P54: =U_List!E16 -> substantive
B55: 20 | C55: =O55 -> ช่างประปา | D55: =P55 -> plumber | E55: t) | F55: =U_List!G21 -> There has been an ________ increase in the world population this century. | H55: 0.2810222424 | I55: 20 | M55: 15 | N55: 0.03080084854 | O55: =U_List!D19 -> ช่างประปา | P55: =U_List!E19 -> plumber

Sheet U_V_Sheet (hidden)
C1: Name: ___________________ | F1: Number: _______________ Class: _____________ | M1: Name: ___________________ | P1: Number: _______________ Class: _____________
A3: M | B3: 5 | C3: Week | D3: 10 | E3: Word Scramble Sem | G3: 2 | M3: Week | N3: 10 | O3: Word Scramble Sem | Q3: 2
E4: Unscramble the words below, and match each word with its definition. | O4: Unscramble the words below, and match each word with its definition.
B5: Part 1 | Y5: Linked
B6: # | C6: Word | D6: Answer | E6: Wd | F6: Find the Clue | M6: Word | N6: Answer | O6: Wd | P6: Find the Clue | R6: Rand | S6: Cl | T6: Cl | U6: Col C | V6: Col D | Y6: Answer
B7: 1 | C7: =IF(AA7=1,U7,M7) -> ahrswee | D7: =IF(Z7=1,V7," ") -> spacecraft | F7: =P7 -> a vehicle used for travel in space | M7: ahrswee | N7: 0.07068227627 | O7: 10 | P7: a vehicle used for travel in space | R7: 0.7572987801 | S7: 7 | T7: 7 | U7: =INDIRECT(CONCATENATE("'U_List'!E",O7+1)) -> crust | V7: =INDIRECT(CONCATENATE("'U_List'!E",S7+1)) -> spacecraft | Y7: =INDIRECT(CONCATENATE("'U_List'!E",O7+1)) -> crust | Z7: 1 | AA7: 0 | AC7: 0 | AD7: 0 | AF7: 1 | AG7: 1
B8: 2 | C8: enzyme | F8: a flat piece of glass, used in a window or door | M8: ueafter | N8: 0.507489329 | O8: 1 | P8: a flat piece of glass, used in a window or door | R8: 0.5648763509 | S8: 3 | T8: 5 | U8: enzyme | V8: pane | Y8: enzyme | Z8: 0 | AA8: 1 | AC8: 0 | AD8: 0 | AF8: 1 | AG8: 1
B9: 3 | C9: spacecraft | D9: make clear | F9: to emphasize what has just been said | M9: eidinetf | N9: 0.0732328592 | O9: 7 | P9: to emphasize what has just been said | R9: 0.7621344471 | S9: 9 | T9: 4 | U9: spacecraft | V9: make clear | Y9: spacecraft | Z9: 1 | AA9: 1 | AC9: 0 | AD9: 0 | AF9: 1 | AG9: 1
B10: 4 | C10: euaffntl | D10: enzyme | F10: chemical substances that are produced by living cells | M10: euaffntl | N10: 0.6130429118 | O10: 3 | P10: chemical substances that are produced by living cells | R10: 0.5836869784 | S10: 1 | T10: 2 | U10: pane | V10: enzyme | Y10: pane | Z10: 1 | AA10: 0 | AC10: 0 | AD10: 0 | AF10: 1 | AG10: 1
B11: 5 | C11: qetou | D11: dominant | F11: more important, strong, or noticeable than anything else of the same type | M11: qetou | N11: 0.1409645456 | O11: 4 | P11: more important, strong, or noticeable than anything else of the same type | R11: 0.04519921771 | S11: 4 | T11: 9 | U11: dominant | V11: dominant | Y11: dominant | Z11: 1 | AA11: 0 | AC11: 0 | AD11: 0 | AF11: 1 | AG11: 1
B12: 6 | C12: ontnicfu | D12: crust | F12: a hard outer covering of something | M12: ontnicfu | N12: 0.1420636102 | O12: 6 | P12: a hard outer covering of something | R12: 0.9723080739 | S12: 10 | T12: 6 | U12: common law | V12: crust | Y12: common law | Z12: 1 | AA12: 0 | AC12: 0 | AD12: 0 | AF12: 1 | AG12: 1
B13: 7 | C13: confront | D13: ledge | F13: a narrow shelf which sticks out from a vertical surface | M13: icidsttn | N13: 0.7122804135 | O13: 2 | P13: a narrow shelf which sticks out from a vertical surface | R13: 0.7574424068 | S13: 8 | T13: 1 | U13: confront | V13: ledge | Y13: confront | Z13: 1 | AA13: 1 | AC13: 0 | AD13: 0 | AF13: 1 | AG13: 1
B14: 8 | C14: pesrdise | F14: events or numbers that follow one after another without an interruption | M14: pesrdise | N14: 0.3348980638 | O14: 8 | P14: events or numbers that follow one after another without an interruption | R14: 0.8835850703 | S14: 5 | T14: 8 | U14: ledge | V14: consecutive | Y14: ledge | Z14: 0 | AA14: 0 | AC14: 0 | AD14: 0 | AF14: 1 | AG14: 1
B15: 9 | C15: neitcsp | F15: to face, meet, or deal with a difficult situation or person | M15: neitcsp | N15: 0.4380794678 | O15: 9 | P15: to face, meet, or deal with a difficult situation or person | R15: 0.9452028614 | S15: 2 | T15: 3 | U15: make clear | V15: confront | Y15: make clear | Z15: 0 | AA15: 0 | AC15: 0 | AD15: 0 | AF15: 1 | AG15: 1
B16: 10 | C16: kfwcn rdaaoc | F16: the legal system in England and most of the US from old customs rather than laws | M16: kfwcn rdaaoc | N16: 0.2953311234 | O16: 5 | P16: the legal system in England and most of the US from old customs rather than laws | R16: 0.6496856281 | S16: 6 | T16: 10 | U16: consecutive | V16: common law | Y16: consecutive | Z16: 0 | AA16: 0 | AC16: 0 | AD16: 0 | AF16: 1 | AG16: 1
B18: Part 2 | U18: Col C | V18: Col D
B19: 11 | C19: =IF(AA19=1,U19,M19) -> aneayls | D19: =IF(Z19=1,V19," ") ->  | F19: =P19 -> important, serious, or related to real facts | M19: aneayls | N19: 0.9326985083 | O19: 12 | P19: important, serious, or related to real facts | R19: 0.0009491086567 | S19: 15 | T19: 11 | U19: =INDIRECT(CONCATENATE("'U_List'!E",O19+1)) -> factor | V19: =INDIRECT(CONCATENATE("'U_List'!E",S19+1)) -> substantive | Y19: =INDIRECT(CONCATENATE("'U_List'!E",O19+1)) -> factor | Z19: 0 | AA19: 0 | AC19: 0 | AD19: 0 | AF19: 1 | AG19: 1
B20: 12 | C20: exponential | F20: the state of having no food for a long period, often causing death | M20: linisugtn | N20: 0.2479259936 | O20: 20 | P20: the state of having no food for a long period, often causing death | R20: 0.2197565367 | S20: 19 | T20: 20 | U20: exponential | V20: starvation | Y20: exponential | Z20: 0 | AA20: 1 | AC20: 0 | AD20: 0 | AF20: 1 | AG20: 1
B21: 13 | C21: timber | F21: trees that are grown so that the wood from them can be used for building | M21: reectnp | N21: 0.9978808747 | O21: 14 | P21: trees that are grown so that the wood from them can be used for building | R21: 0.1895176058 | S21: 14 | T21: 15 | U21: timber | V21: timber | Y21: timber | Z21: 0 | AA21: 1 | AC21: 0 | AD21: 0 | AF21: 1 | AG21: 1
B22: 14 | C22: constrict | F22: a person whose job is to supply and connect or repair water pipes, baths, toilets | M22: nroofcm | N22: 0.6760071332 | O22: 11 | P22: a person whose job is to supply and connect or repair water pipes, baths, toilets | R22: 0.7639735006 | S22: 18 | T22: 16 | U22: constrict | V22: plumber | Y22: constrict | Z22: 0 | AA22: 1 | AC22: 0 | AD22: 0 | AF22: 1 | AG22: 1
B23: 15 | C23: civil | F23: any whole number that is produced when a larger number is divided by whole number | M23: civil | N23: 0.8946759466 | O23: 16 | P23: any whole number that is produced when a larger number is divided by whole number | R23: 0.9914247153 | S23: 12 | T23: 18 | U23: ship | V23: factor | Y23: ship | Z23: 0 | AA23: 0 | AC23: 0 | AD23: 0 | AF23: 1 | AG23: 1
B24: 16 | C24: nmrgia | F24: peaceful and calm; worried by nothing | M24: nmrgia | N24: 0.4609842746 | O24: 13 | P24: peaceful and calm; worried by nothing | R24: 0.8193007621 | S24: 17 | T24: 14 | U24: legacy | V24: serene | Y24: legacy | Z24: 0 | AA24: 0 | AC24: 0 | AD24: 0 | AF24: 1 | AG24: 1
B25: 17 | C25: ocer | F25: to become tighter and narrower, or to make something become tighter and narrower | M25: ocer | N25: 0.6577282684 | O25: 17 | P25: to become tighter and narrower, or to make something become tighter and narrower | R25: 0.6676376655 | S25: 11 | T25: 17 | U25: serene | V25: constrict | Y25: serene | Z25: 0 | AA25: 0 | AC25: 0 | AD25: 0 | AF25: 1 | AG25: 1
B26: 18 | C26: melcriapi | F26: to transport something or someone by air, train, boat, or truck | M26: melcriapi | N26: 0.6397852362 | O26: 15 | P26: to transport something or someone by air, train, boat, or truck | R26: 0.1634177408 | S26: 16 | T26: 12 | U26: substantive | V26: ship | Y26: substantive | Z26: 0 | AA26: 0 | AC26: 0 | AD26: 0 | AF26: 1 | AG26: 1
B27: 19 | C27: ifryrnoiite | F27: money or property that you receive from someone after they die | M27: ifryrnoiite | N27: 0.7470652527 | O27: 18 | P27: money or property that you receive from someone after they die | R27: 0.5925793381 | S27: 13 | T27: 13 | U27: plumber | V27: legacy | Y27: plumber | Z27: 0 | AA27: 0 | AC27: 0 | AD27: 0 | AF27: 1 | AG27: 1
B28: 20 | C28: redecep | F28: a rate of increase that becomes quicker as the thing that increases becomes larger | M28: redecep | N28: 0.7217346249 | O28: 19 | P28: a rate of increase that becomes quicker as the thing that increases becomes larger | R28: 0.2648160409 | S28: 20 | T28: 19 | U28: starvation | V28: exponential | Y28: starvation | Z28: 0 | AA28: 0 | AC28: 0 | AD28: 0 | AF28: 1 | AG28: 1
A30: M | B30: 1 | C30: Week | D30: 5 | E30: Cloze Sentences Sem | G30: 2 | M30: Week | N30: 10 | O30: Cloze Sentences Sem | Q30: 2
E31: Choose a word to complete the sentences below: | O31: Choose a word to complete the sentences below:
B32: Part 1
B33: # | C33: Thai | D33: Word | E33: # | F33: Sentence | M33: Thai | N33: Word | O33: # | P33: Sentence | R33: Rand | S33: Sn | T33: Sn | U33: Col C | V33: Col D
B34: 1 | C34: =M34 -> เด่น | D34: =N34 -> dominant | E34: a) | F34: =IF(Z34=1,V34,P34) -> Water had risen to window ________ height in parts of the resort. | J34: =IF(Z34=1,Y34," ") ->  | M34: เด่น | N34: dominant | O34: a) | P34: Water had risen to window ________ height in parts of the resort. | R34: 0.3230235204 | S34: 8 | T34: 8 | U34: =INDIRECT(CONCATENATE("'U_List'!E",S34+1)) -> ledge | V34: =INDIRECT(CONCATENATE("'U_List'!H",S34+1)) -> Water had risen to window ledge height in parts of the resort. | Y34: =INDIRECT(CONCATENATE("'U_List'!e",S34+1)) -> ledge | Z34: 0 | AC34: 0 | AF34: 1
B35: 2 | C35: บานหน้าต่าง | D35: pane | E35: b) | F35: An ________ in the saliva of the mouth starts the process of breaking down the food. | M35: บานหน้าต่าง | N35: pane | O35: b) | P35: An ________ in the saliva of the mouth starts the process of breaking down the food. | R35: 0.30015794 | S35: 1 | T35: 1 | U35: enzyme | V35: An enzyme in the saliva of the mouth starts the process of breaking down the food. | Y35: enzyme | Z35: 0 | AC35: 0 | AF35: 1
B36: 3 | C36: เผชิญหน้า | D36: confront | E36: c) | F36: I saw some type of ________ flying above my house. | M36: เผชิญหน้า | N36: confront | O36: c) | P36: I saw some type of ________ flying above my house. | R36: 0.9353965488 | S36: 7 | T36: 7 | U36: spacecraft | V36: I saw some type of spacecraft flying above my house. | Y36: spacecraft | Z36: 0 | AC36: 0 | AF36: 1
B37: 4 | C37: ยานอวกาศ | D37: spacecraft | E37: d) | F37: When I hit the baseball, I accidentally broke a ________ of glass in my Grandma's shed. | M37: ยานอวกาศ | N37: spacecraft | O37: d) | P37: When I hit the baseball, I accidentally broke a ________ of glass in my Grandma's shed. | R37: 0.4968047251 | S37: 3 | T37: 3 | U37: pane | V37: When I hit the baseball, I accidentally broke a pane of glass in my Grandma's shed. | Y37: pane | Z37: 0 | AC37: 0 | AF37: 1
B38: 5 | C38: หิ้ง | D38: ledge | E38: e) | F38: This is the fifth ________ weekend that I've spent working, and I'm a bit fed up with it. | M38: หิ้ง | N38: ledge | O38: e) | P38: This is the fifth ________ weekend that I've spent working, and I'm a bit fed up with it. | R38: 0.4997453899 | S38: 5 | T38: 5 | U38: consecutive | V38: This is the fifth consecutive weekend that I've spent working, and I'm a bit fed up with it. | Y38: consecutive | Z38: 0 | AC38: 0 | AF38: 1
B39: 6 | C39: แจง | D39: make clear | E39: f) | F39: I will not tolerate this behaviour any longer. Do I ________? | M39: แจง | N39: make clear | O39: f) | P39: I will not tolerate this behaviour any longer. Do I ________? | R39: 0.2571330857 | S39: 9 | T39: 9 | U39: make clear | V39: I will not tolerate this behaviour any longer. Do I make clear? | Y39: make clear | Z39: 0 | AC39: 0 | AF39: 1
B40: 7 | C40: ติดต่อกัน | D40: consecutive | E40: g) | F40: It's an issue we'll have to ________ at some point, no matter how unpleasant it is. | M40: ติดต่อกัน | N40: consecutive | O40: g) | P40: It's an issue we'll have to ________ at some point, no matter how unpleasant it is. | R40: 0.02867721139 | S40: 2 | T40: 2 | U40: confront | V40: It's an issue we'll have to confront at some point, no matter how unpleasant it is. | Y40: confront | Z40: 0 | AC40: 0 | AF40: 1
B41: 8 | C41: ระเบียบสังคม | D41: common law | E41: h) | F41: I'll eat your pizza ________ for you. | M41: ระเบียบสังคม | N41: common law | O41: h) | P41: I'll eat your pizza ________ for you. | R41: 0.1803181371 | S41: 10 | T41: 10 | U41: crust | V41: I'll eat your pizza crust for you. | Y41: crust | Z41: 0 | AC41: 0 | AF41: 1
B42: 9 | C42: เอนไซม์ | D42: enzyme | E42: i) | F42: Jim considered Jane his ________ wife, as she is living with him. | M42: เอนไซม์ | N42: enzyme | O42: i) | P42: Jim considered Jane his ________ wife, as she is living with him. | R42: 0.05110796364 | S42: 6 | T42: 6 | U42: common law | V42: Jim considered Jane his common law wife, as she is living with him. | Y42: common law | Z42: 0 | AC42: 0 | AF42: 1
B43: 10 | C43: เปลือก | D43: crust | E43: h) | F43: Unemployment will be a ________ issue at the next election. | M43: เปลือก | N43: crust | O43: j) | P43: Unemployment will be a ________ issue at the next election. | R43: 0.5848123225 | S43: 4 | T43: 4 | U43: dominant | V43: Unemployment will be a dominant issue at the next election. | Y43: dominant | Z43: 0 | AC43: 0 | AF43: 1
B45: Part 2
B46: 11 | C46: =M46 -> ที่ชี้แจง | D46: =N46 -> exponential | E46: j) | F46: =IF(Z46=1,V46,P46) -> The drug causes the blood vessels to constrict. | J46: =IF(Z46=1,Y46," ") -> constrict | M46: ที่ชี้แจง | N46: exponential | O46: k) | P46: The drug causes the blood vessels to ________. | R46: 0.7667220939 | S46: 11 | T46: 11 | U46: =INDIRECT(CONCATENATE("'U_List'!E",S46+1)) -> constrict | V46: =INDIRECT(CONCATENATE("'U_List'!H",S46+1)) -> The drug causes the blood vessels to constrict. | Y46: =INDIRECT(CONCATENATE("'U_List'!e",S46+1)) -> constrict | Z46: 1 | AC46: 0 | AF46: 1
B47: 12 | C47: เรือ | D47: ship | E47: k) | F47: She has a lovely ________ face. | M47: เรือ | N47: ship | O47: l) | P47: She has a lovely ________ face. | R47: 0.06371156382 | S47: 17 | T47: 17 | U47: serene | V47: She has a lovely serene face. | Y47: serene | Z47: 0 | AC47: 0 | AF47: 1
B48: 13 | C48: ขอนไม้ | D48: timber | E48: l) | F48: They boarded a ________ that was sailing the next day. | M48: ขอนไม้ | N48: timber | O48: m) | P48: They boarded a ________ that was sailing the next day. | R48: 0.7330885502 | S48: 16 | T48: 16 | U48: ship | V48: They boarded a ship that was sailing the next day. | Y48: ship | Z48: 0 | AC48: 0 | AF48: 1
B49: 14 | C49: ความอดอยาก | D49: starvation | E49: m) | F49: These trees are being grown for timber. | J49: timber | M49: ความอดอยาก | N49: starvation | O49: n) | P49: These trees are being grown for ________. | R49: 0.1275118341 | S49: 14 | T49: 14 | U49: timber | V49: These trees are being grown for timber. | Y49: timber | Z49: 1 | AC49: 0 | AF49: 1
B50: 15 | C50: มรดก | D50: legacy | E50: n) | F50: ________ research on the subject needs to be carried out. | M50: มรดก | N50: legacy | O50: o) | P50: ________ research on the subject needs to be carried out. | R50: 0.1755904389 | S50: 15 | T50: 15 | U50: substantive | V50: Substantive research on the subject needs to be carried out. | Y50: substantive | Z50: 0 | AC50: 0 | AF50: 1
B51: 16 | C51: ปัจจัย | D51: factor | E51: o) | F51: When is the ________ coming to mend the burst pipe? | M51: ปัจจัย | N51: factor | O51: p) | P51: When is the ________ coming to mend the burst pipe? | R51: 0.7696153073 | S51: 18 | T51: 18 | U51: plumber | V51: When is the plumber coming to mend the burst pipe? | Y51: plumber | Z51: 0 | AC51: 0 | AF51: 1
B52: 17 | C52: รัด | D52: constrict | E52: p) | F52: Two, three, four and six are all ________s of twelve. | M52: รัด | N52: constrict | O52: q) | P52: Two, three, four and six are all ________s of twelve. | R52: 0.1881025953 | S52: 12 | T52: 12 | U52: factor | V52: Two, three, four and six are all factors of twelve. | Y52: factor | Z52: 0 | AC52: 0 | AF52: 1
B53: 18 | C53: สงบเงียบ | D53: serene | E53: q) | F53: An elderly cousin had left her a small ________. | M53: สงบเงียบ | N53: serene | O53: r) | P53: An elderly cousin had left her a small ________. | R53: 0.2024864432 | S53: 13 | T53: 13 | U53: legacy | V53: An elderly cousin had left her a small legacy. | Y53: legacy | Z53: 0 | AC53: 0 | AF53: 1
B54: 19 | C54: สำคัญ | D54: substantive | E54: r) | F54: 20 million people face ________ unless a vast emergency aid programme is launched. | M54: สำคัญ | N54: substantive | O54: s) | P54: 20 million people face ________ unless a vast emergency aid programme is launched. | R54: 0.8966390334 | S54: 19 | T54: 19 | U54: starvation | V54: 20 million people face starvation unless a vast emergency aid programme is launched. | Y54: starvation | Z54: 0 | AC54: 0 | AF54: 1
B55: 20 | C55: ช่างประปา | D55: plumber | E55: q) | F55: There has been an ________ increase in the world population this century. | M55: ช่างประปา | N55: plumber | O55: t) | P55: There has been an ________ increase in the world population this century. | R55: 0.06834570853 | S55: 20 | T55: 20 | U55: exponential | V55: There has been an exponential increase in the world population this century. | Y55: exponential | Z55: 0 | AC55: 0 | AF55: 1

Sheet U_List (hidden)
A1: Easy/Hard | B1: 1 | D1: Thai | H1: Answers | I1: Random | J1: Orig. | K1: Sort | N1: Wordlist Row
B2: =IF(B1=0,"X","Y") -> Y | C2: 1 | D2: =INDEX('2013 WordList'!F:F,MATCH(E2,'2013 WordList'!H:H,0)) -> เอนไซม์ | E2: =INDIRECT(CONCATENATE("'2013 WordList'!H",J2+1)) -> enzyme | F2: =INDEX('2013 WordList'!I:I,MATCH(E2,'2013 WordList'!H:H,0)) -> chemical substances that are produced by living cells | G2: =INDEX('2013 WordList'!Q:Q,MATCH(E2,'2013 WordList'!H:H,0)) -> An ________ in the saliva of the mouth starts the process of breaking down the food. | H2: =INDEX('2013 WordList'!J:J,MATCH(E2,'2013 WordList'!H:H,0)) -> An enzyme in the saliva of the mouth starts the process of breaking down the food. | I2: =RAND() -> 0.5451343793 | J2: =IF($B$6<7,$B$4,N2) -> 3541 | K2: =RANDBETWEEN(0,3) -> 3 | L2: menyez | N2: =INDIRECT(CONCATENATE("'WordLists'!",$B$7,$B$8+1)) -> 
C3: 2 | D3: =INDEX('2013 WordList'!F:F,MATCH(E3,'2013 WordList'!H:H,0)) -> เผชิญหน้า | E3: confront | F3: =INDEX('2013 WordList'!I:I,MATCH(E3,'2013 WordList'!H:H,0)) -> to face, meet, or deal with a difficult situation or person | G3: =INDEX('2013 WordList'!Q:Q,MATCH(E3,'2013 WordList'!H:H,0)) -> It's an issue we'll have to ________ at some point, no matter how unpleasant it is. | H3: =INDEX('2013 WordList'!J:J,MATCH(E3,'2013 WordList'!H:H,0)) -> It's an issue we'll have to confront at some point, no matter how unpleasant it is. | I3: 0.158730703 | J3: =IF($B$6<7,$B$4+1,N3) -> 3542 | K3: 2 | L3: rnofcotn | N3: =INDIRECT(CONCATENATE("'WordLists'!",$B$7,$B$8+2)) -> 
A4: U Cloze Start # | B4: ='M Order'!AB19 -> 3541 | C4: 3 | D4: =INDEX('2013 WordList'!F:F,MATCH(E4,'2013 WordList'!H:H,0)) -> บานหน้าต่าง | E4: pane | F4: =INDEX('2013 WordList'!I:I,MATCH(E4,'2013 WordList'!H:H,0)) -> a flat piece of glass, used in a window or door | G4: =INDEX('2013 WordList'!Q:Q,MATCH(E4,'2013 WordList'!H:H,0)) -> When I hit the baseball, I accidentally broke a ________ of glass in my Grandma's shed. | H4: =INDEX('2013 WordList'!J:J,MATCH(E4,'2013 WordList'!H:H,0)) -> When I hit the baseball, I accidentally broke a pane of glass in my Grandma's shed. | I4: 0.1760285716 | J4: =IF($B$6<7,$B$4+2,N4) -> 3543 | K4: 1 | L4: nepa | N4: =INDIRECT(CONCATENATE("'WordLists'!",$B$7,$B$8+3)) -> 
C5: 4 | D5: =INDEX('2013 WordList'!F:F,MATCH(E5,'2013 WordList'!H:H,0)) -> เด่น | E5: dominant | F5: =INDEX('2013 WordList'!I:I,MATCH(E5,'2013 WordList'!H:H,0)) -> more important, strong, or noticeable than anything else of the same type | G5: =INDEX('2013 WordList'!Q:Q,MATCH(E5,'2013 WordList'!H:H,0)) -> Unemployment will be a ________ issue at the next election. | H5: =INDEX('2013 WordList'!J:J,MATCH(E5,'2013 WordList'!H:H,0)) -> Unemployment will be a dominant issue at the next election. | I5: 0.8848558924 | J5: =IF($B$6<7,$B$4+3,N5) -> 3544 | K5: 0 | L5: omdiatnn | N5: =INDIRECT(CONCATENATE("'WordLists'!",$B$7,$B$8+4)) -> 
A6: Input | B6: ='M Order'!W19 -> 5 | C6: 5 | D6: =INDEX('2013 WordList'!F:F,MATCH(E6,'2013 WordList'!H:H,0)) -> ติดต่อกัน | E6: consecutive | F6: =INDEX('2013 WordList'!I:I,MATCH(E6,'2013 WordList'!H:H,0)) -> events or numbers that follow one after another without an interruption | G6: =INDEX('2013 WordList'!Q:Q,MATCH(E6,'2013 WordList'!H:H,0)) -> This is the fifth ________ weekend that I've spent working, and I'm a bit fed up with it. | H6: =INDEX('2013 WordList'!J:J,MATCH(E6,'2013 WordList'!H:H,0)) -> This is the fifth consecutive weekend that I've spent working, and I'm a bit fed up with it. | I6: 0.4833700349 | J6: =IF($B$6<7,$B$4+4,N6) -> 3545 | K6: 1 | L6: utcsvecione | N6: =INDIRECT(CONCATENATE("'WordLists'!",$B$7,$B$8+5)) -> 
A7: Wordlist Column | B7: ='M Order'!AE19 -> 0 | C7: 6 | D7: =INDEX('2013 WordList'!F:F,MATCH(E7,'2013 WordList'!H:H,0)) -> ระเบียบสังคม | E7: common law | F7: =INDEX('2013 WordList'!I:I,MATCH(E7,'2013 WordList'!H:H,0)) -> the legal system in England and most of the US from old customs rather than laws | G7: =INDEX('2013 WordList'!Q:Q,MATCH(E7,'2013 WordList'!H:H,0)) -> Jim considered Jane his ________ wife, as she is living with him. | H7: =INDEX('2013 WordList'!J:J,MATCH(E7,'2013 WordList'!H:H,0)) -> Jim considered Jane his common law wife, as she is living with him. | I7: 0.6090402445 | J7: =IF($B$6<7,$B$4+5,N7) -> 3546 | K7: 2 | L7: oonmclw ma | N7: =INDIRECT(CONCATENATE("'WordLists'!",$B$7,$B$8+6)) -> 
A8: Row | B8: ='M Order'!AF19 -> 562 | C8: 7 | D8: =INDEX('2013 WordList'!F:F,MATCH(E8,'2013 WordList'!H:H,0)) -> ยานอวกาศ | E8: spacecraft | F8: =INDEX('2013 WordList'!I:I,MATCH(E8,'2013 WordList'!H:H,0)) -> a vehicle used for travel in space | G8: =INDEX('2013 WordList'!Q:Q,MATCH(E8,'2013 WordList'!H:H,0)) -> I saw some type of ________ flying above my house. | H8: =INDEX('2013 WordList'!J:J,MATCH(E8,'2013 WordList'!H:H,0)) -> I saw some type of spacecraft flying above my house. | I8: 0.2158973513 | J8: =IF($B$6<7,$B$4+6,N8) -> 3547 | K8: 3 | L8: pascfetrac | N8: =INDIRECT(CONCATENATE("'WordLists'!",$B$7,$B$8+7)) -> 
C9: 8 | D9: =INDEX('2013 WordList'!F:F,MATCH(E9,'2013 WordList'!H:H,0)) -> หิ้ง | E9: ledge | F9: =INDEX('2013 WordList'!I:I,MATCH(E9,'2013 WordList'!H:H,0)) -> a narrow shelf which sticks out from a vertical surface | G9: =INDEX('2013 WordList'!Q:Q,MATCH(E9,'2013 WordList'!H:H,0)) -> Water had risen to window ________ height in parts of the resort. | H9: =INDEX('2013 WordList'!J:J,MATCH(E9,'2013 WordList'!H:H,0)) -> Water had risen to window ledge height in parts of the resort. | I9: 0.8831192704 | J9: =IF($B$6<7,$B$4+7,N9) -> 3548 | K9: 2 | L9: elegd | N9: =INDIRECT(CONCATENATE("'WordLists'!",$B$7,$B$8+8)) -> 
C10: 9 | D10: =INDEX('2013 WordList'!F:F,MATCH(E10,'2013 WordList'!H:H,0)) -> แจง | E10: make clear | F10: =INDEX('2013 WordList'!I:I,MATCH(E10,'2013 WordList'!H:H,0)) -> to emphasize what has just been said | G10: =INDEX('2013 WordList'!Q:Q,MATCH(E10,'2013 WordList'!H:H,0)) -> I will not tolerate this behaviour any longer. Do I ________? | H10: =INDEX('2013 WordList'!J:J,MATCH(E10,'2013 WordList'!H:H,0)) -> I will not tolerate this behaviour any longer. Do I make clear? | I10: 0.5591347035 | J10: =IF($B$6<7,$B$4+8,N10) -> 3549 | K10: 1 | L10: k almceera | N10: =INDIRECT(CONCATENATE("'WordLists'!",$B$7,$B$8+9)) -> 
C11: 10 | D11: =INDEX('2013 WordList'!F:F,MATCH(E11,'2013 WordList'!H:H,0)) -> เปลือก | E11: crust | F11: =INDEX('2013 WordList'!I:I,MATCH(E11,'2013 WordList'!H:H,0)) -> a hard outer covering of something | G11: =INDEX('2013 WordList'!Q:Q,MATCH(E11,'2013 WordList'!H:H,0)) -> I'll eat your pizza ________ for you. | H11: =INDEX('2013 WordList'!J:J,MATCH(E11,'2013 WordList'!H:H,0)) -> I'll eat your pizza crust for you. | I11: 0.5214973558 | J11: =IF($B$6<7,$B$4+9,N11) -> 3550 | K11: 2 | L11: surct | N11: =INDIRECT(CONCATENATE("'WordLists'!",$B$7,$B$8+10)) -> 
C12: 11 | D12: =INDEX('2013 WordList'!F:F,MATCH(E12,'2013 WordList'!H:H,0)) -> รัด | E12: constrict | F12: =INDEX('2013 WordList'!I:I,MATCH(E12,'2013 WordList'!H:H,0)) -> to become tighter and narrower, or to make something become tighter and narrower | G12: =INDEX('2013 WordList'!Q:Q,MATCH(E12,'2013 WordList'!H:H,0)) -> The drug causes the blood vessels to ________. | H12: =INDEX('2013 WordList'!J:J,MATCH(E12,'2013 WordList'!H:H,0)) -> The drug causes the blood vessels to constrict. | I12: 0.08963860344 | J12: =IF($B$6<7,$B$4+10,N12) -> 3551 | K12: 0 | L12: tsrcotcni | N12: =INDIRECT(CONCATENATE("'WordLists'!",$B$7,$B$8+11)) -> 
C13: 12 | D13: =INDEX('2013 WordList'!F:F,MATCH(E13,'2013 WordList'!H:H,0)) -> ปัจจัย | E13: factor | F13: =INDEX('2013 WordList'!I:I,MATCH(E13,'2013 WordList'!H:H,0)) -> any whole number that is produced when a larger number is divided by whole number | G13: =INDEX('2013 WordList'!Q:Q,MATCH(E13,'2013 WordList'!H:H,0)) -> Two, three, four and six are all ________s of twelve. | H13: =INDEX('2013 WordList'!J:J,MATCH(E13,'2013 WordList'!H:H,0)) -> Two, three, four and six are all factors of twelve. | I13: 0.4244043225 | J13: =IF($B$6<7,$B$4+11,N13) -> 3552 | K13: 0 | L13: rcfato | N13: =INDIRECT(CONCATENATE("'WordLists'!",$B$7,$B$8+12)) -> 
C14: 13 | D14: =INDEX('2013 WordList'!F:F,MATCH(E14,'2013 WordList'!H:H,0)) -> มรดก | E14: legacy | F14: =INDEX('2013 WordList'!I:I,MATCH(E14,'2013 WordList'!H:H,0)) -> money or property that you receive from someone after they die | G14: =INDEX('2013 WordList'!Q:Q,MATCH(E14,'2013 WordList'!H:H,0)) -> An elderly cousin had left her a small ________. | H14: =INDEX('2013 WordList'!J:J,MATCH(E14,'2013 WordList'!H:H,0)) -> An elderly cousin had left her a small legacy. | I14: 0.7668880185 | J14: =IF($B$6<7,$B$4+12,N14) -> 3553 | K14: 1 | L14: aclgey | N14: =INDIRECT(CONCATENATE("'WordLists'!",$B$7,$B$8+13)) -> 
C15: 14 | D15: =INDEX('2013 WordList'!F:F,MATCH(E15,'2013 WordList'!H:H,0)) -> ขอนไม้ | E15: timber | F15: =INDEX('2013 WordList'!I:I,MATCH(E15,'2013 WordList'!H:H,0)) -> trees that are grown so that the wood from them can be used for building | G15: =INDEX('2013 WordList'!Q:Q,MATCH(E15,'2013 WordList'!H:H,0)) -> These trees are being grown for ________. | H15: =INDEX('2013 WordList'!J:J,MATCH(E15,'2013 WordList'!H:H,0)) -> These trees are being grown for timber. | I15: 0.3501644793 | J15: =IF($B$6<7,$B$4+13,N15) -> 3554 | K15: 2 | L15: emritb | N15: =INDIRECT(CONCATENATE("'WordLists'!",$B$7,$B$8+14)) -> 
C16: 15 | D16: =INDEX('2013 WordList'!F:F,MATCH(E16,'2013 WordList'!H:H,0)) -> สำคัญ | E16: substantive | F16: =INDEX('2013 WordList'!I:I,MATCH(E16,'2013 WordList'!H:H,0)) -> important, serious, or related to real facts | G16: =INDEX('2013 WordList'!Q:Q,MATCH(E16,'2013 WordList'!H:H,0)) -> ________ research on the subject needs to be carried out. | H16: =INDEX('2013 WordList'!J:J,MATCH(E16,'2013 WordList'!H:H,0)) -> Substantive research on the subject needs to be carried out. | I16: 0.9812356862 | J16: =IF($B$6<7,$B$4+14,N16) -> 3555 | K16: 0 | L16: biansttevsu | N16: =INDIRECT(CONCATENATE("'WordLists'!",$B$7,$B$8+15)) -> 
C17: 16 | D17: =INDEX('2013 WordList'!F:F,MATCH(E17,'2013 WordList'!H:H,0)) -> เรือ | E17: ship | F17: =INDEX('2013 WordList'!I:I,MATCH(E17,'2013 WordList'!H:H,0)) -> to transport something or someone by air, train, boat, or truck | G17: =INDEX('2013 WordList'!Q:Q,MATCH(E17,'2013 WordList'!H:H,0)) -> They boarded a ________ that was sailing the next day. | H17: =INDEX('2013 WordList'!J:J,MATCH(E17,'2013 WordList'!H:H,0)) -> They boarded a ship that was sailing the next day. | I17: 0.6646055354 | J17: =IF($B$6<7,$B$4+15,N17) -> 3556 | K17: 1 | L17: hisp | N17: =INDIRECT(CONCATENATE("'WordLists'!",$B$7,$B$8+16)) -> 
C18: 17 | D18: =INDEX('2013 WordList'!F:F,MATCH(E18,'2013 WordList'!H:H,0)) -> สงบเงียบ | E18: serene | F18: =INDEX('2013 WordList'!I:I,MATCH(E18,'2013 WordList'!H:H,0)) -> peaceful and calm; worried by nothing | G18: =INDEX('2013 WordList'!Q:Q,MATCH(E18,'2013 WordList'!H:H,0)) -> She has a lovely ________ face. | H18: =INDEX('2013 WordList'!J:J,MATCH(E18,'2013 WordList'!H:H,0)) -> She has a lovely serene face. | I18: 0.6012574274 | J18: =IF($B$6<7,$B$4+16,N18) -> 3557 | K18: 1 | L18: eesern | N18: =INDIRECT(CONCATENATE("'WordLists'!",$B$7,$B$8+17)) -> 
C19: 18 | D19: =INDEX('2013 WordList'!F:F,MATCH(E19,'2013 WordList'!H:H,0)) -> ช่างประปา | E19: plumber | F19: =INDEX('2013 WordList'!I:I,MATCH(E19,'2013 WordList'!H:H,0)) -> a person whose job is to supply and connect or repair water pipes, baths, toilets | G19: =INDEX('2013 WordList'!Q:Q,MATCH(E19,'2013 WordList'!H:H,0)) -> When is the ________ coming to mend the burst pipe? | H19: =INDEX('2013 WordList'!J:J,MATCH(E19,'2013 WordList'!H:H,0)) -> When is the plumber coming to mend the burst pipe? | I19: 0.6742596291 | J19: =IF($B$6<7,$B$4+17,N19) -> 3558 | K19: 2 | L19: luperbm | N19: =INDIRECT(CONCATENATE("'WordLists'!",$B$7,$B$8+18)) -> 
C20: 19 | D20: =INDEX('2013 WordList'!F:F,MATCH(E20,'2013 WordList'!H:H,0)) -> ความอดอยาก | E20: starvation | F20: =INDEX('2013 WordList'!I:I,MATCH(E20,'2013 WordList'!H:H,0)) -> the state of having no food for a long period, often causing death | G20: =INDEX('2013 WordList'!Q:Q,MATCH(E20,'2013 WordList'!H:H,0)) -> 20 million people face ________ unless a vast emergency aid programme is launched. | H20: =INDEX('2013 WordList'!J:J,MATCH(E20,'2013 WordList'!H:H,0)) -> 20 million people face starvation unless a vast emergency aid programme is launched. | I20: 0.8132151066 | J20: =IF($B$6<7,$B$4+18,N20) -> 3559 | K20: 0 | L20: tarisavtno | N20: =INDIRECT(CONCATENATE("'WordLists'!",$B$7,$B$8+19)) -> 
C21: 20 | D21: =INDEX('2013 WordList'!F:F,MATCH(E21,'2013 WordList'!H:H,0)) -> ที่ชี้แจง | E21: exponential | F21: =INDEX('2013 WordList'!I:I,MATCH(E21,'2013 WordList'!H:H,0)) -> a rate of increase that becomes quicker as the thing that increases becomes larger | G21: =INDEX('2013 WordList'!Q:Q,MATCH(E21,'2013 WordList'!H:H,0)) -> There has been an ________ increase in the world population this century. | H21: =INDEX('2013 WordList'!J:J,MATCH(E21,'2013 WordList'!H:H,0)) -> There has been an exponential increase in the world population this century. | I21: 0.8736721528 | J21: =IF($B$6<7,$B$4+19,N21) -> 3560 | K21: 0 | L21: etoaixlennp | N21: =INDIRECT(CONCATENATE("'WordLists'!",$B$7,$B$8+20)) -> 

Sheet Sent.Wksheet
C1: Name: ___________________ | F1: Number: _______________ | I1: Class: _______________
A3: =IF(B3>=7,"","M") -> M | B3: 1 | C3: =IF(B3=9,"AWL Sentence Completion",IF(B3=8,"SAT Sentence Completion",IF(B3=7,"TOEFL Sentence Completion","Sentence Completion - Which Word?"))) -> Sentence Completion - Which Word? | H3: Week | I3: 1 | J3: Semster | K3: 2 | N3: Answers
B5: Part 1 | D5: Choose a word to complete the sentences below:
B6: # | C6: Sentence
B7: 1 | C7: =S_List!$D$2 -> It often gets cold after it gets dark here, late at ________. | Y7: Wks
C8: (a) | D8: =S_List!$L$2 -> night | E8: (b) | F8: =S_List!$M$2 -> afternoon | G8: (c) | H8: =S_List!$N$2 -> day | I8: (d) | J8: =S_List!$O$2 -> daylight | N8: =S_List!$H$2 -> night | U8: 1 | V8: Matthayom | Y8: 1
U9: 2 | Y9: 2
B10: 2 | C10: =S_List!$D$3 -> This office is closed ________ for redecoration. | U10: 3 | Y10: 3
C11: (a) | D11: =S_List!$L$3 -> eternally | E11: (b) | F11: =S_List!$M$3 -> temporarily | G11: (c) | H11: =S_List!$N$3 -> always | I11: (d) | J11: =S_List!$O$3 -> forever | N11: =S_List!$H$3 -> temporarily | U11: 4 | Y11: 4
U12: 5 | Y12: 5
B13: 3 | C13: =S_List!$D$4 -> I shall probably need ________ sandwiches and anchovy toast as well. | U13: 6 | Y13: 6
C14: (a) | D14: =S_List!$L$4 -> cucumber | E14: (b) | F14: =S_List!$M$4 -> bacon | G14: (c) | H14: =S_List!$N$4 -> pig | I14: (d) | J14: =S_List!$O$4 -> pork | N14: =S_List!$H$4 -> cucumber | U14: 7 | V14: TOEFL | W14: N | Y14: 7
U15: 8 | V15: SAT | W15: I | Y15: 8
B16: 4 | C16: =S_List!$D$5 -> The ________ surface of the seashell was smooth. | U16: 9 | V16: AWL | W16: S | Y16: 9
C17: (a) | D17: =S_List!$L$5 -> seaside | E17: (b) | F17: =S_List!$M$5 -> interior | G17: (c) | H17: =S_List!$N$5 -> beach | I17: (d) | J17: =S_List!$O$5 -> seashore | N17: =S_List!$H$5 -> interior | Y17: 10
V18: Sem | W18: 1 | Y18: 11
B19: 5 | C19: =S_List!$D$6 -> The economy looks set to ________ its growth into next year. | W19: 2 | Y19: 12
C20: (a) | D20: =S_List!$L$6 -> because | E20: (b) | F20: =S_List!$M$6 -> since | G20: (c) | H20: =S_List!$N$6 -> as | I20: (d) | J20: =S_List!$O$6 -> sustain | N20: =S_List!$H$6 -> sustain | Y20: 13
Y21: 14
B22: 6 | C22: =S_List!$D$7 -> He asked me to give him another loan, but I had to ________ since I had no money. | Y22: 15
C23: (a) | D23: =S_List!$L$7 -> start on | E23: (b) | F23: =S_List!$M$7 -> refuse | G23: (c) | H23: =S_List!$N$7 -> begin | I23: (d) | J23: =S_List!$O$7 -> start | N23: =S_List!$H$7 -> refuse | Y23: 16
Y24: 17
B25: 7 | C25: =S_List!$D$8 -> Contractors have started to ________ new houses on waste land near the town. | Y25: 18
C26: (a) | D26: =S_List!$L$8 -> centenary | E26: (b) | F26: =S_List!$M$8 -> build | G26: (c) | H26: =S_List!$N$8 -> birthday | I26: (d) | J26: =S_List!$O$8 -> anniversary | N26: =S_List!$H$8 -> build | Y26: 19
Y27: 20
B28: 8 | C28: =S_List!$D$9 -> She has put on a lot of weight and looks quite ________ now.
C29: (a) | D29: =S_List!$L$9 -> mealtime | E29: (b) | F29: =S_List!$M$9 -> feast | G29: (c) | H29: =S_List!$N$9 -> fat | I29: (d) | J29: =S_List!$O$9 -> breakfast | N29: =S_List!$H$9 -> fat
B31: 9 | C31: =S_List!$D$10 -> Eight people, ________ two children, were injured in the explosion.
C32: (a) | D32: =S_List!$L$10 -> except | E32: (b) | F32: =S_List!$M$10 -> including | G32: (c) | H32: =S_List!$N$10 -> but | I32: (d) | J32: =S_List!$O$10 -> other than | N32: =S_List!$H$10 -> including
B34: 10 | C34: =S_List!$D$11 -> When do you ________ your new job?
C35: (a) | D35: =S_List!$L$11 -> start | E35: (b) | F35: =S_List!$M$11 -> car | G35: (c) | H35: =S_List!$N$11 -> automobile | I35: (d) | J35: =S_List!$O$11 -> auto | N35: =S_List!$H$11 -> start
B38: Part 2
B39: # | C39: Sentence
B40: 11 | C40: =S_List!$D$12 -> He stood at the ________ of the stairs and called up to me.
C41: (a) | D41: =S_List!$L$12 -> bottom | E41: (b) | F41: =S_List!$M$12 -> cereal | G41: (c) | H41: =S_List!$N$12 -> breakfast cereal | I41: (d) | J41: =S_List!$O$12 -> puffed rice | N41: =S_List!$H$12 -> bottom
B43: 12 | C43: =S_List!$D$13 -> My twin sister and I have got the ________ nose.
C44: (a) | D44: =S_List!$L$13 -> same | E44: (b) | F44: =S_List!$M$13 -> chat | G44: (c) | H44: =S_List!$N$13 -> talk | I44: (d) | J44: =S_List!$O$13 -> have a chat | N44: =S_List!$H$13 -> same
B46: 13 | C46: =S_List!$D$14 -> Today is my mother’s 49th ________ so we are going to bake a cake for her.
C47: (a) | D47: =S_List!$L$14 -> Christmas | E47: (b) | F47: =S_List!$M$14 -> Easter | G47: (c) | H47: =S_List!$N$14 -> Halloween | I47: (d) | J47: =S_List!$O$14 -> Birthday | N47: =S_List!$H$14 -> Birthday
B49: 14 | C49: =S_List!$D$15 -> Be careful. That ladder doesn't look very ________ to me.
C50: (a) | D50: =S_List!$L$15 -> secure | E50: (b) | F50: =S_List!$M$15 -> dangerous | G50: (c) | H50: =S_List!$N$15 -> unsafe | I50: (d) | J50: =S_List!$O$15 -> hazardous | N50: =S_List!$H$15 -> secure
B52: 15 | C52: =S_List!$D$16 -> Is that to eat in or ________?
C53: (a) | D53: =S_List!$L$16 -> transport | E53: (b) | F53: =S_List!$M$16 -> take away | G53: (c) | H53: =S_List!$N$16 -> deliver | I53: (d) | J53: =S_List!$O$16 -> bring | N53: =S_List!$H$16 -> take away
B55: 16 | C55: =S_List!$D$17 -> She's too clever to fall into the ________ of doing any unpaid work.
C56: (a) | D56: =S_List!$L$17 -> police officer | E56: (b) | F56: =S_List!$M$17 -> officer | G56: (c) | H56: =S_List!$N$17 -> trap | I56: (d) | J56: =S_List!$O$17 -> detective | N56: =S_List!$H$17 -> trap
B58: 17 | C58: =S_List!$D$18 -> Please send this letter by ________ delivery.
C59: (a) | D59: =S_List!$L$18 -> banquet | E59: (b) | F59: =S_List!$M$18 -> buffet | G59: (c) | H59: =S_List!$N$18 -> express | I59: (d) | J59: =S_List!$O$18 -> dinner | N59: =S_List!$H$18 -> express
B61: 18 | C61: =S_List!$D$19 -> I'm afraid I began to ________ my studies at the beginning of this semester.
C62: (a) | D62: =S_List!$L$19 -> accomplish | E62: (b) | F62: =S_List!$M$19 -> neglect | G62: (c) | H62: =S_List!$N$19 -> do | I62: (d) | J62: =S_List!$O$19 -> perform | N62: =S_List!$H$19 -> neglect
B64: 19 | C64: =S_List!$D$20 -> He won't be home on time. I expect him to come ________ this evening.
C65: (a) | D65: =S_List!$L$20 -> begin | E65: (b) | F65: =S_List!$M$20 -> prelude | G65: (c) | H65: =S_List!$N$20 -> late | I65: (d) | J65: =S_List!$O$20 -> early | N65: =S_List!$H$20 -> late
B67: 20 | C67: =S_List!$D$21 -> He's had the ________ of an education and yet he continues to work as a waiter.
C68: (a) | D68: =S_List!$L$21 -> education | E68: (b) | F68: =S_List!$M$21 -> teaching | G68: (c) | H68: =S_List!$N$21 -> learning | I68: (d) | J68: =S_List!$O$21 -> benefit | N68: =S_List!$H$21 -> benefit

Sheet Sent.Worksheet (hidden)
C1: Name: ___________________ | F1: Number: _______________ | I1: Class: _______________
A3: M | B3: 1 | C3: Sentence Completion - Which Word? | H3: Week | I3: 1 | J3: Semster | K3: 2
B5: Part 1 | D5: Choose a word to complete the sentences below:
B6: # | C6: Sentence
B7: 1 | C7: It often gets cold after it gets dark here, late at ________.
C8: (a) | D8: daylight | E8: (b) | F8: night | G8: (c) | H8: afternoon | I8: (d) | J8: day | N8: night
B10: 2 | C10: This office is closed ________ for redecoration.
C11: (a) | D11: forever | E11: (b) | F11: eternally | G11: (c) | H11: temporarily | I11: (d) | J11: always | N11: temporarily
B13: 3 | C13: I shall probably need ________ sandwiches and anchovy toast as well.
C14: (a) | D14: pig | E14: (b) | F14: pork | G14: (c) | H14: cucumber | I14: (d) | J14: bacon | N14: cucumber
B16: 4 | C16: The ________ surface of the seashell was smooth.
C17: (a) | D17: interior | E17: (b) | F17: beach | G17: (c) | H17: seashore | I17: (d) | J17: seaside | N17: interior
B19: 5 | C19: The economy looks set to ________ its growth into next year.
C20: (a) | D20: as | E20: (b) | F20: sustain | G20: (c) | H20: because | I20: (d) | J20: since | N20: sustain
B22: 6 | C22: He asked me to give him another loan, but I had to ________ since I had no money.
C23: (a) | D23: start on | E23: (b) | F23: refuse | G23: (c) | H23: begin | I23: (d) | J23: start | N23: refuse
B25: 7 | C25: Contractors have started to ________ new houses on waste land near the town.
C26: (a) | D26: birthday | E26: (b) | F26: anniversary | G26: (c) | H26: centenary | I26: (d) | J26: build | N26: build
B28: 8 | C28: She has put on a lot of weight and looks quite ________ now.
C29: (a) | D29: breakfast | E29: (b) | F29: mealtime | G29: (c) | H29: feast | I29: (d) | J29: fat | N29: fat
B31: 9 | C31: Eight people, ________ two children, were injured in the explosion.
C32: (a) | D32: except | E32: (b) | F32: including | G32: (c) | H32: but | I32: (d) | J32: other than | N32: including
B34: 10 | C34: When do you ________ your new job?
C35: (a) | D35: auto | E35: (b) | F35: start | G35: (c) | H35: car | I35: (d) | J35: automobile | N35: start
B38: Part 2
B39: # | C39: Sentence
B40: 11 | C40: He stood at the ________ of the stairs and called up to me.
C41: (a) | D41: cereal | E41: (b) | F41: breakfast cereal | G41: (c) | H41: puffed rice | I41: (d) | J41: bottom | N41: bottom
B43: 12 | C43: My twin sister and I have got the ________ nose.
C44: (a) | D44: talk | E44: (b) | F44: have a chat | G44: (c) | H44: same | I44: (d) | J44: chat | N44: same
B46: 13 | C46: Today is my mother’s 49th ________ so we are going to bake a cake for her.
C47: (a) | D47: Christmas | E47: (b) | F47: Easter | G47: (c) | H47: Halloween | I47: (d) | J47: Birthday | N47: Birthday
B49: 14 | C49: Be careful. That ladder doesn't look very ________ to me.
C50: (a) | D50: unsafe | E50: (b) | F50: hazardous | G50: (c) | H50: secure | I50: (d) | J50: dangerous | N50: secure
B52: 15 | C52: Is that to eat in or ________?
C53: (a) | D53: take away | E53: (b) | F53: deliver | G53: (c) | H53: bring | I53: (d) | J53: transport | N53: take away
B55: 16 | C55: She's too clever to fall into the ________ of doing any unpaid work.
C56: (a) | D56: detective | E56: (b) | F56: police officer | G56: (c) | H56: officer | I56: (d) | J56: trap | N56: trap
B58: 17 | C58: Please send this letter by ________ delivery.
C59: (a) | D59: buffet | E59: (b) | F59: express | G59: (c) | H59: dinner | I59: (d) | J59: banquet | N59: express
B61: 18 | C61: I'm afraid I began to ________ my studies at the beginning of this semester.
C62: (a) | D62: accomplish | E62: (b) | F62: neglect | G62: (c) | H62: do | I62: (d) | J62: perform | N62: neglect
B64: 19 | C64: He won't be home on time. I expect him to come ________ this evening.
C65: (a) | D65: begin | E65: (b) | F65: prelude | G65: (c) | H65: late | I65: (d) | J65: early | N65: late
B67: 20 | C67: He's had the ________ of an education and yet he continues to work as a waiter.
C68: (a) | D68: education | E68: (b) | F68: teaching | G68: (c) | H68: learning | I68: (d) | J68: benefit | N68: benefit

Sheet Syn.Wksheet (hidden)
B1: Name: ___________________ | F1: Number: _______________ | I1: Class: _______________
A3: =IF(B3>=7,"","M") -> M | B3: 5 | C3: =IF(B3=9,"AWL Synonyms",IF(B3=8,"SAT Synonyms",IF(B3=7,"TOEFL Synonyms","Synonyms - Find the ODD ONE OUT"))) -> Synonyms - Find the ODD ONE OUT | H3: Week | I3: 18 | J3: Semester | K3: 1
B5: Part 1 | D5: Circle the word which does NOT belong to the synonym group on each line choices below:
B6: # | C6: Word Groups
B7: 1 | C7: (a) | D7: ='M List'!L2 -> remorse | E7: (b) | F7: ='M List'!M2 -> regret | G7: (c) | H7: ='M List'!N2 -> sorrow | I7: (d) | J7: ='M List'!O2 -> joy | N7: ='M List'!H2 -> joy | AA7: Wks
W8: 1 | X8: Matthayom | AA8: 1
B9: 2 | C9: (a) | D9: ='M List'!L3 -> assonance | E9: (b) | F9: ='M List'!M3 -> verse | G9: (c) | H9: ='M List'!N3 -> poetry | I9: (d) | J9: ='M List'!O3 -> prose | N9: ='M List'!H3 -> prose | W9: 2 | AA9: 2
W10: 3 | AA10: 3
B11: 3 | C11: (a) | D11: ='M List'!L4 -> serious | E11: (b) | F11: ='M List'!M4 -> buffoonery | G11: (c) | H11: ='M List'!N4 -> comedy | I11: (d) | J11: ='M List'!O4 -> slapstick | N11: ='M List'!H4 -> serious | W11: 4 | AA11: 4
W12: 5 | AA12: 5
B13: 4 | C13: (a) | D13: ='M List'!L5 -> infertile | E13: (b) | F13: ='M List'!M5 -> arable | G13: (c) | H13: ='M List'!N5 -> cultivate | I13: (d) | J13: ='M List'!O5 -> plow | N13: ='M List'!H5 -> infertile | W13: 6 | AA13: 6
W14: 7 | X14: TOEFL | Y14: N | AA14: 7
B15: 5 | C15: (a) | D15: ='M List'!L6 -> appreciate | E15: (b) | F15: ='M List'!M6 -> alacrity | G15: (c) | H15: ='M List'!N6 -> eagerness | I15: (d) | J15: ='M List'!O6 -> enthusiasm | N15: ='M List'!H6 -> appreciate | W15: 8 | X15: SAT | Y15: I | AA15: 8
W16: 9 | X16: AWL | Y16: S | AA16: 9
B17: 6 | C17: (a) | D17: ='M List'!L7 -> make easy | E17: (b) | F17: ='M List'!M7 -> ease | G17: (c) | H17: ='M List'!N7 -> impede | I17: (d) | J17: ='M List'!O7 -> facilitate | N17: ='M List'!H7 -> impede | AA17: 10
X18: Sem | Y18: 1 | AA18: 11
B19: 7 | C19: (a) | D19: ='M List'!L8 -> demolish | E19: (b) | F19: ='M List'!M8 -> render | G19: (c) | H19: ='M List'!N8 -> cause to be | I19: (d) | J19: ='M List'!O8 -> make | N19: ='M List'!H8 -> demolish | Y19: 2 | AA19: 12
AA20: 13
B21: 8 | C21: (a) | D21: ='M List'!L9 -> define | E21: (b) | F21: ='M List'!M9 -> allude | G21: (c) | H21: ='M List'!N9 -> imply | I21: (d) | J21: ='M List'!O9 -> insinuate | N21: ='M List'!H9 -> define | AA21: 14
AA22: 15
B23: 9 | C23: (a) | D23: ='M List'!L10 -> sink | E23: (b) | F23: ='M List'!M10 -> buoyant | G23: (c) | H23: ='M List'!N10 -> floating | I23: (d) | J23: ='M List'!O10 -> afloat | N23: ='M List'!H10 -> sink | AA23: 16
AA24: 17
B25: 10 | C25: (a) | D25: ='M List'!L11 -> skeptical | E25: (b) | F25: ='M List'!M11 -> cynical | G25: (c) | H25: ='M List'!N11 -> disbelieving | I25: (d) | J25: ='M List'!O11 -> sure | N25: ='M List'!H11 -> sure | AA25: 18
AA26: 19
B27: 11 | C27: (a) | D27: ='M List'!L12 -> astonish | E27: (b) | F27: ='M List'!M12 -> confuse | G27: (c) | H27: ='M List'!N12 -> inform | I27: (d) | J27: ='M List'!O12 -> perplex | N27: ='M List'!H12 -> inform | AA27: 20
B29: 12 | C29: (a) | D29: ='M List'!L13 -> dramatics | E29: (b) | F29: ='M List'!M13 -> improvisation | G29: (c) | H29: ='M List'!N13 -> reality | I29: (d) | J29: ='M List'!O13 -> pantomime | N29: ='M List'!H13 -> reality
B31: 13 | C31: (a) | D31: ='M List'!L14 -> subdue | E31: (b) | F31: ='M List'!M14 -> restrain | G31: (c) | H31: ='M List'!N14 -> suppress | I31: (d) | J31: ='M List'!O14 -> fresh | N31: ='M List'!H14 -> fresh
B33: 14 | C33: (a) | D33: ='M List'!L15 -> inspiring | E33: (b) | F33: ='M List'!M15 -> inspirational | G33: (c) | H33: ='M List'!N15 -> sad | I33: (d) | J33: ='M List'!O15 -> transcendent | N33: ='M List'!H15 -> sad
B35: 15 | C35: (a) | D35: ='M List'!L16 -> main | E35: (b) | F35: ='M List'!M16 -> manager | G35: (c) | H35: ='M List'!N16 -> beginning | I35: (d) | J35: ='M List'!O16 -> linchpin | N35: ='M List'!H16 -> beginning
A38: Part 2 | C38: Word Groups
B39: 1 | C39: (a) | D39: ='M List'!L17 -> slow | E39: (b) | F39: ='M List'!M17 -> garish | G39: (c) | H39: ='M List'!N17 -> brash | I39: (d) | J39: ='M List'!O17 -> bright | N39: ='M List'!H17 -> slow
B41: 2 | C41: (a) | D41: ='M List'!L18 -> exile | E41: (b) | F41: ='M List'!M18 -> outsider | G41: (c) | H41: ='M List'!N18 -> native | I41: (d) | J41: ='M List'!O18 -> pariah | N41: ='M List'!H18 -> native
B43: 3 | C43: (a) | D43: ='M List'!L19 -> perquisite | E43: (b) | F43: ='M List'!M19 -> privilege | G43: (c) | H43: ='M List'!N19 -> gratuity | I43: (d) | J43: ='M List'!O19 -> disappear | N43: ='M List'!H19 -> disappear
B45: 4 | C45: (a) | D45: ='M List'!L20 -> steadfast | E45: (b) | F45: ='M List'!M20 -> unwavering | G45: (c) | H45: ='M List'!N20 -> unfaltering | I45: (d) | J45: ='M List'!O20 -> irresolute | N45: ='M List'!H20 -> irresolute
B47: 5 | C47: (a) | D47: ='M List'!L21 -> stick on | E47: (b) | F47: ='M List'!M21 -> withdraw | G47: (c) | H47: ='M List'!N21 -> adhere | I47: (d) | J47: ='M List'!O21 -> stick | N47: ='M List'!H21 -> withdraw
B49: 6 | C49: (a) | D49: ='M List'!L22 -> cater | E49: (b) | F49: ='M List'!M22 -> annoy | G49: (c) | H49: ='M List'!N22 -> pander | I49: (d) | J49: ='M List'!O22 -> indulge | N49: ='M List'!H22 -> annoy
B51: 7 | C51: (a) | D51: ='M List'!L23 -> misuse | E51: (b) | F51: ='M List'!M23 -> forbearance | G51: (c) | H51: ='M List'!N23 -> malapropism | I51: (d) | J51: ='M List'!O23 -> coarse | N51: ='M List'!H23 -> forbearance
B53: 8 | C53: (a) | D53: ='M List'!L24 -> casual | E53: (b) | F53: ='M List'!M24 -> audit | G53: (c) | H53: ='M List'!N24 -> review | I53: (d) | J53: ='M List'!O24 -> check | N53: ='M List'!H24 -> casual
B55: 9 | C55: (a) | D55: ='M List'!L25 -> improvident | E55: (b) | F55: ='M List'!M25 -> imprudent | G55: (c) | H55: ='M List'!N25 -> careless | I55: (d) | J55: ='M List'!O25 -> prudent | N55: ='M List'!H25 -> prudent
B57: 10 | C57: (a) | D57: ='M List'!L26 -> concerning | E57: (b) | F57: ='M List'!M26 -> sure | G57: (c) | H57: ='M List'!N26 -> apropos | I57: (d) | J57: ='M List'!O26 -> regarding | N57: ='M List'!H26 -> sure
B59: 11 | C59: (a) | D59: ='M List'!L27 -> aerodynamics | E59: (b) | F59: ='M List'!M27 -> submarine | G59: (c) | H59: ='M List'!N27 -> aviation | I59: (d) | J59: ='M List'!O27 -> aeronautics | N59: ='M List'!H27 -> submarine
B61: 12 | C61: (a) | D61: ='M List'!L28 -> nautical | E61: (b) | F61: ='M List'!M28 -> back | G61: (c) | H61: ='M List'!N28 -> marine | I61: (d) | J61: ='M List'!O28 -> maritime | N61: ='M List'!H28 -> back
B63: 13 | C63: (a) | D63: ='M List'!L29 -> regulation | E63: (b) | F63: ='M List'!M29 -> order | G63: (c) | H63: ='M List'!N29 -> request | I63: (d) | J63: ='M List'!O29 -> discipline | N63: ='M List'!H29 -> request
B65: 14 | C65: (a) | D65: ='M List'!L30 -> wealth | E65: (b) | F65: ='M List'!M30 -> affluence | G65: (c) | H65: ='M List'!N30 -> poverty | I65: (d) | J65: ='M List'!O30 -> prosperity | N65: ='M List'!H30 -> poverty
B67: 15 | C67: (a) | D67: ='M List'!L31 -> blossom | E67: (b) | F67: ='M List'!M31 -> bloom | G67: (c) | H67: ='M List'!N31 -> flower | I67: (d) | J67: ='M List'!O31 -> wither | N67: ='M List'!H31 -> wither

Sheet Syn.Worksheet
B1: Name: ___________________ | F1: Number: _______________ | I1: Class: _______________
A3: M | B3: 5 | C3: Synonyms - Find the ODD ONE OUT | H3: Week | I3: 18 | J3: Semester | K3: 1 | N3: Answers
B5: Part 1 | D5: Circle the word which does NOT belong to the synonym group on each line choices below:
B6: # | C6: Word Groups
B7: 1 | C7: (a) | D7: joy | E7: (b) | F7: remorse | G7: (c) | H7: regret | I7: (d) | J7: sorrow | N7: joy
B9: 2 | C9: (a) | D9: prose | E9: (b) | F9: assonance | G9: (c) | H9: verse | I9: (d) | J9: poetry | N9: prose
B11: 3 | C11: (a) | D11: slapstick | E11: (b) | F11: serious | G11: (c) | H11: buffoonery | I11: (d) | J11: comedy | N11: serious
B13: 4 | C13: (a) | D13: plow | E13: (b) | F13: infertile | G13: (c) | H13: arable | I13: (d) | J13: cultivate | N13: infertile
B15: 5 | C15: (a) | D15: enthusiasm | E15: (b) | F15: appreciate | G15: (c) | H15: alacrity | I15: (d) | J15: eagerness | N15: appreciate
B17: 6 | C17: (a) | D17: make easy | E17: (b) | F17: ease | G17: (c) | H17: impede | I17: (d) | J17: facilitate | N17: impede
B19: 7 | C19: (a) | D19: make | E19: (b) | F19: demolish | G19: (c) | H19: render | I19: (d) | J19: cause to be | N19: demolish
B21: 8 | C21: (a) | D21: allude | E21: (b) | F21: imply | G21: (c) | H21: insinuate | I21: (d) | J21: define | N21: define
B23: 9 | C23: (a) | D23: buoyant | E23: (b) | F23: floating | G23: (c) | H23: afloat | I23: (d) | J23: sink | N23: sink
B25: 10 | C25: (a) | D25: sure | E25: (b) | F25: skeptical | G25: (c) | H25: cynical | I25: (d) | J25: disbelieving | N25: sure
B27: 11 | C27: (a) | D27: inform | E27: (b) | F27: perplex | G27: (c) | H27: astonish | I27: (d) | J27: confuse | N27: inform
B29: 12 | C29: (a) | D29: reality | E29: (b) | F29: pantomime | G29: (c) | H29: dramatics | I29: (d) | J29: improvisation | N29: reality
B31: 13 | C31: (a) | D31: suppress | E31: (b) | F31: fresh | G31: (c) | H31: subdue | I31: (d) | J31: restrain | N31: fresh
B33: 14 | C33: (a) | D33: inspirational | E33: (b) | F33: sad | G33: (c) | H33: transcendent | I33: (d) | J33: inspiring | N33: sad
B35: 15 | C35: (a) | D35: manager | E35: (b) | F35: beginning | G35: (c) | H35: linchpin | I35: (d) | J35: main | N35: beginning
A38: Part 2 | C38: Word Groups
B39: 1 | C39: (a) | D39: brash | E39: (b) | F39: bright | G39: (c) | H39: slow | I39: (d) | J39: garish | N39: slow
B41: 2 | C41: (a) | D41: pariah | E41: (b) | F41: exile | G41: (c) | H41: outsider | I41: (d) | J41: native | N41: native
B43: 3 | C43: (a) | D43: gratuity | E43: (b) | F43: disappear | G43: (c) | H43: perquisite | I43: (d) | J43: privilege | N43: disappear
B45: 4 | C45: (a) | D45: steadfast | E45: (b) | F45: unwavering | G45: (c) | H45: unfaltering | I45: (d) | J45: irresolute | N45: irresolute
B47: 5 | C47: (a) | D47: adhere | E47: (b) | F47: stick | G47: (c) | H47: stick on | I47: (d) | J47: withdraw | N47: withdraw
B49: 6 | C49: (a) | D49: indulge | E49: (b) | F49: cater | G49: (c) | H49: annoy | I49: (d) | J49: pander | N49: annoy
B51: 7 | C51: (a) | D51: coarse | E51: (b) | F51: misuse | G51: (c) | H51: forbearance | I51: (d) | J51: malapropism | N51: forbearance
B53: 8 | C53: (a) | D53: casual | E53: (b) | F53: audit | G53: (c) | H53: review | I53: (d) | J53: check | N53: casual
B55: 9 | C55: (a) | D55: prudent | E55: (b) | F55: improvident | G55: (c) | H55: imprudent | I55: (d) | J55: careless | N55: prudent
B57: 10 | C57: (a) | D57: sure | E57: (b) | F57: apropos | G57: (c) | H57: regarding | I57: (d) | J57: concerning | N57: sure
B59: 11 | C59: (a) | D59: aerodynamics | E59: (b) | F59: submarine | G59: (c) | H59: aviation | I59: (d) | J59: aeronautics | N59: submarine
B61: 12 | C61: (a) | D61: marine | E61: (b) | F61: maritime | G61: (c) | H61: nautical | I61: (d) | J61: back | N61: back
B63: 13 | C63: (a) | D63: order | E63: (b) | F63: request | G63: (c) | H63: discipline | I63: (d) | J63: regulation | N63: request
B65: 14 | C65: (a) | D65: affluence | E65: (b) | F65: poverty | G65: (c) | H65: prosperity | I65: (d) | J65: wealth | N65: poverty
B67: 15 | C67: (a) | D67: bloom | E67: (b) | F67: flower | G67: (c) | H67: wither | I67: (d) | J67: blossom | N67: wither

Sheet Adj.Wksheet
C1: Name: ___________________ | F1: Number: _______________ | I1: Class: _______________
C3: Noun, Adjective, or Adverb? | G3: Set | H3: 7 | N3: Answers
B5: Part 1 | D5: Choose a word to complete the sentences below:
B6: # | C6: Thai Concept | D6: Sentence
B7: 1 | C7: =A_List!$J$2 -> การไม่สามารถเคลื่อน | D7: =A_List!$O$2 -> She sat ________, wondering what to do next. | Y7: Wks
B8: หรือ | C8: =A_List!$K$2 -> การไม่สามารถเคลื่อน | D8: (a) | E8: =A_List!$S$2 -> immobility | F8: (b) | G8: =A_List!$T$2 -> immobile | H8: (c) | I8: =A_List!$U$2 -> - | N8: =A_List!$N$2 -> immobile | U8: 1 | V8: Matthayom | Y8: 1
U9: 2 | Y9: 2
B10: 2 | C10: =A_List!$J$3 -> สติปัญญา | D10: =A_List!$O$3 -> It's the ________ of her writing and her smart wit that impresses me. | U10: 3 | Y10: 3
B11: หรือ | C11: =A_List!$K$3 -> ชาญฉลาด | D11: (a) | E11: =A_List!$S$3 -> intelligence | F11: (b) | G11: =A_List!$T$3 -> intelligent | H11: (c) | I11: =A_List!$U$3 -> intelligently | N11: =A_List!$N$3 -> intelligence | U11: 4 | Y11: 4
U12: 5 | Y12: 5
B13: 3 | C13: =A_List!$J$4 -> ข้างมาก | D13: =A_List!$O$4 -> Have you seen Chrissie's new leather jacket? It's ________ cool. | U13: 6 | Y13: 6
B14: หรือ | C14: =A_List!$K$4 -> สำคัญ | D14: (a) | E14: =A_List!$S$4 -> majority | F14: (b) | G14: =A_List!$T$4 -> major | H14: (c) | I14: =A_List!$U$4 -> majorly | N14: =A_List!$N$4 -> majorly | U14: 7 | V14: TOEFL | W14: N | Y14: 7
U15: 8 | V15: SAT | W15: I | Y15: 8
B16: 4 | C16: =A_List!$J$5 -> สำนักงาน | D16: =A_List!$O$5 -> The royal marriage will be ________ celebrated in Marrakesh for three days in mid-April. | U16: 9 | V16: AWL | W16: S | Y16: 9
B17: หรือ | C17: =A_List!$K$5 -> ที่ได้รับอนุญาตอย่างเป็นทางการ | D17: (a) | E17: =A_List!$S$5 -> office | F17: (b) | G17: =A_List!$T$5 -> officious | H17: (c) | I17: =A_List!$U$5 -> officially | N17: =A_List!$N$5 -> officially | Y17: 10
V18: Sem | W18: 1 | Y18: 11
B19: 5 | C19: =A_List!$J$6 -> การข่มขืน | D19: =A_List!$O$6 -> I'm shocked at these ________ high prices. | W19: 2 | Y19: 12
B20: หรือ | C20: =A_List!$K$6 -> อุกอาจ | D20: (a) | E20: =A_List!$S$6 -> outrage | F20: (b) | G20: =A_List!$T$6 -> outrageous | H20: (c) | I20: =A_List!$U$6 -> outrageously | N20: =A_List!$N$6 -> outrageously | Y20: 13
Y21: 14
B22: 6 | C22: =A_List!$J$7 -> ความไม่ชอบมาพากล | D22: =A_List!$O$7 -> The streets were ________ quiet for the time of day. | Y22: 15
B23: หรือ | C23: =A_List!$K$7 -> อย่างยิ่ง | D23: (a) | E23: =A_List!$S$7 -> peculiarity | F23: (b) | G23: =A_List!$T$7 -> peculiar | H23: (c) | I23: =A_List!$U$7 -> peculiarly | N23: =A_List!$N$7 -> peculiarly | Y23: 16
Y24: 17
B25: 7 | C25: =A_List!$J$8 -> การปฏิบัติ | D25: =A_List!$O$8 -> Some athletes take drugs to improve their ________. | Y25: 18
B26: หรือ | C26: =A_List!$K$8 -> การปฏิบัติ | D26: (a) | E26: =A_List!$S$8 -> performance | F26: (b) | G26: =A_List!$T$8 -> performing | H26: (c) | I26: =A_List!$U$8 -> - | N26: =A_List!$N$8 -> performance | Y26: 19
Y27: 20
B28: 8 | C28: =A_List!$J$9 -> ความเป็นไปได้ | D28: =A_List!$O$9 -> Is it ________ to buy tickets in advance?
B29: หรือ | C29: =A_List!$K$9 -> อาจจะ | D29: (a) | E29: =A_List!$S$9 -> possibility | F29: (b) | G29: =A_List!$T$9 -> possible | H29: (c) | I29: =A_List!$U$9 -> possibly | N29: =A_List!$N$9 -> possible
B31: 9 | C31: =A_List!$J$10 -> ความน่าจะเป็น | D31: =A_List!$O$10 -> The ________ of getting all the answers correct is about one in ten.
B32: หรือ | C32: =A_List!$K$10 -> อาจ | D32: (a) | E32: =A_List!$S$10 -> probability | F32: (b) | G32: =A_List!$T$10 -> probable | H32: (c) | I32: =A_List!$U$10 -> probably | N32: =A_List!$N$10 -> probability
B34: 10 | C34: =A_List!$J$11 -> ปัญหา | D34: =A_List!$O$11 -> 
B35: หรือ | C35: =A_List!$K$11 ->  | D35: (a) | E35: =A_List!$S$11 -> problem | F35: (b) | G35: =A_List!$T$11 -> problematic | H35: (c) | I35: =A_List!$U$11 -> problematically | N35: =A_List!$N$11 -> problematically
B38: Part 2
B39: # | C39: Thai Concept | D39: Sentence
B40: 1 | C40: =A_List!$J$12 -> ความชะล่าใจ | D40: =A_List!$O$12 -> He was found guilty of ________ driving.
B41: หรือ | C41: =A_List!$K$12 -> มุทะลุ | D41: (a) | E41: =A_List!$S$12 -> recklessness | F41: (b) | G41: =A_List!$T$12 -> reckless | H41: (c) | I41: =A_List!$U$12 -> recklessly | N41: =A_List!$N$12 -> reckless
B43: 2 | C43: =A_List!$J$13 -> คำแนะนำ | D43: =A_List!$O$13 -> I bought this computer on John's ________ that it was good.
B44: หรือ | C44: =A_List!$K$13 -> คำแนะนำ | D44: (a) | E44: =A_List!$S$13 -> recommendation | F44: (b) | G44: =A_List!$T$13 -> recommended | H44: (c) | I44: =A_List!$U$13 -> - | N44: =A_List!$N$13 -> recommendation
B46: 3 | C46: =A_List!$J$14 -> ความสม่ำเสมอ | D46: =A_List!$O$14 -> The competitors set off at ________ spaced intervals.
B47: หรือ | C47: =A_List!$K$14 -> สม่ำเสมอ | D47: (a) | E47: =A_List!$S$14 -> regularity | F47: (b) | G47: =A_List!$T$14 -> regular | H47: (c) | I47: =A_List!$U$14 -> regularly | N47: =A_List!$N$14 -> regularly
B49: 4 | C49: =A_List!$J$15 -> ความช้า | D49: =A_List!$O$15 -> He was far too ________ to catch me.
B50: หรือ | C50: =A_List!$K$15 -> ช้า | D50: (a) | E50: =A_List!$S$15 -> slowness | F50: (b) | G50: =A_List!$T$15 -> slow | H50: (c) | I50: =A_List!$U$15 -> slowly | N50: =A_List!$N$15 -> slow
B52: 5 | C52: =A_List!$J$16 -> ความเร็ว | D52: =A_List!$O$16 -> He was travelling at a ________ of 90 mph.
B53: หรือ | C53: =A_List!$K$16 -> รวดเร็ว | D53: (a) | E53: =A_List!$S$16 -> speed | F53: (b) | G53: =A_List!$T$16 -> speedy | H53: (c) | I53: =A_List!$U$16 -> speedily | N53: =A_List!$N$16 -> speed
B55: 6 | C55: =A_List!$J$17 -> สสาร | D55: =A_List!$O$17 -> In 1982 he was arrested and ________ convicted on drug trafficking charges.
B56: หรือ | C56: =A_List!$K$17 -> ต่อมา | D56: (a) | E56: =A_List!$S$17 -> substance | F56: (b) | G56: =A_List!$T$17 -> substantive | H56: (c) | I56: =A_List!$U$17 -> subsequently | N56: =A_List!$N$17 -> subsequently
B58: 7 | C58: =A_List!$J$18 -> ความจริง | D58: =A_List!$O$18 -> Is it ________ that Lucy and Mark are getting married?
B59: หรือ | C59: =A_List!$K$18 -> อย่างแท้จริง | D59: (a) | E59: =A_List!$S$18 -> truth | F59: (b) | G59: =A_List!$T$18 -> true | H59: (c) | I59: =A_List!$U$18 -> truly | N59: =A_List!$N$18 -> true
B61: 8 | C61: =A_List!$J$19 -> ชัยชนะ | D61: =A_List!$O$19 -> The ________ team were loudly cheered by their fans.
B62: หรือ | C62: =A_List!$K$19 -> ชัย | D62: (a) | E62: =A_List!$S$19 -> victory | F62: (b) | G62: =A_List!$T$19 -> victorious | H62: (c) | I62: =A_List!$U$19 -> victoriously | N62: =A_List!$N$19 -> victorious
B64: 9 | C64: =A_List!$J$20 -> สละราชสมบัติ | D64: =A_List!$O$20 -> Some parents ________ their responsibilities and expect the state to bring up children.
B65: หรือ | C65: =A_List!$K$20 -> สละราชสมบัติ | D65: (a) | E65: =A_List!$S$20 -> abdicate | F65: (b) | G65: =A_List!$T$20 -> addicted | H65: (c) | I65: =A_List!$U$20 -> - | N65: =A_List!$N$20 -> abdicate
B67: 10 | C67: =A_List!$J$21 -> ความได้เปรียบ | D67: =A_List!$O$21 -> The ________of booking tickets in advance is that you get better seats.
B68: หรือ | C68: =A_List!$K$21 -> เต็มกอบเต็มกำ | D68: (a) | E68: =A_List!$S$21 -> advantage | F68: (b) | G68: =A_List!$T$21 -> advantageous | H68: (c) | I68: =A_List!$U$21 -> advantageously | N68: =A_List!$N$21 -> advantage

Sheet Adj.Worksheet (hidden)
C1: Name: ___________________ | F1: Number: _______________ | I1: Class: _______________
C3: Noun, Adjective, or Adverb? | G3: Set | H3: 7 | N3: Answers
B5: Part 1 | D5: Choose a word to complete the sentences below:
B6: # | C6: Thai Concept | D6: Sentence
B7: 1 | C7: การไม่สามารถเคลื่อน | D7: ________ is a big problem because it stops people from being able to get around.
B8: หรือ | C8: การไม่สามารถเคลื่อน | D8: (a) | E8: immobile | F8: (b) | G8: - | H8: (c) | I8: immobility | N8: immobility
B10: 2 | C10: สติปัญญา | D10: He wrote highly ________ about a number of issues regarding human life.
B11: หรือ | C11: ชาญฉลาด | D11: (a) | E11: intelligence | F11: (b) | G11: intelligent | H11: (c) | I11: intelligently | N11: intelligently
B13: 3 | C13: ข้างมาก | D13: Have you seen Chrissie's new leather jacket? It's ________ cool.
B14: หรือ | C14: สำคัญ | D14: (a) | E14: majority | F14: (b) | G14: major | H14: (c) | I14: majorly | N14: majorly
B16: 4 | C16: สำนักงาน | D16: My dad didn't finish working at the ________ until 8pm last night.
B17: หรือ | C17: ที่ได้รับอนุญาตอย่างเป็นทางการ | D17: (a) | E17: office | F17: (b) | G17: officious | H17: (c) | I17: officially | N17: office
B19: 5 | C19: การข่มขืน | D19: The judge criticized the "________ greed" of some of the bankers.
B20: หรือ | C20: อุกอาจ | D20: (a) | E20: outrageous | F20: (b) | G20: outrageously | H20: (c) | I20: outrage | N20: outrageous
B22: 6 | C22: ความไม่ชอบมาพากล | D22: You couldn't help but be aware of the ________ of the situation.
B23: หรือ | C23: อย่างยิ่ง | D23: (a) | E23: peculiar | F23: (b) | G23: peculiarly | H23: (c) | I23: peculiarity | N23: peculiarity
B25: 7 | C25: การปฏิบัติ | D25: Some athletes take drugs to improve their ________.
B26: หรือ | C26: การปฏิบัติ | D26: (a) | E26: performing | F26: (b) | G26: - | H26: (c) | I26: performance | N26: performance
B28: 8 | C28: ความเป็นไปได้ | D28: I felt like a newly discovered species of plant; strange, exotic and ________ poisonous.
B29: หรือ | C29: อาจจะ | D29: (a) | E29: possibility | F29: (b) | G29: possible | H29: (c) | I29: possibly | N29: possibly
B31: 9 | C31: ความน่าจะเป็น | D31: Don't stay up and wait because I’ll ________ be home after midnight.
B32: หรือ | C32: อาจ | D32: (a) | E32: probability | F32: (b) | G32: probable | H32: (c) | I32: probably | N32: probably
B34: 10 | C34: ปัญหา | D34: Peter is sick. He has a serious health ________.
B35: หรือ | D35: (a) | E35: problematic | F35: (b) | G35: problematically | H35: (c) | I35: problem | N35: problem
B38: Part 2
B39: # | C39: Thai Concept | D39: Sentence
B40: 1 | C40: ความชะล่าใจ | D40: If he had money he was generous to the point of ________.
B41: หรือ | C41: มุทะลุ | D41: (a) | E41: recklessness | F41: (b) | G41: reckless | H41: (c) | I41: recklessly | N41: recklessness
B43: 2 | C43: คำแนะนำ | D43: I bought this computer on John's ________ that it was good.
B44: หรือ | C44: คำแนะนำ | D44: (a) | E44: recommended | F44: (b) | G44: - | H44: (c) | I44: recommendation | N44: recommendation
B46: 3 | C46: ความสม่ำเสมอ | D46: Top footballers make ________ appearances on TV.
B47: หรือ | C47: สม่ำเสมอ | D47: (a) | E47: regularity | F47: (b) | G47: regular | H47: (c) | I47: regularly | N47: regular
B49: 4 | C49: ความช้า | D49: He was far too ________ to catch me.
B50: หรือ | C50: ช้า | D50: (a) | E50: slow | F50: (b) | G50: slowly | H50: (c) | I50: slowness | N50: slow
B52: 5 | C52: ความเร็ว | D52: Everyone is hoping for a ________ end to the conflict.
B53: หรือ | C53: รวดเร็ว | D53: (a) | E53: speedy | F53: (b) | G53: speedily | H53: (c) | I53: speed | N53: speedy
B55: 6 | C55: สสาร | D55: What ________ could withstand those temperatures?
B56: หรือ | C56: ต่อมา | D56: (a) | E56: substance | F56: (b) | G56: substantive | H56: (c) | I56: subsequently | N56: substance
B58: 7 | C58: ความจริง | D58: This is a ________ remarkable achievement.
B59: หรือ | C59: อย่างแท้จริง | D59: (a) | E59: truth | F59: (b) | G59: true | H59: (c) | I59: truly | N59: truly
B61: 8 | C61: ชัยชนะ | D61: The ________ team were loudly cheered by their fans.
B62: หรือ | C62: ชัย | D62: (a) | E62: victory | F62: (b) | G62: victorious | H62: (c) | I62: victoriously | N62: victorious
B64: 9 | C64: สละราชสมบัติ | D64: Some parents ________ their responsibilities and expect the state to bring up children.
B65: หรือ | C65: สละราชสมบัติ | D65: (a) | E65: addicted | F65: (b) | G65: - | H65: (c) | I65: abdicate | N65: abdicate
B67: 10 | C67: ความได้เปรียบ | D67: The lower tax rate is particularly ________ to poorer families.
B68: หรือ | C68: เต็มกอบเต็มกำ | D68: (a) | E68: advantageous | F68: (b) | G68: advantageously | H68: (c) | I68: advantage | N68: advantageous

Sheet Adj (hidden)
A1: M | B1: Noun | E1: M | F1: Adjective | I1: M | J1: Adv or Verb
A2: =IFERROR(INDEX('2013 WordList'!$B:$B,MATCH(B2,'2013 WordList'!$H:$H,0),1),"") -> 0 | B2: discretion | E2: =IFERROR(INDEX('2013 WordList'!$B:$B,MATCH(F2,'2013 WordList'!$H:$H,0),1),"") -> 4 | F2: discreet | I2: =IFERROR(INDEX('2013 WordList'!$B:$B,MATCH(J2,'2013 WordList'!$H:$H,0),1),"") -> 5 | J2: discreetly
A3: 1 | B3: advance | E3: 3 | F3: advanced | J3: -
A4: 1 | B4: age | E4: 2 | F4: aged | J4: -
A5: 1 | B5: attractiveness | E5: 4 | F5: attractive | I5: 1 | J5: attractively
A6: =IFERROR(INDEX('2013 WordList'!$B:$B,MATCH(B6,'2013 WordList'!$H:$H,0),1),"") -> 1 | B6: awkwardness | E6: =IFERROR(INDEX('2013 WordList'!$B:$B,MATCH(F6,'2013 WordList'!$H:$H,0),1),"") -> 3 | F6: awkward | I6: =IFERROR(INDEX('2013 WordList'!$B:$B,MATCH(J6,'2013 WordList'!$H:$H,0),1),"") -> 4 | J6: awkwardly
A7: 1 | B7: balance | E7: 3 | F7: balanced | J7: -
A8: 1 | B8: boldness | E8: 3 | F8: bold | I8: 1 | J8: boldly
A9: 1 | B9: boring | E9: 1 | F9: bored | J9: -
A10: =IFERROR(INDEX('2013 WordList'!$B:$B,MATCH(B10,'2013 WordList'!$H:$H,0),1),"") -> 1 | B10: class | E10: =IFERROR(INDEX('2013 WordList'!$B:$B,MATCH(F10,'2013 WordList'!$H:$H,0),1),"") -> 3 | F10: classical | I10: =IFERROR(INDEX('2013 WordList'!$B:$B,MATCH(J10,'2013 WordList'!$H:$H,0),1),"") -> 3 | J10: classically
A11: 1 | B11: colour | E11: 2 | F11: colourful | I11: 1 | J11: colourfully
A12: =IFERROR(INDEX('2013 WordList'!$B:$B,MATCH(B12,'2013 WordList'!$H:$H,0),1),"") -> 1 | B12: contents | E12: =IFERROR(INDEX('2013 WordList'!$B:$B,MATCH(F12,'2013 WordList'!$H:$H,0),1),"") -> 1 | F12: contented | I12: =IFERROR(INDEX('2013 WordList'!$B:$B,MATCH(J12,'2013 WordList'!$H:$H,0),1),"") -> 5 | J12: contentedly
A13: =IFERROR(INDEX('2013 WordList'!$B:$B,MATCH(B13,'2013 WordList'!$H:$H,0),1),"") -> 1 | B13: correct | E13: =IFERROR(INDEX('2013 WordList'!$B:$B,MATCH(F13,'2013 WordList'!$H:$H,0),1),"") -> 1 | F13: correct | I13: =IFERROR(INDEX('2013 WordList'!$B:$B,MATCH(J13,'2013 WordList'!$H:$H,0),1),"") -> 1 | J13: correctly
A14: 1 | B14: creativity | E14: 1 | F14: creative | I14: 1 | J14: creatively
A15: 1 | B15: day | E15: 1 | F15: daily | I15: 1 | J15: daily
A16: 1 | B16: decision | E16: 4 | F16: decided | I16: 4 | J16: decidedly
A17: 1 | B17: decisiveness | E17: 2 | F17: decisive | I17: 5 | J17: decisively
A18: =IFERROR(INDEX('2013 WordList'!$B:$B,MATCH(B18,'2013 WordList'!$H:$H,0),1),"") -> 1 | B18: extra | E18: =IFERROR(INDEX('2013 WordList'!$B:$B,MATCH(F18,'2013 WordList'!$H:$H,0),1),"") -> 3 | F18: extraordinary | I18: =IFERROR(INDEX('2013 WordList'!$B:$B,MATCH(J18,'2013 WordList'!$H:$H,0),1),"") -> 3 | J18: extraordinarily
A19: 1 | B19: fashion | E19: 1 | F19: fashionable | I19: 1 | J19: fashionably
A20: =IFERROR(INDEX('2013 WordList'!$B:$B,MATCH(B20,'2013 WordList'!$H:$H,0),1),"") -> 1 | B20: form | E20: =IFERROR(INDEX('2013 WordList'!$B:$B,MATCH(F20,'2013 WordList'!$H:$H,0),1),"") -> 6 | F20: formidable | I20: =IFERROR(INDEX('2013 WordList'!$B:$B,MATCH(J20,'2013 WordList'!$H:$H,0),1),"") ->  | J20: - | L20: formidably
A21: 1 | B21: fun | E21: 1 | F21: funny | I21: 1 | J21: funnily
A22: 1 | B22: generosity | E22: 3 | F22: generous | I22: 3 | J22: generously
A23: 1 | B23: health | E23: 1 | F23: healthy | I23: 1 | J23: healthily
A24: =IFERROR(INDEX('2013 WordList'!$B:$B,MATCH(B24,'2013 WordList'!$H:$H,0),1),"") -> 1 | B24: hesitation | E24: =IFERROR(INDEX('2013 WordList'!$B:$B,MATCH(F24,'2013 WordList'!$H:$H,0),1),"") -> 6 | F24: hesitant | I24: =IFERROR(INDEX('2013 WordList'!$B:$B,MATCH(J24,'2013 WordList'!$H:$H,0),1),"") -> 6 | J24: hesitantly
A25: 1 | B25: identity | E25: 1 | F25: identical | I25: 1 | J25: identically
A26: =IFERROR(INDEX('2013 WordList'!$B:$B,MATCH(B26,'2013 WordList'!$H:$H,0),1),"") -> 1 | B26: interest | E26: =IFERROR(INDEX('2013 WordList'!$B:$B,MATCH(F26,'2013 WordList'!$H:$H,0),1),"") -> 1 | F26: interesting | I26: =IFERROR(INDEX('2013 WordList'!$B:$B,MATCH(J26,'2013 WordList'!$H:$H,0),1),"") -> 3 | J26: interestingly
A27: 1 | B27: juice | E27: 2 | F27: juicy | J27: -
A28: =IFERROR(INDEX('2013 WordList'!$B:$B,MATCH(B28,'2013 WordList'!$H:$H,0),1),"") -> 1 | B28: last | E28: =IFERROR(INDEX('2013 WordList'!$B:$B,MATCH(F28,'2013 WordList'!$H:$H,0),1),"") -> 2 | F28: lasting | I28: =IFERROR(INDEX('2013 WordList'!$B:$B,MATCH(J28,'2013 WordList'!$H:$H,0),1),"") -> 6 | J28: lastingly
A29: 1 | B29: luck | E29: 1 | F29: lucky | I29: 1 | J29: luckily
A30: 1 | B30: marvel | E30: 1 | F30: marvellous | I30: 1 | J30: marvellously
A31: 1 | B31: misery | E31: 2 | F31: miserable | I31: 2 | J31: miserably
A32: 1 | B32: opportunity | E32: 5 | F32: opportune | I32: 5 | J32: opportunely
A33: 1 | B33: pain | E33: 4 | F33: painful | I33: 1 | J33: painfully
A34: =IFERROR(INDEX('2013 WordList'!$B:$B,MATCH(B34,'2013 WordList'!$H:$H,0),1),"") -> 1 | B34: part | E34: =IFERROR(INDEX('2013 WordList'!$B:$B,MATCH(F34,'2013 WordList'!$H:$H,0),1),"") -> 3 | F34: partial | I34: =IFERROR(INDEX('2013 WordList'!$B:$B,MATCH(J34,'2013 WordList'!$H:$H,0),1),"") -> 3 | J34: partially
A35: =IFERROR(INDEX('2013 WordList'!$B:$B,MATCH(B35,'2013 WordList'!$H:$H,0),1),"") -> 1 | B35: right | E35: =IFERROR(INDEX('2013 WordList'!$B:$B,MATCH(F35,'2013 WordList'!$H:$H,0),1),"") -> 4 | F35: righteous | I35: =IFERROR(INDEX('2013 WordList'!$B:$B,MATCH(J35,'2013 WordList'!$H:$H,0),1),"") -> 3 | J35: rightly
A36: =IFERROR(INDEX('2013 WordList'!$B:$B,MATCH(B36,'2013 WordList'!$H:$H,0),1),"") -> 1 | B36: right | E36: =IFERROR(INDEX('2013 WordList'!$B:$B,MATCH(F36,'2013 WordList'!$H:$H,0),1),"") -> 4 | F36: righteous | I36: =IFERROR(INDEX('2013 WordList'!$B:$B,MATCH(J36,'2013 WordList'!$H:$H,0),1),"") -> 6 | J36: rightfully
A37: 1 | B37: sensitivity | E37: 1 | F37: sensitive | I37: 1 | J37: sensitively
A38: 1 | B38: stupidity | E38: 2 | F38: stupid | I38: 2 | J38: stupidly
A39: 1 | B39: talk | E39: 1 | F39: talkative | J39: -
A40: 1 | B40: warmth | E40: 1 | F40: warm | I40: 1 | J40: warmly
A41: =IFERROR(INDEX('2013 WordList'!$B:$B,MATCH(B41,'2013 WordList'!$H:$H,0),1),"") -> 1 | B41: watch | E41: =IFERROR(INDEX('2013 WordList'!$B:$B,MATCH(F41,'2013 WordList'!$H:$H,0),1),"") -> 2 | F41: watchful | I41: =IFERROR(INDEX('2013 WordList'!$B:$B,MATCH(J41,'2013 WordList'!$H:$H,0),1),"") -> 3 | J41: watchfully
A42: 2 | B42: activity | E42: 2 | F42: active | I42: 2 | J42: actively
A43: 2 | B43: amaze | E43: 2 | F43: amazing | I43: 2 | J43: amazingly
A44: 2 | B44: amazement | E44: 2 | F44: amazed | I44: 2 | J44: amazingly
A45: 2 | B45: anger | E45: 1 | F45: angry | I45: 1 | J45: angrily
A46: 2 | B46: annoyance | E46: 2 | F46: annoying | I46: 2 | J46: annoyingly
A47: 2 | B47: art | E47: 4 | F47: artistic | I47: 4 | J47: artistically
A48: 2 | B48: beauty | E48: 2 | F48: beautiful | I48: 2 | J48: beautifully
A49: =IFERROR(INDEX('2013 WordList'!$B:$B,MATCH(B49,'2013 WordList'!$H:$H,0),1),"") -> 2 | B49: care | E49: =IFERROR(INDEX('2013 WordList'!$B:$B,MATCH(F49,'2013 WordList'!$H:$H,0),1),"") -> 5 | F49: carefree | I49: =IFERROR(INDEX('2013 WordList'!$B:$B,MATCH(J49,'2013 WordList'!$H:$H,0),1),"") -> 2 | J49: carefully
A50: 2 | B50: casualness | E50: 4 | F50: casual | I50: 2 | J50: casually
A51: =IFERROR(INDEX('2013 WordList'!$B:$B,MATCH(B51,'2013 WordList'!$H:$H,0),1),"") -> 2 | B51: caution | E51: =IFERROR(INDEX('2013 WordList'!$B:$B,MATCH(F51,'2013 WordList'!$H:$H,0),1),"") -> 6 | F51: cautious | I51: =IFERROR(INDEX('2013 WordList'!$B:$B,MATCH(J51,'2013 WordList'!$H:$H,0),1),"") -> 3 | J51: cautiously
A52: =IFERROR(INDEX('2013 WordList'!$B:$B,MATCH(B52,'2013 WordList'!$H:$H,0),1),"") -> 2 | B52: clumsiness | E52: =IFERROR(INDEX('2013 WordList'!$B:$B,MATCH(F52,'2013 WordList'!$H:$H,0),1),"") -> 6 | F52: clumsy | I52: =IFERROR(INDEX('2013 WordList'!$B:$B,MATCH(J52,'2013 WordList'!$H:$H,0),1),"") -> 2 | J52: clumsily
A53: 2 | B53: comfort | E53: 3 | F53: comfortable | I53: 6 | J53: comfortably
A54: =IFERROR(INDEX('2013 WordList'!$B:$B,MATCH(B54,'2013 WordList'!$H:$H,0),1),"") -> 2 | B54: commend | E54: =IFERROR(INDEX('2013 WordList'!$B:$B,MATCH(F54,'2013 WordList'!$H:$H,0),1),"") -> 4 | F54: commendable | I54: =IFERROR(INDEX('2013 WordList'!$B:$B,MATCH(J54,'2013 WordList'!$H:$H,0),1),"") -> 6 | J54: commendably
A55: =IFERROR(INDEX('2013 WordList'!$B:$B,MATCH(B55,'2013 WordList'!$H:$H,0),1),"") -> 2 | B55: competence | E55: =IFERROR(INDEX('2013 WordList'!$B:$B,MATCH(F55,'2013 WordList'!$H:$H,0),1),"") -> 3 | F55: competent | I55: =IFERROR(INDEX('2013 WordList'!$B:$B,MATCH(J55,'2013 WordList'!$H:$H,0),1),"") -> 5 | J55: competently
A56: =IFERROR(INDEX('2013 WordList'!$B:$B,MATCH(B56,'2013 WordList'!$H:$H,0),1),"") -> 2 | B56: corrupt | E56: =IFERROR(INDEX('2013 WordList'!$B:$B,MATCH(F56,'2013 WordList'!$H:$H,0),1),"") -> 2 | F56: corrupt | I56: =IFERROR(INDEX('2013 WordList'!$B:$B,MATCH(J56,'2013 WordList'!$H:$H,0),1),"") ->  | J56: corruptly
A57: 2 | B57: craziness | E57: 2 | F57: crazy | I57: 2 | J57: crazily
A58: =IFERROR(INDEX('2013 WordList'!$B:$B,MATCH(B58,'2013 WordList'!$H:$H,0),1),"") -> 2 | B58: difference | E58: =IFERROR(INDEX('2013 WordList'!$B:$B,MATCH(F58,'2013 WordList'!$H:$H,0),1),"") -> 4 | F58: different | I58: =IFERROR(INDEX('2013 WordList'!$B:$B,MATCH(J58,'2013 WordList'!$H:$H,0),1),"") -> 1 | J58: differently
A59: =IFERROR(INDEX('2013 WordList'!$B:$B,MATCH(B59,'2013 WordList'!$H:$H,0),1),"") -> 2 | B59: disaster | E59: =IFERROR(INDEX('2013 WordList'!$B:$B,MATCH(F59,'2013 WordList'!$H:$H,0),1),"") ->  | F59: disasterous | I59: =IFERROR(INDEX('2013 WordList'!$B:$B,MATCH(J59,'2013 WordList'!$H:$H,0),1),"") ->  | J59: disasterously
A60: 2 | B60: disaster | E60: 2 | F60: disastrous | I60: 2 | J60: disastrously
A61: =IFERROR(INDEX('2013 WordList'!$B:$B,MATCH(B61,'2013 WordList'!$H:$H,0),1),"") -> 2 | B61: distrust | E61: =IFERROR(INDEX('2013 WordList'!$B:$B,MATCH(F61,'2013 WordList'!$H:$H,0),1),"") -> 6 | F61: distrustful | I61: =IFERROR(INDEX('2013 WordList'!$B:$B,MATCH(J61,'2013 WordList'!$H:$H,0),1),"") ->  | J61: distrustfully
A62: 2 | B62: ease | E62: 2 | F62: easy | I62: 2 | J62: easily
A63: =IFERROR(INDEX('2013 WordList'!$B:$B,MATCH(B63,'2013 WordList'!$H:$H,0),1),"") -> 2 | B63: evidence | E63: =IFERROR(INDEX('2013 WordList'!$B:$B,MATCH(F63,'2013 WordList'!$H:$H,0),1),"") -> 6 | F63: evident | I63: =IFERROR(INDEX('2013 WordList'!$B:$B,MATCH(J63,'2013 WordList'!$H:$H,0),1),"") -> 6 | J63: evidently
A64: 2 | B64: exactness | E64: 2 | F64: exact | I64: 1 | J64: exactly
A65: =IFERROR(INDEX('2013 WordList'!$B:$B,MATCH(B65,'2013 WordList'!$H:$H,0),1),"") -> 2 | B65: extrovert | E65: =IFERROR(INDEX('2013 WordList'!$B:$B,MATCH(F65,'2013 WordList'!$H:$H,0),1),"") ->  | F65: - | I65: =IFERROR(INDEX('2013 WordList'!$B:$B,MATCH(J65,'2013 WordList'!$H:$H,0),1),"") ->  | J65: extrovertly
A66: =IFERROR(INDEX('2013 WordList'!$B:$B,MATCH(B66,'2013 WordList'!$H:$H,0),1),"") -> 2 | B66: favour | E66: =IFERROR(INDEX('2013 WordList'!$B:$B,MATCH(F66,'2013 WordList'!$H:$H,0),1),"") -> 1 | F66: favourite | I66: =IFERROR(INDEX('2013 WordList'!$B:$B,MATCH(J66,'2013 WordList'!$H:$H,0),1),"") -> 4 | J66: favourably
A67: =IFERROR(INDEX('2013 WordList'!$B:$B,MATCH(B67,'2013 WordList'!$H:$H,0),1),"") -> 2 | B67: final | E67: =IFERROR(INDEX('2013 WordList'!$B:$B,MATCH(F67,'2013 WordList'!$H:$H,0),1),"") -> 2 | F67: final | I67: =IFERROR(INDEX('2013 WordList'!$B:$B,MATCH(J67,'2013 WordList'!$H:$H,0),1),"") -> 1 | J67: finally
A68: 2 | B68: grief | E68: 2 | F68: grievous | I68: 2 | J68: grievously
A69: 2 | B69: guilt | E69: 5 | F69: guilty | I69: 3 | J69: guiltily
A70: 2 | B70: hospitality | E70: 2 | F70: hospitable | I70: 2 | J70: hospitably
A71: 2 | B71: humidity | E71: 2 | F71: humid | J71: -
A72: 2 | B72: importance | E72: 3 | F72: important | I72: 3 | J72: importantly
A73: 2 | B73: improvement | E73: 2 | F73: improvable | J73: -
A74: =IFERROR(INDEX('2013 WordList'!$B:$B,MATCH(B74,'2013 WordList'!$H:$H,0),1),"") -> 2 | B74: individual | E74: =IFERROR(INDEX('2013 WordList'!$B:$B,MATCH(F74,'2013 WordList'!$H:$H,0),1),"") ->  | F74: - | I74: =IFERROR(INDEX('2013 WordList'!$B:$B,MATCH(J74,'2013 WordList'!$H:$H,0),1),"") -> 1 | J74: individually
A75: 2 | B75: kindness | E75: 2 | F75: kind | I75: 2 | J75: kindly
A76: 2 | B76: likelihood | E76: 2 | F76: likely | I76: 2 | J76: likely
A77: 2 | B77: mystery | E77: 3 | F77: mysterious | I77: 3 | J77: mysteriously
A78: 2 | B78: nature | E78: 2 | F78: natural | I78: 2 | J78: naturally
A79: 2 | B79: notice | E79: 2 | F79: noticeable | I79: 2 | J79: noticeably
A80: =IFERROR(INDEX('2013 WordList'!$B:$B,MATCH(B80,'2013 WordList'!$H:$H,0),1),"") -> 2 | B80: obedience | E80: =IFERROR(INDEX('2013 WordList'!$B:$B,MATCH(F80,'2013 WordList'!$H:$H,0),1),"") -> 1 | F80: obedient | I80: =IFERROR(INDEX('2013 WordList'!$B:$B,MATCH(J80,'2013 WordList'!$H:$H,0),1),"") -> 4 | J80: obediently
A81: 2 | B81: patience | E81: 2 | F81: patient | I81: 2 | J81: patiently
A82: 2 | B82: perfection | E82: 5 | F82: perfect | I82: 2 | J82: perfectly
A83: 2 | B83: pity | E83: 5 | F83: piteous | I83: 5 | J83: piteously
A84: =IFERROR(INDEX('2013 WordList'!$B:$B,MATCH(B84,'2013 WordList'!$H:$H,0),1),"") -> 2 | B84: pleasure | E84: =IFERROR(INDEX('2013 WordList'!$B:$B,MATCH(F84,'2013 WordList'!$H:$H,0),1),"") -> 5 | F84: pleasant | I84: =IFERROR(INDEX('2013 WordList'!$B:$B,MATCH(J84,'2013 WordList'!$H:$H,0),1),"") -> 3 | J84: pleasantly
A85: 2 | B85: power | E85: 3 | F85: powerful | I85: 3 | J85: powerfully
A86: 2 | B86: productivity | E86: 2 | F86: productive | I86: 2 | J86: productively
A87: 2 | B87: protection | E87: 4 | F87: protective | I87: 4 | J87: protectively
A88: 2 | B88: publicity | E88: 2 | F88: public | I88: 2 | J88: publicly
A89: 2 | B89: question | E89: 2 | F89: questionable | I89: 2 | J89: questionably
A90: 2 | B90: reliability | E90: 2 | F90: reliable | I90: 2 | J90: reliably
A91: 2 | B91: responsibility | E91: 2 | F91: responsible | I91: 2 | J91: responsibly
A92: 2 | B92: romance | E92: 2 | F92: romantic | I92: 2 | J92: romantically
A93: 2 | B93: satisfaction | E93: 1 | F93: satisfactory | I93: 1 | J93: satisfactorily
A94: 2 | B94: security | E94: 6 | F94: secure | I94: 6 | J94: securely
A95: 2 | B95: sensibility | E95: 2 | F95: sensible | I95: 2 | J95: sensibly
A96: 2 | B96: significance | E96: 6 | F96: significant | I96: 6 | J96: significantly
A97: 2 | B97: success | E97: 1 | F97: successful | I97: 5 | J97: successfully
A98: 2 | B98: teacher | E98: 2 | F98: teaching | J98: -
A99: 2 | B99: thrill | E99: 2 | F99: thrilled | J99: -
A100: 2 | B100: ugliness | E100: 2 | F100: ugly | I100: 2 | J100: ugly
A101: =IFERROR(INDEX('2013 WordList'!$B:$B,MATCH(B101,'2013 WordList'!$H:$H,0),1),"") -> 2 | B101: unpleasantness | E101: =IFERROR(INDEX('2013 WordList'!$B:$B,MATCH(F101,'2013 WordList'!$H:$H,0),1),"") -> 1 | F101: unpleasant | I101: =IFERROR(INDEX('2013 WordList'!$B:$B,MATCH(J101,'2013 WordList'!$H:$H,0),1),"") -> 2 | J101: unpleasantly
A102: =IFERROR(INDEX('2013 WordList'!$B:$B,MATCH(B102,'2013 WordList'!$H:$H,0),1),"") -> 2 | B102: wisdom | E102: =IFERROR(INDEX('2013 WordList'!$B:$B,MATCH(F102,'2013 WordList'!$H:$H,0),1),"") -> 3 | F102: wise | I102: =IFERROR(INDEX('2013 WordList'!$B:$B,MATCH(J102,'2013 WordList'!$H:$H,0),1),"") -> 2 | J102: wisely
A103: 2 | B103: wonder | E103: 2 | F103: wondrous | I103: 2 | J103: wondrously
A104: 2 | B104: youth | E104: 1 | F104: young | J104: -
A105: =IFERROR(INDEX('2013 WordList'!$B:$B,MATCH(B105,'2013 WordList'!$H:$H,0),1),"") -> 3 | B105: access | E105: =IFERROR(INDEX('2013 WordList'!$B:$B,MATCH(F105,'2013 WordList'!$H:$H,0),1),"") -> 4 | F105: inaccessible | I105: =IFERROR(INDEX('2013 WordList'!$B:$B,MATCH(J105,'2013 WordList'!$H:$H,0),1),"") -> 6 | J105: inaccurately
A106: 3 | B106: adventure | E106: 3 | F106: adventurous | I106: 3 | J106: adventurously
A107: =IFERROR(INDEX('2013 WordList'!$B:$B,MATCH(B107,'2013 WordList'!$H:$H,0),1),"") -> 3 | B107: ambition | E107: =IFERROR(INDEX('2013 WordList'!$B:$B,MATCH(F107,'2013 WordList'!$H:$H,0),1),"") -> 0 | F107: ambitious | I107: =IFERROR(INDEX('2013 WordList'!$B:$B,MATCH(J107,'2013 WordList'!$H:$H,0),1),"") ->  | J107: ambitiously
A108: 3 | B108: belief | E108: 3 | F108: believable | I108: 3 | J108: believably
A109: =IFERROR(INDEX('2013 WordList'!$B:$B,MATCH(B109,'2013 WordList'!$H:$H,0),1),"") -> 3 | B109: cleaner | E109: =IFERROR(INDEX('2013 WordList'!$B:$B,MATCH(F109,'2013 WordList'!$H:$H,0),1),"") -> 1 | F109: clean | I109: =IFERROR(INDEX('2013 WordList'!$B:$B,MATCH(J109,'2013 WordList'!$H:$H,0),1),"") -> 1 | J109: clearly
A110: 3 | B110: commerce | E110: 3 | F110: commercial | I110: 3 | J110: commercially
A111: 3 | B111: convenience | E111: 3 | F111: convenient | I111: 3 | J111: conveniently
A112: 3 | B112: courage | E112: 5 | F112: courageous | I112: 3 | J112: courageously
A113: =IFERROR(INDEX('2013 WordList'!$B:$B,MATCH(B113,'2013 WordList'!$H:$H,0),1),"") -> 3 | B113: distance | E113: =IFERROR(INDEX('2013 WordList'!$B:$B,MATCH(F113,'2013 WordList'!$H:$H,0),1),"") -> 5 | F113: distant | I113: =IFERROR(INDEX('2013 WordList'!$B:$B,MATCH(J113,'2013 WordList'!$H:$H,0),1),"") -> 1 | J113: distantly
A114: =IFERROR(INDEX('2013 WordList'!$B:$B,MATCH(B114,'2013 WordList'!$H:$H,0),1),"") -> 3 | B114: doubt | E114: =IFERROR(INDEX('2013 WordList'!$B:$B,MATCH(F114,'2013 WordList'!$H:$H,0),1),"") -> 1 | F114: dubious | I114: =IFERROR(INDEX('2013 WordList'!$B:$B,MATCH(J114,'2013 WordList'!$H:$H,0),1),"") -> 2 | J114: doubtfully
A115: 3 | B115: equality | E115: 3 | F115: equal | I115: 3 | J115: equally
A116: 3 | B116: forgiveness | E116: 3 | F116: forgivable | J116: -
A117: 3 | B117: fortune | E117: 5 | F117: fortunate | I117: 3 | J117: fortunately
A118: =IFERROR(INDEX('2013 WordList'!$B:$B,MATCH(B118,'2013 WordList'!$H:$H,0),1),"") -> 3 | B118: harm | E118: =IFERROR(INDEX('2013 WordList'!$B:$B,MATCH(F118,'2013 WordList'!$H:$H,0),1),"") -> 1 | F118: harmful | I118: =IFERROR(INDEX('2013 WordList'!$B:$B,MATCH(J118,'2013 WordList'!$H:$H,0),1),"") ->  | J118: harmfully
A119: =IFERROR(INDEX('2013 WordList'!$B:$B,MATCH(B119,'2013 WordList'!$H:$H,0),1),"") -> 3 | B119: harm | E119: =IFERROR(INDEX('2013 WordList'!$B:$B,MATCH(F119,'2013 WordList'!$H:$H,0),1),"") -> 5 | F119: harmless | I119: =IFERROR(INDEX('2013 WordList'!$B:$B,MATCH(J119,'2013 WordList'!$H:$H,0),1),"") -> 0 | J119: harmlessly
A120: 3 | B120: height | E120: 3 | F120: heightened | J120: -
A121: =IFERROR(INDEX('2013 WordList'!$B:$B,MATCH(B121,'2013 WordList'!$H:$H,0),1),"") -> 3 | B121: immobility | E121: =IFERROR(INDEX('2013 WordList'!$B:$B,MATCH(F121,'2013 WordList'!$H:$H,0),1),"") -> 2 | F121: immobile | I121: =IFERROR(INDEX('2013 WordList'!$B:$B,MATCH(J121,'2013 WordList'!$H:$H,0),1),"") ->  | J121: -
A122: 3 | B122: intelligence | E122: 3 | F122: intelligent | I122: 3 | J122: intelligently
A123: 3 | B123: majority | E123: 2 | F123: major | I123: 2 | J123: majorly
A124: =IFERROR(INDEX('2013 WordList'!$B:$B,MATCH(B124,'2013 WordList'!$H:$H,0),1),"") -> 3 | B124: office | E124: =IFERROR(INDEX('2013 WordList'!$B:$B,MATCH(F124,'2013 WordList'!$H:$H,0),1),"") -> 5 | F124: officious | I124: =IFERROR(INDEX('2013 WordList'!$B:$B,MATCH(J124,'2013 WordList'!$H:$H,0),1),"") -> 2 | J124: officially
A125: 3 | B125: outrage | E125: 3 | F125: outrageous | I125: 3 | J125: outrageously
A126: 3 | B126: peculiarity | E126: 3 | F126: peculiar | I126: 3 | J126: peculiarly
A127: 3 | B127: performance | E127: 3 | F127: performing | J127: -
A128: 3 | B128: possibility | E128: 3 | F128: possible | I128: 2 | J128: possibly
A129: 3 | B129: probability | E129: 3 | F129: probable | I129: 3 | J129: probably
A130: =IFERROR(INDEX('2013 WordList'!$B:$B,MATCH(B130,'2013 WordList'!$H:$H,0),1),"") -> 3 | B130: problem | E130: =IFERROR(INDEX('2013 WordList'!$B:$B,MATCH(F130,'2013 WordList'!$H:$H,0),1),"") ->  | F130: problematic | I130: =IFERROR(INDEX('2013 WordList'!$B:$B,MATCH(J130,'2013 WordList'!$H:$H,0),1),"") ->  | J130: problematically
A131: =IFERROR(INDEX('2013 WordList'!$B:$B,MATCH(B131,'2013 WordList'!$H:$H,0),1),"") -> 3 | B131: recklessness | E131: =IFERROR(INDEX('2013 WordList'!$B:$B,MATCH(F131,'2013 WordList'!$H:$H,0),1),"") -> 3 | F131: reckless | I131: =IFERROR(INDEX('2013 WordList'!$B:$B,MATCH(J131,'2013 WordList'!$H:$H,0),1),"") -> 2 | J131: recklessly
A132: 3 | B132: recommendation | E132: 3 | F132: recommended | J132: -
A133: 3 | B133: regularity | E133: 3 | F133: regular | I133: 3 | J133: regularly
A134: =IFERROR(INDEX('2013 WordList'!$B:$B,MATCH(B134,'2013 WordList'!$H:$H,0),1),"") -> 3 | B134: slowness | E134: =IFERROR(INDEX('2013 WordList'!$B:$B,MATCH(F134,'2013 WordList'!$H:$H,0),1),"") -> 2 | F134: slow | I134: =IFERROR(INDEX('2013 WordList'!$B:$B,MATCH(J134,'2013 WordList'!$H:$H,0),1),"") -> 3 | J134: slowly
A135: 3 | B135: speed | E135: 3 | F135: speedy | I135: 3 | J135: speedily
A136: =IFERROR(INDEX('2013 WordList'!$B:$B,MATCH(B136,'2013 WordList'!$H:$H,0),1),"") -> 3 | B136: substance | E136: =IFERROR(INDEX('2013 WordList'!$B:$B,MATCH(F136,'2013 WordList'!$H:$H,0),1),"") -> 5 | F136: substantive | I136: =IFERROR(INDEX('2013 WordList'!$B:$B,MATCH(J136,'2013 WordList'!$H:$H,0),1),"") -> 3 | J136: subsequently
A137: 3 | B137: truth | E137: 1 | F137: true | I137: 2 | J137: truly
A138: 3 | B138: victory | E138: 3 | F138: victorious | I138: 3 | J138: victoriously
A139: 4 | B139: abdicate | E139: 2 | F139: addicted | J139: -
A140: 4 | B140: advantage | E140: 2 | F140: advantageous | I140: 4 | J140: advantageously
A141: 4 | B141: agreement | E141: 2 | F141: agreeable | I141: 2 | J141: agreeably
A142: =IFERROR(INDEX('2013 WordList'!$B:$B,MATCH(B142,'2013 WordList'!$H:$H,0),1),"") -> 4 | B142: apathy | E142: =IFERROR(INDEX('2013 WordList'!$B:$B,MATCH(F142,'2013 WordList'!$H:$H,0),1),"") -> 6 | F142: apathetic | I142: =IFERROR(INDEX('2013 WordList'!$B:$B,MATCH(J142,'2013 WordList'!$H:$H,0),1),"") -> 6 | J142: apathetically
A143: 4 | B143: behaviour | E143: 4 | F143: behaved | I143: 4 | J143: behavedly
A144: =IFERROR(INDEX('2013 WordList'!$B:$B,MATCH(B144,'2013 WordList'!$H:$H,0),1),"") -> 4 | B144: calmness | E144: =IFERROR(INDEX('2013 WordList'!$B:$B,MATCH(F144,'2013 WordList'!$H:$H,0),1),"") -> 5 | F144: calm | I144: =IFERROR(INDEX('2013 WordList'!$B:$B,MATCH(J144,'2013 WordList'!$H:$H,0),1),"") -> 2 | J144: calmly
A145: 4 | B145: creation | E145: 1 | F145: creative | I145: 1 | J145: creatively
A146: 4 | B146: criticism | E146: 4 | F146: critical | I146: 4 | J146: critically
A147: 4 | B147: curiosity | E147: 4 | F147: curious | I147: 4 | J147: curiously
A148: =IFERROR(INDEX('2013 WordList'!$B:$B,MATCH(B148,'2013 WordList'!$H:$H,0),1),"") -> 4 | B148: deficiency | E148: =IFERROR(INDEX('2013 WordList'!$B:$B,MATCH(F148,'2013 WordList'!$H:$H,0),1),"") -> 4 | F148: deficient | I148: =IFERROR(INDEX('2013 WordList'!$B:$B,MATCH(J148,'2013 WordList'!$H:$H,0),1),"") ->  | J148: deficiently
A149: 4 | B149: dispute | E149: 4 | F149: disputable | I149: 4 | J149: disputably
A150: 4 | B150: fatality | E150: 4 | F150: fatal | I150: 4 | J150: fatally
A151: =IFERROR(INDEX('2013 WordList'!$B:$B,MATCH(B151,'2013 WordList'!$H:$H,0),1),"") -> 4 | B151: frequency | E151: =IFERROR(INDEX('2013 WordList'!$B:$B,MATCH(F151,'2013 WordList'!$H:$H,0),1),"") -> 1 | F151: frequent | I151: =IFERROR(INDEX('2013 WordList'!$B:$B,MATCH(J151,'2013 WordList'!$H:$H,0),1),"") -> 1 | J151: frequently
A152: 4 | B152: friendliness | E152: 4 | F152: friendly | I152: 4 | J152: friendly
A153: 4 | B153: happiness | E153: 1 | F153: happy | I153: 2 | J153: happily
A154: 4 | B154: hazard | E154: 4 | F154: hazardous | J154: -
A155: 4 | B155: hilarity | E155: 4 | F155: hilarious | I155: 4 | J155: hilariously
A156: 4 | B156: imagination | E156: 4 | F156: imaginary | J156: -
A157: 4 | B157: inspiration | E157: 6 | F157: inspirational | I157: 6 | J157: inspirationally
A158: 4 | B158: intrigue | E158: 4 | F158: intriguing | I158: 4 | J158: intriguingly
A159: 4 | B159: irritation | E159: 6 | F159: irritable | I159: 4 | J159: irritably
A160: 4 | B160: justification | E160: 4 | F160: justified | I160: 2 | J160: justifiably
A161: 4 | B161: minority | E161: 6 | F161: minor | J161: -
A162: 4 | B162: mischief | E162: 4 | F162: mischievous | I162: 4 | J162: mischievously
A163: 4 | B163: necessity | E163: 2 | F163: necessary | I163: 2 | J163: necessarily
A164: =IFERROR(INDEX('2013 WordList'!$B:$B,MATCH(B164,'2013 WordList'!$H:$H,0),1),"") -> 4 | B164: lethargy | E164: =IFERROR(INDEX('2013 WordList'!$B:$B,MATCH(F164,'2013 WordList'!$H:$H,0),1),"") -> 6 | F164: lethargic | I164: =IFERROR(INDEX('2013 WordList'!$B:$B,MATCH(J164,'2013 WordList'!$H:$H,0),1),"") -> 5 | J164: lethargically
A165: 4 | B165: offence | F165: - | I165: 4 | J165: offensively | L165: offensive
A166: 4 | B166: plenty | E166: 6 | F166: plentiful | I166: 4 | J166: plentifully
A167: 4 | B167: politeness | E167: 2 | F167: polite | I167: 2 | J167: politely
A168: =IFERROR(INDEX('2013 WordList'!$B:$B,MATCH(B168,'2013 WordList'!$H:$H,0),1),"") -> 4 | B168: propensity | E168: =IFERROR(INDEX('2013 WordList'!$B:$B,MATCH(F168,'2013 WordList'!$H:$H,0),1),"") -> 6 | F168: proper | I168: =IFERROR(INDEX('2013 WordList'!$B:$B,MATCH(J168,'2013 WordList'!$H:$H,0),1),"") -> 2 | J168: properly
A169: 4 | B169: replacement | E169: 4 | F169: replaceable | J169: -
A170: 4 | B170: respectability | E170: 4 | F170: respectful | I170: 4 | J170: respectfully
A171: 4 | B171: similarity | E171: 6 | F171: similar | I171: 6 | J171: similarly
A172: 4 | B172: solubility | E172: 4 | F172: soluble | J172: -
A173: 4 | B173: speciality | E173: 4 | F173: special | I173: 4 | J173: specially
A174: =IFERROR(INDEX('2013 WordList'!$B:$B,MATCH(B174,'2013 WordList'!$H:$H,0),1),"") -> 4 | B174: temporal | E174: =IFERROR(INDEX('2013 WordList'!$B:$B,MATCH(F174,'2013 WordList'!$H:$H,0),1),"") -> 6 | F174: temporary | I174: =IFERROR(INDEX('2013 WordList'!$B:$B,MATCH(J174,'2013 WordList'!$H:$H,0),1),"") -> 1 | J174: temporarily
A175: 4 | B175: totality | E175: 4 | F175: total | I175: 4 | J175: totally
A176: 4 | B176: wealth | E176: 2 | F176: wealthy | J176: -
A177: 4 | B177: zeal | E177: 4 | F177: zealous | I177: 4 | J177: zealously
A178: 5 | B178: acceptability | E178: 2 | F178: acceptable | I178: 5 | J178: acceptably
A179: =IFERROR(INDEX('2013 WordList'!$B:$B,MATCH(B179,'2013 WordList'!$H:$H,0),1),"") -> 5 | B179: antagonism | E179: =IFERROR(INDEX('2013 WordList'!$B:$B,MATCH(F179,'2013 WordList'!$H:$H,0),1),"") -> 6 | F179: antagonistic | I179: =IFERROR(INDEX('2013 WordList'!$B:$B,MATCH(J179,'2013 WordList'!$H:$H,0),1),"") -> 6 | J179: antagonistically
A180: =IFERROR(INDEX('2013 WordList'!$B:$B,MATCH(B180,'2013 WordList'!$H:$H,0),1),"") -> 5 | B180: arrogance | E180: =IFERROR(INDEX('2013 WordList'!$B:$B,MATCH(F180,'2013 WordList'!$H:$H,0),1),"") -> 4 | F180: arrogant | I180: =IFERROR(INDEX('2013 WordList'!$B:$B,MATCH(J180,'2013 WordList'!$H:$H,0),1),"") -> 4 | J180: arrogantly
A181: 5 | B181: association | E181: 5 | F181: associate | I181: 5 | J181: associately
A182: =IFERROR(INDEX('2013 WordList'!$B:$B,MATCH(B182,'2013 WordList'!$H:$H,0),1),"") -> 5 | B182: bareness | E182: =IFERROR(INDEX('2013 WordList'!$B:$B,MATCH(F182,'2013 WordList'!$H:$H,0),1),"") -> 4 | F182: bare | I182: =IFERROR(INDEX('2013 WordList'!$B:$B,MATCH(J182,'2013 WordList'!$H:$H,0),1),"") -> 1 | J182: barely
A183: 5 | B183: beneficiary | E183: 5 | F183: beneficial | J183: -
A184: =IFERROR(INDEX('2013 WordList'!$B:$B,MATCH(B184,'2013 WordList'!$H:$H,0),1),"") -> 5 | B184: bore | E184: =IFERROR(INDEX('2013 WordList'!$B:$B,MATCH(F184,'2013 WordList'!$H:$H,0),1),"") -> 1 | F184: boring | I184: =IFERROR(INDEX('2013 WordList'!$B:$B,MATCH(J184,'2013 WordList'!$H:$H,0),1),"") -> 2 | J184: boringly
A185: =IFERROR(INDEX('2013 WordList'!$B:$B,MATCH(B185,'2013 WordList'!$H:$H,0),1),"") -> 5 | B185: confidence | E185: =IFERROR(INDEX('2013 WordList'!$B:$B,MATCH(F185,'2013 WordList'!$H:$H,0),1),"") -> 5 | F185: confident | I185: =IFERROR(INDEX('2013 WordList'!$B:$B,MATCH(J185,'2013 WordList'!$H:$H,0),1),"") -> 3 | J185: confidently
A186: 5 | B186: credulity | E186: 5 | F186: credulous | I186: 5 | J186: credulously
A187: 5 | B187: danger | E187: 1 | F187: dangerous | I187: 1 | J187: dangerously
A188: 5 | B188: desire | E188: 5 | F188: desirous | J188: -
A189: 5 | B189: distraction | E189: 5 | F189: distracted | I189: 5 | J189: distractedly
A190: 5 | B190: fascination | E190: 5 | F190: fascinating | J190: -
A191: 5 | B191: futility | E191: 5 | F191: futile | J191: -
A192: =IFERROR(INDEX('2013 WordList'!$B:$B,MATCH(B192,'2013 WordList'!$H:$H,0),1),"") -> 5 | B192: grace | E192: =IFERROR(INDEX('2013 WordList'!$B:$B,MATCH(F192,'2013 WordList'!$H:$H,0),1),"") -> 6 | F192: gracious | I192: =IFERROR(INDEX('2013 WordList'!$B:$B,MATCH(J192,'2013 WordList'!$H:$H,0),1),"") -> 3 | J192: gracefully
A193: 5 | B193: honesty | E193: 4 | F193: honest | I193: 2 | J193: honestly
A194: 5 | B194: inhumanity | E194: 5 | F194: inhuman | I194: 5 | J194: inhumanely
A195: =IFERROR(INDEX('2013 WordList'!$B:$B,MATCH(B195,'2013 WordList'!$H:$H,0),1),"") -> 5 | B195: insistence | E195: =IFERROR(INDEX('2013 WordList'!$B:$B,MATCH(F195,'2013 WordList'!$H:$H,0),1),"") -> 4 | F195: insignificant | I195: =IFERROR(INDEX('2013 WordList'!$B:$B,MATCH(J195,'2013 WordList'!$H:$H,0),1),"") -> 6 | J195: insignificantly
A196: 5 | B196: instability | E196: 5 | F196: unstable | J196: -
A197: 5 | B197: invention | E197: 5 | F197: inventive | I197: 5 | J197: inventively
A198: 5 | B198: legality | E198: 6 | F198: legal | I198: 5 | J198: legally
A199: 5 | B199: legibility | E199: 5 | F199: legible | I199: 5 | J199: legibly
A200: 5 | B200: morality | E200: 4 | F200: moral | I200: 5 | J200: morally
... 121 more rows

Sheet A_List (hidden)
B1: Noun | C1: Concept 1 | E1: M | F1: Adjective | G1: Concept 2 | H1: Adv or Verb | I1: Concept 3 | J1: CON 1 | K1: CON 2 | M1: Rand | N1: Rand Ans | O1: =IFERROR(CELL("ROW",INDEX('2013 WordList'!$Q$2:$Q$6700,MATCH(I2,'2013 WordList'!$H$2:$H$6700,0),1))," ") | Q1: Easy/Hard | R1: Sort => | S1: 1st | T1: 2nd | U1: 3rd | V1: Choose => | W1: If "-" in either S, T or U
B2: =INDIRECT(CONCATENATE("'Adj'!B",'M Order'!$I$20)) -> immobility | C2: =INDEX('2013 WordList'!$F$2:$F$9397,MATCH(B2,'2013 WordList'!$H$2:$H$9291,0),1) -> การไม่สามารถเคลื่อน | E2: 3 | F2: =INDIRECT(CONCATENATE("'Adj'!F",'M Order'!$I$20)) -> immobile | G2: =INDEX('2013 WordList'!$F$2:$F$9397,MATCH(F2,'2013 WordList'!$H$2:$H$9291,0),1) -> ซึ่งไม่สามารถเคลื่อนที่ได้ | H2: =INDIRECT(CONCATENATE("'Adj'!J",'M Order'!$I$20)) -> - | I2: =INDEX('2013 WordList'!$F$2:$F$9397,MATCH(H2,'2013 WordList'!$H$2:$H$9291,0),1) ->  | J2: =IF(B2="-",G2,IF(F2="-",I2,C2)) -> การไม่สามารถเคลื่อน | K2: =IF(H2="-",C2,I2) -> การไม่สามารถเคลื่อน | M2: =IF(H2="-",RANDBETWEEN(0,1),RANDBETWEEN(0,2)) -> 1 | N2: =IF(OR(B2="-",F2="-",H2="-"),W2,IF(M2=0,B2,(IF(M2=1,F2,H2)))) -> immobile | O2: =INDEX('2013 WordList'!$Q$2:$Q$9291,MATCH(N2,'2013 WordList'!$H$2:$H$9291,0),1) -> She sat ________, wondering what to do next. | Q2: 0 | R2: =IF($Q$2=1,RANDBETWEEN(0,1),0) -> 0 | S2: =IF(R2=0,B2,(IF(R2=1,F2,H2))) -> immobility | T2: =IF(R2=0,F2,(IF(R2=1,H2,B2))) -> immobile | U2: =IF(R2=0,H2,(IF(R2=1,B2,F2))) -> - | V2: =RANDBETWEEN(0,1) -> 1 | W2: =IF(S2="-",IF(V2=0,T2,U2),IF(T2="-",IF(V2=0,S2,U2),IF(V2=0,S2,T2))) -> immobile
B3: =INDIRECT(CONCATENATE("'Adj'!B",'M Order'!$I$20+1)) -> intelligence | C3: =INDEX('2013 WordList'!$F$2:$F$9397,MATCH(B3,'2013 WordList'!$H$2:$H$9291,0),1) -> สติปัญญา | E3: 2 | F3: =INDIRECT(CONCATENATE("'Adj'!F",'M Order'!$I$20+1)) -> intelligent | G3: =INDEX('2013 WordList'!$F$2:$F$9397,MATCH(F3,'2013 WordList'!$H$2:$H$9291,0),1) -> ฉลาด | H3: =INDIRECT(CONCATENATE("'Adj'!J",'M Order'!$I$20+1)) -> intelligently | I3: =INDEX('2013 WordList'!$F$2:$F$9397,MATCH(H3,'2013 WordList'!$H$2:$H$9291,0),1) -> ชาญฉลาด | J3: =IF(B3="-",G3,IF(F3="-",I3,C3)) -> สติปัญญา | K3: =IF(H3="-",C3,I3) -> ชาญฉลาด | M3: 0 | N3: intelligence | O3: =INDEX('2013 WordList'!$Q$2:$Q$9291,MATCH(N3,'2013 WordList'!$H$2:$H$9291,0),1) -> It's the ________ of her writing and her smart wit that impresses me. | R3: 0 | S3: intelligence | T3: intelligent | U3: intelligently | V3: =RANDBETWEEN(0,1) -> 1 | W3: =IF(S3="-",IF(V3=0,T3,U3),IF(T3="-",IF(V3=0,S3,U3),IF(V3=0,S3,T3))) -> intelligent
B4: =INDIRECT(CONCATENATE("'Adj'!B",'M Order'!$I$20+2)) -> majority | C4: =INDEX('2013 WordList'!$F$2:$F$9397,MATCH(B4,'2013 WordList'!$H$2:$H$9291,0),1) -> ข้างมาก | E4: 4 | F4: =INDIRECT(CONCATENATE("'Adj'!F",'M Order'!$I$20+2)) -> major | G4: =INDEX('2013 WordList'!$F$2:$F$9397,MATCH(F4,'2013 WordList'!$H$2:$H$9291,0),1) -> สำคัญ | H4: =INDIRECT(CONCATENATE("'Adj'!J",'M Order'!$I$20+2)) -> majorly | I4: =INDEX('2013 WordList'!$F$2:$F$9397,MATCH(H4,'2013 WordList'!$H$2:$H$9291,0),1) -> สำคัญ | J4: ข้างมาก | K4: สำคัญ | M4: 2 | N4: majorly | O4: =INDEX('2013 WordList'!$Q$2:$Q$9291,MATCH(N4,'2013 WordList'!$H$2:$H$9291,0),1) -> Have you seen Chrissie's new leather jacket? It's ________ cool. | R4: 0 | S4: majority | T4: major | U4: majorly | V4: 1 | W4: major
B5: =INDIRECT(CONCATENATE("'Adj'!B",'M Order'!$I$20+3)) -> office | C5: =INDEX('2013 WordList'!$F$2:$F$9397,MATCH(B5,'2013 WordList'!$H$2:$H$9291,0),1) -> สำนักงาน | E5: 3 | F5: =INDIRECT(CONCATENATE("'Adj'!F",'M Order'!$I$20+3)) -> officious | G5: =INDEX('2013 WordList'!$F$2:$F$9397,MATCH(F5,'2013 WordList'!$H$2:$H$9291,0),1) -> เสือก | H5: =INDIRECT(CONCATENATE("'Adj'!J",'M Order'!$I$20+3)) -> officially | I5: =INDEX('2013 WordList'!$F$2:$F$9397,MATCH(H5,'2013 WordList'!$H$2:$H$9291,0),1) -> ที่ได้รับอนุญาตอย่างเป็นทางการ | J5: สำนักงาน | K5: ที่ได้รับอนุญาตอย่างเป็นทางการ | M5: 2 | N5: officially | O5: =INDEX('2013 WordList'!$Q$2:$Q$9291,MATCH(N5,'2013 WordList'!$H$2:$H$9291,0),1) -> The royal marriage will be ________ celebrated in Marrakesh for three days in mid-April. | R5: 0 | S5: office | T5: officious | U5: officially | V5: 0 | W5: office
B6: =INDIRECT(CONCATENATE("'Adj'!B",'M Order'!$I$20+4)) -> outrage | C6: =INDEX('2013 WordList'!$F$2:$F$9397,MATCH(B6,'2013 WordList'!$H$2:$H$9291,0),1) -> การข่มขืน | E6: 3 | F6: =INDIRECT(CONCATENATE("'Adj'!F",'M Order'!$I$20+4)) -> outrageous | G6: =INDEX('2013 WordList'!$F$2:$F$9397,MATCH(F6,'2013 WordList'!$H$2:$H$9291,0),1) -> อุกอาจ | H6: =INDIRECT(CONCATENATE("'Adj'!J",'M Order'!$I$20+4)) -> outrageously | I6: =INDEX('2013 WordList'!$F$2:$F$9397,MATCH(H6,'2013 WordList'!$H$2:$H$9291,0),1) -> อุกอาจ | J6: การข่มขืน | K6: อุกอาจ | M6: 2 | N6: outrageously | O6: =INDEX('2013 WordList'!$Q$2:$Q$9291,MATCH(N6,'2013 WordList'!$H$2:$H$9291,0),1) -> I'm shocked at these ________ high prices. | R6: 0 | S6: outrage | T6: outrageous | U6: outrageously | V6: 1 | W6: outrageous
B7: =INDIRECT(CONCATENATE("'Adj'!B",'M Order'!$I$20+5)) -> peculiarity | C7: =INDEX('2013 WordList'!$F$2:$F$9397,MATCH(B7,'2013 WordList'!$H$2:$H$9291,0),1) -> ความไม่ชอบมาพากล | E7: 1 | F7: =INDIRECT(CONCATENATE("'Adj'!F",'M Order'!$I$20+5)) -> peculiar | G7: =INDEX('2013 WordList'!$F$2:$F$9397,MATCH(F7,'2013 WordList'!$H$2:$H$9291,0),1) -> แปลก | H7: =INDIRECT(CONCATENATE("'Adj'!J",'M Order'!$I$20+5)) -> peculiarly | I7: =INDEX('2013 WordList'!$F$2:$F$9397,MATCH(H7,'2013 WordList'!$H$2:$H$9291,0),1) -> อย่างยิ่ง | J7: ความไม่ชอบมาพากล | K7: อย่างยิ่ง | M7: 2 | N7: peculiarly | O7: =INDEX('2013 WordList'!$Q$2:$Q$9291,MATCH(N7,'2013 WordList'!$H$2:$H$9291,0),1) -> The streets were ________ quiet for the time of day. | R7: 0 | S7: peculiarity | T7: peculiar | U7: peculiarly | V7: 1 | W7: peculiar
B8: =INDIRECT(CONCATENATE("'Adj'!B",'M Order'!$I$20+6)) -> performance | C8: =INDEX('2013 WordList'!$F$2:$F$9397,MATCH(B8,'2013 WordList'!$H$2:$H$9291,0),1) -> การปฏิบัติ | E8: 2 | F8: =INDIRECT(CONCATENATE("'Adj'!F",'M Order'!$I$20+6)) -> performing | G8: =INDEX('2013 WordList'!$F$2:$F$9397,MATCH(F8,'2013 WordList'!$H$2:$H$9291,0),1) -> เล่นละคร | H8: =INDIRECT(CONCATENATE("'Adj'!J",'M Order'!$I$20+6)) -> - | I8: =INDEX('2013 WordList'!$F$2:$F$9397,MATCH(H8,'2013 WordList'!$H$2:$H$9291,0),1) ->  | J8: การปฏิบัติ | K8: การปฏิบัติ | M8: 1 | N8: performance | O8: =INDEX('2013 WordList'!$Q$2:$Q$9291,MATCH(N8,'2013 WordList'!$H$2:$H$9291,0),1) -> Some athletes take drugs to improve their ________. | R8: =IF($Q$2=1,RANDBETWEEN(0,1),0) -> 0 | S8: performance | T8: performing | U8: - | V8: 0 | W8: performance
B9: =INDIRECT(CONCATENATE("'Adj'!B",'M Order'!$I$20+7)) -> possibility | C9: =INDEX('2013 WordList'!$F$2:$F$9397,MATCH(B9,'2013 WordList'!$H$2:$H$9291,0),1) -> ความเป็นไปได้ | E9: 1 | F9: =INDIRECT(CONCATENATE("'Adj'!F",'M Order'!$I$20+7)) -> possible | G9: =INDEX('2013 WordList'!$F$2:$F$9397,MATCH(F9,'2013 WordList'!$H$2:$H$9291,0),1) -> เป็นไปได้ | H9: =INDIRECT(CONCATENATE("'Adj'!J",'M Order'!$I$20+7)) -> possibly | I9: =INDEX('2013 WordList'!$F$2:$F$9397,MATCH(H9,'2013 WordList'!$H$2:$H$9291,0),1) -> อาจจะ | J9: ความเป็นไปได้ | K9: อาจจะ | M9: 1 | N9: possible | O9: =INDEX('2013 WordList'!$Q$2:$Q$9291,MATCH(N9,'2013 WordList'!$H$2:$H$9291,0),1) -> Is it ________ to buy tickets in advance? | R9: 0 | S9: possibility | T9: possible | U9: possibly | V9: 1 | W9: possible
B10: =INDIRECT(CONCATENATE("'Adj'!B",'M Order'!$I$20+8)) -> probability | C10: =INDEX('2013 WordList'!$F$2:$F$9397,MATCH(B10,'2013 WordList'!$H$2:$H$9291,0),1) -> ความน่าจะเป็น | E10: 1 | F10: =INDIRECT(CONCATENATE("'Adj'!F",'M Order'!$I$20+8)) -> probable | G10: =INDEX('2013 WordList'!$F$2:$F$9397,MATCH(F10,'2013 WordList'!$H$2:$H$9291,0),1) -> น่าจะเป็น | H10: =INDIRECT(CONCATENATE("'Adj'!J",'M Order'!$I$20+8)) -> probably | I10: =INDEX('2013 WordList'!$F$2:$F$9397,MATCH(H10,'2013 WordList'!$H$2:$H$9291,0),1) -> อาจ | J10: ความน่าจะเป็น | K10: อาจ | M10: 0 | N10: probability | O10: =INDEX('2013 WordList'!$Q$2:$Q$9291,MATCH(N10,'2013 WordList'!$H$2:$H$9291,0),1) -> The ________ of getting all the answers correct is about one in ten. | R10: 0 | S10: probability | T10: probable | U10: probably | V10: 1 | W10: probable
B11: =INDIRECT(CONCATENATE("'Adj'!B",'M Order'!$I$20+9)) -> problem | C11: =INDEX('2013 WordList'!$F$2:$F$9397,MATCH(B11,'2013 WordList'!$H$2:$H$9291,0),1) -> ปัญหา | E11: 4 | F11: =INDIRECT(CONCATENATE("'Adj'!F",'M Order'!$I$20+9)) -> problematic | G11: =INDEX('2013 WordList'!$F$2:$F$9397,MATCH(F11,'2013 WordList'!$H$2:$H$9291,0),1) ->  | H11: =INDIRECT(CONCATENATE("'Adj'!J",'M Order'!$I$20+9)) -> problematically | I11: =INDEX('2013 WordList'!$F$2:$F$9397,MATCH(H11,'2013 WordList'!$H$2:$H$9291,0),1) ->  | J11: ปัญหา | M11: 2 | N11: problematically | O11: =INDEX('2013 WordList'!$Q$2:$Q$9291,MATCH(N11,'2013 WordList'!$H$2:$H$9291,0),1) ->  | R11: 0 | S11: problem | T11: problematic | U11: problematically | V11: 1 | W11: problematic
B12: =INDIRECT(CONCATENATE("'Adj'!B",'M Order'!$I$20+10)) -> recklessness | C12: =INDEX('2013 WordList'!$F$2:$F$9397,MATCH(B12,'2013 WordList'!$H$2:$H$9291,0),1) -> ความชะล่าใจ | E12: 2 | F12: =INDIRECT(CONCATENATE("'Adj'!F",'M Order'!$I$20+10)) -> reckless | G12: =INDEX('2013 WordList'!$F$2:$F$9397,MATCH(F12,'2013 WordList'!$H$2:$H$9291,0),1) -> บ้าบิ่น | H12: =INDIRECT(CONCATENATE("'Adj'!J",'M Order'!$I$20+10)) -> recklessly | I12: =INDEX('2013 WordList'!$F$2:$F$9397,MATCH(H12,'2013 WordList'!$H$2:$H$9291,0),1) -> มุทะลุ | J12: ความชะล่าใจ | K12: มุทะลุ | M12: 1 | N12: reckless | O12: =INDEX('2013 WordList'!$Q$2:$Q$9291,MATCH(N12,'2013 WordList'!$H$2:$H$9291,0),1) -> He was found guilty of ________ driving. | R12: 0 | S12: recklessness | T12: reckless | U12: recklessly | V12: 1 | W12: reckless
B13: =INDIRECT(CONCATENATE("'Adj'!B",'M Order'!$I$20+11)) -> recommendation | C13: =INDEX('2013 WordList'!$F$2:$F$9397,MATCH(B13,'2013 WordList'!$H$2:$H$9291,0),1) -> คำแนะนำ | E13: 1 | F13: =INDIRECT(CONCATENATE("'Adj'!F",'M Order'!$I$20+11)) -> recommended | G13: =INDEX('2013 WordList'!$F$2:$F$9397,MATCH(F13,'2013 WordList'!$H$2:$H$9291,0),1) -> แนะนำ | H13: =INDIRECT(CONCATENATE("'Adj'!J",'M Order'!$I$20+11)) -> - | I13: =INDEX('2013 WordList'!$F$2:$F$9397,MATCH(H13,'2013 WordList'!$H$2:$H$9291,0),1) ->  | J13: คำแนะนำ | K13: คำแนะนำ | M13: 1 | N13: recommendation | O13: =INDEX('2013 WordList'!$Q$2:$Q$9291,MATCH(N13,'2013 WordList'!$H$2:$H$9291,0),1) -> I bought this computer on John's ________ that it was good. | R13: 0 | S13: recommendation | T13: recommended | U13: - | V13: 0 | W13: recommendation
B14: =INDIRECT(CONCATENATE("'Adj'!B",'M Order'!$I$20+12)) -> regularity | C14: =INDEX('2013 WordList'!$F$2:$F$9397,MATCH(B14,'2013 WordList'!$H$2:$H$9291,0),1) -> ความสม่ำเสมอ | E14: 1 | F14: =INDIRECT(CONCATENATE("'Adj'!F",'M Order'!$I$20+12)) -> regular | G14: =INDEX('2013 WordList'!$F$2:$F$9397,MATCH(F14,'2013 WordList'!$H$2:$H$9291,0),1) -> ปกติ | H14: =INDIRECT(CONCATENATE("'Adj'!J",'M Order'!$I$20+12)) -> regularly | I14: =INDEX('2013 WordList'!$F$2:$F$9397,MATCH(H14,'2013 WordList'!$H$2:$H$9291,0),1) -> สม่ำเสมอ | J14: ความสม่ำเสมอ | K14: สม่ำเสมอ | M14: 2 | N14: regularly | O14: =INDEX('2013 WordList'!$Q$2:$Q$9291,MATCH(N14,'2013 WordList'!$H$2:$H$9291,0),1) -> The competitors set off at ________ spaced intervals. | R14: 0 | S14: regularity | T14: regular | U14: regularly | V14: 0 | W14: regularity
B15: =INDIRECT(CONCATENATE("'Adj'!B",'M Order'!$I$20+13)) -> slowness | C15: =INDEX('2013 WordList'!$F$2:$F$9397,MATCH(B15,'2013 WordList'!$H$2:$H$9291,0),1) -> ความช้า | E15: 3 | F15: =INDIRECT(CONCATENATE("'Adj'!F",'M Order'!$I$20+13)) -> slow | G15: =INDEX('2013 WordList'!$F$2:$F$9397,MATCH(F15,'2013 WordList'!$H$2:$H$9291,0),1) -> ช้า | H15: =INDIRECT(CONCATENATE("'Adj'!J",'M Order'!$I$20+13)) -> slowly | I15: =INDEX('2013 WordList'!$F$2:$F$9397,MATCH(H15,'2013 WordList'!$H$2:$H$9291,0),1) -> ช้า | J15: ความช้า | K15: ช้า | M15: 1 | N15: slow | O15: =INDEX('2013 WordList'!$Q$2:$Q$9291,MATCH(N15,'2013 WordList'!$H$2:$H$9291,0),1) -> He was far too ________ to catch me. | R15: 0 | S15: slowness | T15: slow | U15: slowly | V15: 0 | W15: slowness
B16: =INDIRECT(CONCATENATE("'Adj'!B",'M Order'!$I$20+14)) -> speed | C16: =INDEX('2013 WordList'!$F$2:$F$9397,MATCH(B16,'2013 WordList'!$H$2:$H$9291,0),1) -> ความเร็ว | E16: 1 | F16: =INDIRECT(CONCATENATE("'Adj'!F",'M Order'!$I$20+14)) -> speedy | G16: =INDEX('2013 WordList'!$F$2:$F$9397,MATCH(F16,'2013 WordList'!$H$2:$H$9291,0),1) -> รวดเร็ว | H16: =INDIRECT(CONCATENATE("'Adj'!J",'M Order'!$I$20+14)) -> speedily | I16: =INDEX('2013 WordList'!$F$2:$F$9397,MATCH(H16,'2013 WordList'!$H$2:$H$9291,0),1) -> รวดเร็ว | J16: ความเร็ว | K16: รวดเร็ว | M16: 0 | N16: speed | O16: =INDEX('2013 WordList'!$Q$2:$Q$9291,MATCH(N16,'2013 WordList'!$H$2:$H$9291,0),1) -> He was travelling at a ________ of 90 mph. | R16: 0 | S16: speed | T16: speedy | U16: speedily | V16: 1 | W16: speedy
B17: =INDIRECT(CONCATENATE("'Adj'!B",'M Order'!$I$20+15)) -> substance | C17: =INDEX('2013 WordList'!$F$2:$F$9397,MATCH(B17,'2013 WordList'!$H$2:$H$9291,0),1) -> สสาร | E17: 1 | F17: =INDIRECT(CONCATENATE("'Adj'!F",'M Order'!$I$20+15)) -> substantive | G17: =INDEX('2013 WordList'!$F$2:$F$9397,MATCH(F17,'2013 WordList'!$H$2:$H$9291,0),1) -> สำคัญ | H17: =INDIRECT(CONCATENATE("'Adj'!J",'M Order'!$I$20+15)) -> subsequently | I17: =INDEX('2013 WordList'!$F$2:$F$9397,MATCH(H17,'2013 WordList'!$H$2:$H$9291,0),1) -> ต่อมา | J17: สสาร | K17: ต่อมา | M17: 2 | N17: subsequently | O17: =INDEX('2013 WordList'!$Q$2:$Q$9291,MATCH(N17,'2013 WordList'!$H$2:$H$9291,0),1) -> In 1982 he was arrested and ________ convicted on drug trafficking charges. | R17: 0 | S17: substance | T17: substantive | U17: subsequently | V17: 1 | W17: substantive
B18: =INDIRECT(CONCATENATE("'Adj'!B",'M Order'!$I$20+16)) -> truth | C18: =INDEX('2013 WordList'!$F$2:$F$9397,MATCH(B18,'2013 WordList'!$H$2:$H$9291,0),1) -> ความจริง | E18: 2 | F18: =INDIRECT(CONCATENATE("'Adj'!F",'M Order'!$I$20+16)) -> true | G18: =INDEX('2013 WordList'!$F$2:$F$9397,MATCH(F18,'2013 WordList'!$H$2:$H$9291,0),1) -> จริง | H18: =INDIRECT(CONCATENATE("'Adj'!J",'M Order'!$I$20+16)) -> truly | I18: =INDEX('2013 WordList'!$F$2:$F$9397,MATCH(H18,'2013 WordList'!$H$2:$H$9291,0),1) -> อย่างแท้จริง | J18: ความจริง | K18: อย่างแท้จริง | M18: 1 | N18: true | O18: =INDEX('2013 WordList'!$Q$2:$Q$9291,MATCH(N18,'2013 WordList'!$H$2:$H$9291,0),1) -> Is it ________ that Lucy and Mark are getting married? | R18: 0 | S18: truth | T18: true | U18: truly | V18: 0 | W18: truth
B19: =INDIRECT(CONCATENATE("'Adj'!B",'M Order'!$I$20+17)) -> victory | C19: =INDEX('2013 WordList'!$F$2:$F$9397,MATCH(B19,'2013 WordList'!$H$2:$H$9291,0),1) -> ชัยชนะ | E19: 1 | F19: =INDIRECT(CONCATENATE("'Adj'!F",'M Order'!$I$20+17)) -> victorious | G19: =INDEX('2013 WordList'!$F$2:$F$9397,MATCH(F19,'2013 WordList'!$H$2:$H$9291,0),1) -> มีชัย | H19: =INDIRECT(CONCATENATE("'Adj'!J",'M Order'!$I$20+17)) -> victoriously | I19: =INDEX('2013 WordList'!$F$2:$F$9397,MATCH(H19,'2013 WordList'!$H$2:$H$9291,0),1) -> ชัย | J19: ชัยชนะ | K19: ชัย | M19: 1 | N19: victorious | O19: =INDEX('2013 WordList'!$Q$2:$Q$9291,MATCH(N19,'2013 WordList'!$H$2:$H$9291,0),1) -> The ________ team were loudly cheered by their fans. | R19: 0 | S19: victory | T19: victorious | U19: victoriously | V19: 0 | W19: victory
B20: =INDIRECT(CONCATENATE("'Adj'!B",'M Order'!$I$20+18)) -> abdicate | C20: =INDEX('2013 WordList'!$F$2:$F$9397,MATCH(B20,'2013 WordList'!$H$2:$H$9291,0),1) -> สละราชสมบัติ | E20: 1 | F20: =INDIRECT(CONCATENATE("'Adj'!F",'M Order'!$I$20+18)) -> addicted | G20: =INDEX('2013 WordList'!$F$2:$F$9397,MATCH(F20,'2013 WordList'!$H$2:$H$9291,0),1) -> ติดยาเสพติด | H20: =INDIRECT(CONCATENATE("'Adj'!J",'M Order'!$I$20+18)) -> - | I20: =INDEX('2013 WordList'!$F$2:$F$9397,MATCH(H20,'2013 WordList'!$H$2:$H$9291,0),1) ->  | J20: สละราชสมบัติ | K20: สละราชสมบัติ | M20: 0 | N20: abdicate | O20: =INDEX('2013 WordList'!$Q$2:$Q$9291,MATCH(N20,'2013 WordList'!$H$2:$H$9291,0),1) -> Some parents ________ their responsibilities and expect the state to bring up children. | R20: 0 | S20: abdicate | T20: addicted | U20: - | V20: 0 | W20: abdicate
B21: =INDIRECT(CONCATENATE("'Adj'!B",'M Order'!$I$20+19)) -> advantage | C21: =INDEX('2013 WordList'!$F$2:$F$9397,MATCH(B21,'2013 WordList'!$H$2:$H$9291,0),1) -> ความได้เปรียบ | E21: 2 | F21: =INDIRECT(CONCATENATE("'Adj'!F",'M Order'!$I$20+19)) -> advantageous | G21: =INDEX('2013 WordList'!$F$2:$F$9397,MATCH(F21,'2013 WordList'!$H$2:$H$9291,0),1) -> ได้เปรียบ | H21: =INDIRECT(CONCATENATE("'Adj'!J",'M Order'!$I$20+19)) -> advantageously | I21: =INDEX('2013 WordList'!$F$2:$F$9397,MATCH(H21,'2013 WordList'!$H$2:$H$9291,0),1) -> เต็มกอบเต็มกำ | J21: ความได้เปรียบ | K21: เต็มกอบเต็มกำ | M21: 0 | N21: advantage | O21: =INDEX('2013 WordList'!$Q$2:$Q$9291,MATCH(N21,'2013 WordList'!$H$2:$H$9291,0),1) -> The ________of booking tickets in advance is that you get better seats. | R21: 0 | S21: advantage | T21: advantageous | U21: advantageously | V21: 0 | W21: advantage
O23: Make sure the final row is the final row on 2013 WordList
O24: It is current 9497

Sheet Mix_Wksheet (hidden)
C1: Name: ___________________ | E1: Number: _______________ | F1: Class: _____________
S2: =Mix_List!S20 -> was team contributed the
A3: =IF(B3>=7,"","M") -> M | B3: 6 | C3: Week | D3: 4 | E3: =IF(B3=9,"AWL Scramble Words",IF(B3=8,"SAT Scramble Words",IF(B3=7,"TOEFL Scramble Words","Sentence Scramble"))) -> Sentence Scramble | F3: Sem | G3: 2 | S3: =Mix_List!S21 -> Her fresh subject.
C4: Unscramble the sentences below by writing the words in the correct order. | S4: =Mix_List!S22 -> project will to people.
S5: =Mix_List!S23 -> they to in robbery?
B6: # | C6: Sentence | J6: Word | K6: Row | S6: =Mix_List!S24 -> We to the after
B7: 1 | C7: =Mix_List!O2 -> a was project. real It to contributed Everyone effort. team success the of the | S7: =Mix_List!S25 -> do from refusal? | Y7: Wks
C8: =S2 -> was team contributed the | J8: =Mix_List!L2 -> team | K8: =Mix_List!M20 -> 4227 | S8: =Mix_List!S26 -> is to claim any | U8: 1 | V8: Matthayom | Y8: 1
S9: =Mix_List!S27 -> producers crude it separate | U9: 2 | Y9: 2
B10: 2 | C10: =Mix_List!O3 -> fresh to the subject. Her attitude a lends perspective | S10: =Mix_List!S28 -> The evolve into | U10: 3 | Y10: 3
C11: =S3 -> Her fresh subject. | J11: =Mix_List!L3 -> perspective | K11: =Mix_List!M21 -> 4241 | S11: =Mix_List!S29 -> government promised against | U11: 4 | Y11: 4
S12: =Mix_List!S30 -> Janet re-write book variety | U12: 5 | Y12: 5
B13: 3 | C13: =Mix_List!O4 -> project have leader, As you people. will to allocate to jobs | S13: =Mix_List!S31 -> The faces task the | U13: 6 | Y13: 6
C14: =S4 -> project will to people. | J14: =Mix_List!L4 -> allocate | K14: =Mix_List!M22 -> 4222 | S14: =Mix_List!S32 -> I lot already, her | U14: 7 | V14: TOEFL | W14: N | Y14: 7
S15: =Mix_List!S33 -> approximate will $600. | U15: 8 | V15: SAT | W15: I | Y15: 8
B16: 4 | C16: =Mix_List!O5 -> in Have him they the robbery? evidence implicate to any | S16: =Mix_List!S34 -> suddenly intense his | U16: 9 | V16: AWL | W16: S | Y16: 9
C17: =S5 -> they to in robbery? | J17: =Mix_List!L5 -> implicate | K17: =Mix_List!M23 -> 4234 | Y17: 10
V18: Sem | W18: 1 | Y18: 11
B19: 5 | C19: =Mix_List!O6 -> We lunch. assemble in going to are meeting the after room | W19: 2 | Y19: 12
C20: =S6 -> We to the after | J20: =Mix_List!L6 -> assemble | K20: =Mix_List!M24 -> 4226 | Y20: 13
Y21: 14
B22: 6 | C22: =Mix_List!O7 -> her What you do infer refusal? from | Y22: 15
C23: =S7 -> do from refusal? | J23: =Mix_List!L7 -> infer | K23: =Mix_List!M25 -> 4224 | Y23: 16
Y24: 17
B25: 7 | C25: =Mix_List!O8 -> It to make transit. possible is an any for insurance claim or goods lost damaged in | Y25: 18
C26: =S8 -> is to claim any | J26: =Mix_List!L8 -> transit | K26: =Mix_List!M26 -> 4236 | Y26: 19
Y27: 20
B28: 8 | C28: =Mix_List!O9 -> such Oil refine and separate crude as it producers oil purify to elements, benzene.
C29: =S9 -> producers crude it separate | J29: =Mix_List!L9 -> refine | K29: =Mix_List!M27 -> 4225
B31: 9 | C31: =Mix_List!O10 -> will multi-million into evolve The grow and company a organization. dollar
C32: =S10 -> The evolve into | J32: =Mix_List!L10 -> evolve | K32: =Mix_List!M28 -> 4228
B34: 10 | C34: =Mix_List!O11 -> cigarette promised The have to legislate advertising. government against
C35: =S11 -> government promised against | J35: =Mix_List!L11 -> legislate | K35: =Mix_List!M29 -> 4239
B37: 11 | C37: =Mix_List!O12 -> had edit publishers. a for Janet re-write and her to book of variety
C38: =S12 -> Janet re-write book variety | J38: =Mix_List!L12 -> edit | K38: =Mix_List!M30 -> 4232
B40: 12 | C40: =Mix_List!O13 -> the The government daunting restructuring economy. task now the faces of
C41: =S13 -> The faces task the | J41: =Mix_List!L13 -> task | K41: =Mix_List!M31 -> 4237
B43: 13 | C43: =Mix_List!O14 -> but talk about the a knew her I already, subject lot nevertheless. was interesting
C44: =S14 -> I lot already, her | J44: =Mix_List!L14 -> nevertheless | K44: =Mix_List!M32 -> 4238
B46: 14 | C46: =Mix_List!O15 -> about be $600. will The approximate cost
C47: =S15 -> approximate will $600. | J47: =Mix_List!L15 -> approximate | K47: =Mix_List!M33 -> 4231
B49: 15 | C49: =Mix_List!O16 -> his pain in an He felt intense back. suddenly
C50: =S16 -> suddenly intense his | J50: =Mix_List!L16 -> intense | K50: =Mix_List!M34 -> 4240

Sheet Mix_Worksheet
C1: Name: ___________________ | E1: Number: _______________ | F1: Class: _____________
S2: It team contributed the
A3: M | B3: 6 | C3: Week | D3: 4 | E3: Sentence Scramble | F3: Sem | G3: 2 | S3: attitude a the
C4: Unscramble the sentences below by writing the words in the correct order. | S4: As you allocate people.
S5: Have to him
B6: # | C6: Sentence | J6: Word | K6: Row | S6: are assemble meeting after
B7: 1 | C7: a was project. real It to contributed Everyone effort. team success the of the | S7: What infer refusal?
C8: =S2 -> It team contributed the | J8: team | K8: 4227 | S8: is to claim any
S9: producers crude purify elements,
B10: 2 | C10: fresh to the subject. Her attitude a lends perspective | S10: The evolve a organization.
C11: =S3 -> attitude a the | J11: perspective | K11: 4241 | S11: government to advertising.
S12: Janet and book variety
B13: 3 | C13: project have leader, As you people. will to allocate to jobs | S13: The faces of
C14: =S4 -> As you allocate people. | J14: allocate | K14: 4222 | S14: I lot already, her
S15: The will $600.
B16: 4 | C16: in Have him they the robbery? evidence implicate to any | S16: He intense back.
C17: =S5 -> Have to him | J17: implicate | K17: 4234
B19: 5 | C19: We lunch. assemble in going to are meeting the after room
C20: =S6 -> are assemble meeting after | J20: assemble | K20: 4226
B22: 6 | C22: her What you do infer refusal? from
C23: =S7 -> What infer refusal? | J23: infer | K23: 4224
B25: 7 | C25: It to make transit. possible is an any for insurance claim or goods lost damaged in
C26: =S8 -> is to claim any | J26: transit | K26: 4236
B28: 8 | C28: such Oil refine and separate crude as it producers oil purify to elements, benzene.
C29: =S9 -> producers crude purify elements, | J29: refine | K29: 4225
B31: 9 | C31: will multi-million into evolve The grow and company a organization. dollar
C32: =S10 -> The evolve a organization. | J32: evolve | K32: 4228
B34: 10 | C34: cigarette promised The have to legislate advertising. government against
C35: =S11 -> government to advertising. | J35: legislate | K35: 4239
B37: 11 | C37: had edit publishers. a for Janet re-write and her to book of variety
C38: =S12 -> Janet and book variety | J38: edit | K38: 4232
B40: 12 | C40: the The government daunting restructuring economy. task now the faces of
C41: =S13 -> The faces of | J41: task | K41: 4237
B43: 13 | C43: but talk about the a knew her I already, subject lot nevertheless. was interesting
C44: =S14 -> I lot already, her | J44: nevertheless | K44: 4238
B46: 14 | C46: about be $600. will The approximate cost
C47: =S15 -> The will $600. | J47: approximate | K47: 4231
B49: 15 | C49: his pain in an He felt intense back. suddenly
C50: =S16 -> He intense back. | J50: intense | K50: 4240

Sheet Mix_List (hidden)
M1: Chosen Sentences | N1: Max | Q1: Row Start | S1: 2 | T1: 3 | U1: 4 | V1: 5 | W1: 6 | X1: 7 | Y1: 8 | Z1: 9 | AA1: 10 | AB1: 11 | AC1: 12 | AD1: 13 | AE1: 14 | AF1: 15 | AG1: 16 | AH1: 17 | AI1: 18 | AJ1: 19 | AK1: 20 | AL1: 21 | BC1: =IFERROR(LEFT(AN1,SEARCH(" ",AN1)-1),"") ->  | BK1: =IF(BL1="","",RAND()) -> 0.7650282977 | BL1: =$AQ$2 -> a | BM1: =IF(BN1="","",RAND()) ->  | BN1: =$AX$3 ->  | BO1: =IF(BP1="","",RAND()) -> 0.1882747692 | BP1: =$AP$4 -> project | BQ1: =IF(BR1="","",RAND()) -> 0.9248954781 | BR1: =$AV$5 -> in | BS1: =IF(BT1="","",RAND()) -> 0.1772401381 | BT1: =$AO$6 -> We | BU1: =IF(BV1="","",RAND()) -> 0.9000784086 | BV1: =$AT$7 -> her | BW1: =IF(BX1="","",RAND()) -> 0.466086067 | BX1: =$AO$8 -> It | BY1: =IF(BZ1="","",RAND()) -> 0.8263721578 | BZ1: =$AZ$9 -> such | CA1: =IF(CB1="","",RAND()) -> 0.789588234 | CB1: =$AQ$10 -> will | CC1: =IF(CD1="","",RAND()) -> 0.0486505652 | CD1: =$AV$11 -> cigarette | CE1: =IF(CF1="","",RAND()) -> 0.190506368 | CF1: =$AP$12 -> had | CG1: =IF(CH1="","",RAND()) -> 0.6455616746 | CH1: =$AX$13 -> the | CI1: =IF(CJ1="","",RAND()) -> 0.1751562817 | CJ1: =$AW$14 -> but | CK1: =IF(CL1="","",RAND()) ->  | CL1: =$AV$15 ->  | CM1: =IF(CN1="","",RAND()) ->  | CN1: =$AZ$16 -> 
L2: =INDIRECT(CONCATENATE("'2013 Wordlist'!H",$M$20)) -> team | M2: =INDIRECT(CONCATENATE("'2013 Wordlist'!J",$M$20)) -> It was a real team effort. Everyone contributed to the success of the project. | N2: =SUM(IF(LEN(TRIM(M2))=0,0,LEN(TRIM(M2))-LEN(SUBSTITUTE(M2," ",""))+1)) -> 14 | O2: =CONCATENATE($BL$1," ",$BL$2," ",$BL$3," ",$BL$4," ",$BL$5," ",$BL$6," ",$BL$7," ",$BL$8," ",$BL$9," ",$BL$10," ",$BL$11," ",$BL$12," ",$BL$13," ",$BL$14," ",$BL$15," ",$BL$16," ",$BL$17," ",$BL$18," ",$BL$19," ",$BL$20," ",$BL$21," ",$BL$22) -> a was project. real It to contributed Everyone effort. team success the of the | Q2: ='M Order'!AB20 -> 4221 | S2: =RIGHT(M2,LEN(M2)-FIND(" ",M2)) -> was a real team effort. Everyone contributed to the success of the project. | T2: =IFERROR(RIGHT(S2,LEN(S2)-FIND(" ",S2)),"") -> a real team effort. Everyone contributed to the success of the project. | U2: real team effort. Everyone contributed to the success of the project. | V2: team effort. Everyone contributed to the success of the project. | W2: effort. Everyone contributed to the success of the project. | X2: Everyone contributed to the success of the project. | Y2: contributed to the success of the project. | Z2: to the success of the project. | AA2: the success of the project. | AB2: success of the project. | AC2: of the project. | AD2: the project. | AE2: project. | AG2: =IFERROR(RIGHT(AF2,LEN(AF2)-FIND(" ",AF2)),"") ->  | AH2: =IFERROR(RIGHT(AG2,LEN(AG2)-FIND(" ",AG2)),"") ->  | AI2: =IFERROR(RIGHT(AH2,LEN(AH2)-FIND(" ",AH2)),"") ->  | AJ2: =IFERROR(RIGHT(AI2,LEN(AI2)-FIND(" ",AI2)),"") ->  | AK2: =IFERROR(RIGHT(AJ2,LEN(AJ2)-FIND(" ",AJ2)),"") ->  | AL2: =IFERROR(RIGHT(AK2,LEN(AK2)-FIND(" ",AK2)),"") ->  | AN2: =TRIM(RIGHT(SUBSTITUTE(M2," ",REPT(" ",255)),255)) -> project. | AO2: =IFERROR(LEFT(M2,SEARCH(" ",M2)-1),"") -> It | AP2: =IFERROR(LEFT(S2,SEARCH(" ",S2)-1),"") -> was | AQ2: a | AR2: real | AS2: team | AT2: effort. | AU2: Everyone | AV2: contributed | AW2: to | AX2: the | AY2: success | AZ2: of | BA2: the | BK2: 0.9872774214 | BL2: =$AP$2 -> was | BM2: 0.5937989701 | BN2: =$AS$3 -> fresh | BO2: 0.3313752218 | BP2: =$AT$4 -> have | BQ2: 0.8425397861 | BR2: =$AO$5 -> Have | BS2: 0.4583722473 | BT2: =$AN$6 -> lunch. | BV2: =$AU$7 ->  | BW2: 0.6706130868 | BX2: =$AR$8 -> to | BY2: 0.3562787721 | BZ2: =$AO$9 -> Oil | CA2: 0.556761991 | CB2: =$AW$10 -> multi-million | CC2: 0.8871936611 | CD2: =$AR$11 -> promised | CE2: 0.5025190655 | CF2: =$AT$12 -> edit | CG2: 0.3938857908 | CH2: =$AO$13 -> The | CI2: 0.00584803921 | CJ2: =$AY$14 -> talk | CK2: 0.5118967453 | CL2: =$AT$15 -> about | CM2: 0.9525760384 | CN2: =$AV$16 -> his
L3: =INDIRECT(CONCATENATE("'2013 Wordlist'!H",M21)) -> perspective | M3: =INDIRECT(CONCATENATE("'2013 Wordlist'!J",$M$21)) -> Her attitude lends a fresh perspective to the subject. | N3: =SUM(IF(LEN(TRIM(M3))=0,0,LEN(TRIM(M3))-LEN(SUBSTITUTE(M3," ",""))+1)) -> 9 | O3: =CONCATENATE($BN$1," ",$BN$2," ",$BN$3," ",$BN$4," ",$BN$5," ",$BN$6," ",$BN$7," ",$BN$8," ",$BN$9," ",$BN$10," ",$BN$11," ",$BN$12," ",$BN$13," ",$BN$14," ",$BN$15," ",$BN$16," ",$BN$17," ",$BN$18," ",$BN$19," ",$BN$20," ",$BN$21," ",$BN$22) -> fresh to the subject. Her attitude a lends perspective | S3: attitude lends a fresh perspective to the subject. | T3: lends a fresh perspective to the subject. | U3: a fresh perspective to the subject. | V3: fresh perspective to the subject. | W3: perspective to the subject. | X3: to the subject. | Y3: the subject. | Z3: subject. | AE3: =IFERROR(RIGHT(AD3,LEN(AD3)-FIND(" ",AD3)),"") ->  | AF3: =IFERROR(RIGHT(AE3,LEN(AE3)-FIND(" ",AE3)),"") ->  | AG3: =IFERROR(RIGHT(AF3,LEN(AF3)-FIND(" ",AF3)),"") ->  | AH3: =IFERROR(RIGHT(AG3,LEN(AG3)-FIND(" ",AG3)),"") ->  | AI3: =IFERROR(RIGHT(AH3,LEN(AH3)-FIND(" ",AH3)),"") ->  | AJ3: =IFERROR(RIGHT(AI3,LEN(AI3)-FIND(" ",AI3)),"") ->  | AK3: =IFERROR(RIGHT(AJ3,LEN(AJ3)-FIND(" ",AJ3)),"") ->  | AL3: =IFERROR(RIGHT(AK3,LEN(AK3)-FIND(" ",AK3)),"") ->  | AN3: subject. | AO3: Her | AP3: =IFERROR(LEFT(S3,SEARCH(" ",S3)-1),"") -> attitude | AQ3: =IFERROR(LEFT(T3,SEARCH(" ",T3)-1),"") -> lends | AR3: =IFERROR(LEFT(U3,SEARCH(" ",U3)-1),"") -> a | AS3: =IFERROR(LEFT(V3,SEARCH(" ",V3)-1),"") -> fresh | AT3: =IFERROR(LEFT(W3,SEARCH(" ",W3)-1),"") -> perspective | AU3: =IFERROR(LEFT(X3,SEARCH(" ",X3)-1),"") -> to | AV3: =IFERROR(LEFT(Y3,SEARCH(" ",Y3)-1),"") -> the | AW3: =IFERROR(LEFT(Z3,SEARCH(" ",Z3)-1),"") ->  | AX3: =IFERROR(LEFT(AA3,SEARCH(" ",AA3)-1),"") ->  | AY3: =IFERROR(LEFT(AB3,SEARCH(" ",AB3)-1),"") ->  | AZ3: =IFERROR(LEFT(AC3,SEARCH(" ",AC3)-1),"") ->  | BA3: =IFERROR(LEFT(AD3,SEARCH(" ",AD3)-1),"") ->  | BB3: =IFERROR(LEFT(AE3,SEARCH(" ",AE3)-1),"") ->  | BC3: =IFERROR(LEFT(AF3,SEARCH(" ",AF3)-1),"") ->  | BD3: =IFERROR(LEFT(AG3,SEARCH(" ",AG3)-1),"") ->  | BE3: =IFERROR(LEFT(AH3,SEARCH(" ",AH3)-1),"") ->  | BF3: =IFERROR(LEFT(AI3,SEARCH(" ",AI3)-1),"") ->  | BG3: =IFERROR(LEFT(AJ3,SEARCH(" ",AJ3)-1),"") ->  | BH3: =IFERROR(LEFT(AK3,SEARCH(" ",AK3)-1),"") ->  | BI3: =IFERROR(LEFT(AL3,SEARCH(" ",AL3)-1),"") ->  | BK3: 0.2069173268 | BL3: =$AN$2 -> project. | BM3: 0.8794795564 | BN3: =$AU$3 -> to | BO3: 0.4258261395 | BP3: =$AQ$4 -> leader, | BQ3: 0.5145658552 | BR3: =$AU$5 -> him | BS3: 0.9845978219 | BT3: =$AS$6 -> assemble | BU3: 0.6607149963 | BV3: =$AO$7 -> What | BW3: 0.5888919286 | BX3: =$AS$8 -> make | BY3: 0.5946427845 | BZ3: =$AQ$9 -> refine | CA3: 0.6084028864 | CB3: =$AU$10 -> into | CC3: 0.8578992807 | CD3: =$AO$11 -> The | CE3: 0.5784230458 | CF3: =$AN$12 -> publishers. | CH3: =$BA$13 ->  | CI3: 0.7465345426 | CJ3: =$AS$14 -> about | CK3: 0.08193236871 | CL3: =$AS$15 -> be | CM3: 0.6438390657 | CN3: =$AT$16 -> pain
